Body Name,Transaction Number,Account Code Description,Expenses Type,Service Code,Service Area Categorisation,Supplier Name, Date,Amount
Bath and North East Somerset Council,10802934,LM2,Foster Carer Allowances,P12,Children's Services,FOSTER CARE ASSOCIATES LTD,13/11/2015,2399.04
Bath and North East Somerset Council,10802933,LM2,Foster Carer Allowances,P12,Children's Services,FOSTER CARE ASSOCIATES LTD,13/11/2015,4131.68
Bath and North East Somerset Council,10802935,LM2,Foster Carer Allowances,P12,Children's Services,FOSTER CARE ASSOCIATES LTD,07/12/2015,3024.00
Bath and North East Somerset Council,10802936,LM2,Foster Carer Allowances,P12,Children's Services,FOSTER CARE ASSOCIATES LTD,08/12/2015,3472.00
Bath and North East Somerset Council,10801928,HP6,Water Charges,P10,Finance & Efficiency,BWBSL,04/01/2016,24.96
Bath and North East Somerset Council,10801928,HP6,Water Charges,P10,Finance & Efficiency,BWBSL,04/01/2016,625.77
Bath and North East Somerset Council,10802470,HV2,Non Contract Cleaning,P13,Economic Development,VALIANT ENGINEERING SERVICES LTD,29/01/2016,83.00
Bath and North East Somerset Council,10802471,HV2,Non Contract Cleaning,P13,Economic Development,VALIANT ENGINEERING SERVICES LTD,29/01/2016,85.00
Bath and North East Somerset Council,10802454,HV2,Non Contract Cleaning,P13,Economic Development,VALIANT ENGINEERING SERVICES LTD,29/01/2016,185.00
Bath and North East Somerset Council,10802470,HV2,Non Contract Cleaning,P13,Economic Development,VALIANT ENGINEERING SERVICES LTD,29/01/2016,345.00
Bath and North East Somerset Council,10802471,HV2,Non Contract Cleaning,P13,Economic Development,VALIANT ENGINEERING SERVICES LTD,29/01/2016,575.00
Bath and North East Somerset Council,10801992,3F7,External Fees,P10,Finance & Efficiency,REDACTED,29/01/2016,3827.68
Bath and North East Somerset Council,10802454,HV2,Non Contract Cleaning,P13,Economic Development,VALIANT ENGINEERING SERVICES LTD,29/01/2016,760.00
Bath and North East Somerset Council,10800743,HA5,Service Contract PCB,P10,Finance & Efficiency,FIREMARK LTD,01/02/2016,48.30
Bath and North East Somerset Council,10800626,HA4,Responsive Maintenance PCB,P10,Finance & Efficiency,N K S CONTRACTS LTD,01/02/2016,59.14
Bath and North East Somerset Council,10800743,HA5,Service Contract PCB,P13,Economic Development,FIREMARK LTD,01/02/2016,145.45
Bath and North East Somerset Council,10800626,HA4,Responsive Maintenance PCB,P10,Finance & Efficiency,N K S CONTRACTS LTD,01/02/2016,146.25
Bath and North East Somerset Council,10800607,HA5,Service Contract PCB,P10,Finance & Efficiency,MANNINGS FACILITIES MANAGEMENT LTD,01/02/2016,158.13
Bath and North East Somerset Council,10800891,HK1,Highway Maintenance,P01,Transport,SAKNEL HIGHWAYS STRUCTURES CONTRACTOR,01/02/2016,165.00
Bath and North East Somerset Council,10800960,HA4,Responsive Maintenance PCB,P10,Finance & Efficiency,ASPIRE ENVIRONMENTAL LTD,01/02/2016,300.00
Bath and North East Somerset Council,10800987,HA4,Responsive Maintenance PCB,P10,Finance & Efficiency,ADT FIRE & SECURITY PLC,01/02/2016,319.29
Bath and North East Somerset Council,10801020,LK6,Photography/Artworks/Graphics,P13,Economic Development,JANET WOOD,01/02/2016,798.80
Bath and North East Somerset Council,10799340,LM6,Nursing Care,P11,Adult Social Care & Health,REDACTED,01/02/2016,1059.76
Bath and North East Somerset Council,10800730,HA2,Servicing,P10,Finance & Efficiency,EVAC & CHAIR INTERNATIONAL LTD,01/02/2016,420.00
Bath and North East Somerset Council,10800987,HA4,Responsive Maintenance PCB,P10,Finance & Efficiency,ADT FIRE & SECURITY PLC,01/02/2016,431.32
Bath and North East Somerset Council,10800979,LF1,Printing/Design,P10,Finance & Efficiency,TOPLINK ENVELOPES LTD,01/02/2016,433.20
Bath and North East Somerset Council,10800883,LV2,Contributions to Organisations,Z98,West of England Partnership,HIMLO TRAINING CENTRE,01/02/2016,13164.73
Bath and North East Somerset Council,10800994,HV2,Non Contract Cleaning,P13,Economic Development,CHRISTINE HOUSDEN,01/02/2016,527.50
Bath and North East Somerset Council,10800891,HK1,Highway Maintenance,P01,Transport,SAKNEL HIGHWAYS STRUCTURES CONTRACTOR,01/02/2016,541.53
Bath and North East Somerset Council,10800842,EA1,Training,P10,Finance & Efficiency,MR JW PERRY,01/02/2016,610.00
Bath and North East Somerset Council,10800927,HA1,Responsive Maintenance,P13,Economic Development,HORDERS,01/02/2016,590.77
Bath and North East Somerset Council,10800857,EA1,Training,P10,Finance & Efficiency,QA LTD,01/02/2016,621.42
Bath and North East Somerset Council,10800858,EA1,Training,P10,Finance & Efficiency,QA LTD,01/02/2016,621.42
Bath and North East Somerset Council,10800991,EA1,Training,P10,Finance & Efficiency,QA LTD,01/02/2016,621.42
Bath and North East Somerset Council,10800607,HA5,Service Contract PCB,P10,Finance & Efficiency,MANNINGS FACILITIES MANAGEMENT LTD,01/02/2016,632.08
Bath and North East Somerset Council,10800841,EA1,Training,P10,Finance & Efficiency,PETER TAYLOR,01/02/2016,640.00
Bath and North East Somerset Council,10800607,HA5,Service Contract PCB,P13,Economic Development,MANNINGS FACILITIES MANAGEMENT LTD,01/02/2016,650.09
Bath and North East Somerset Council,10799925,LM8,Home Care,P11,Adult Social Care & Health,REDACTED,01/02/2016,7600.81
Bath and North East Somerset Council,10800895,LK1,Fees,P12,Children's Services,EDUCATIONAL SUPPORT 4 SCHOOLS LTD,01/02/2016,685.70
Bath and North East Somerset Council,10800929,LA1,Equipment Purchase (Non Medical),P13,Economic Development,HARMONIA CONSULTING LTD,01/02/2016,748.63
Bath and North East Somerset Council,10800993,LK6,Photography/Artworks/Graphics,P13,Economic Development,CHRISTINE HOUSDEN,01/02/2016,786.40
Bath and North East Somerset Council,10800934,LK6,Photography/Artworks/Graphics,P13,Economic Development,TOPOGRAFIK,01/02/2016,800.00
Bath and North East Somerset Council,10800913,HA3,Planned Maintenance,P13,Economic Development,SYSCO AV LTD,01/02/2016,817.15
Bath and North East Somerset Council,10800911,HA3,Planned Maintenance,P13,Economic Development,SYSCO AV LTD,01/02/2016,861.44
Bath and North East Somerset Council,10800610,3F7,External Fees,P13,Economic Development,CAPITA BUSINESS SERVICES LTD,01/02/2016,882.50
Bath and North East Somerset Council,10800013,3F7,External Fees,P13,Economic Development,JUBB CONSULTING ENGINEERS LTD,01/02/2016,885.50
Bath and North East Somerset Council,10800932,LV1,Grants to Voluntary Bodies,P13,Economic Development,MUSEUM OF BATH AT WORK,01/02/2016,900.00
Bath and North East Somerset Council,10801028,3F7,External Fees,P01,Transport,MDA CONSULTING LTD,01/02/2016,937.50
Bath and North East Somerset Council,10800957,HA5,Service Contract PCB,P10,Finance & Efficiency,ADT FIRE & SECURITY PLC,01/02/2016,945.00
Bath and North East Somerset Council,10800903,LX1,Educational Activity,P12,Children's Services,PGL TRAVEL LTD,01/02/2016,968.00
Bath and North East Somerset Council,10800611,3F7,External Fees,P01,Transport,CAPITA BUSINESS SERVICES LTD,01/02/2016,1089.00
Bath and North East Somerset Council,10800613,3F7,External Fees,P01,Transport,CAPITA BUSINESS SERVICES LTD,01/02/2016,1089.00
Bath and North East Somerset Council,10800899,HA2,Servicing,P13,Economic Development,HORDERS,01/02/2016,1144.76
Bath and North East Somerset Council,10800846,LJ4,Contracts,P11,Adult Social Care & Health,SIRONA CARE & HEALTH C.I.C.,01/02/2016,337646.75
Bath and North East Somerset Council,10800015,3F7,External Fees,P13,Economic Development,JUBB CONSULTING ENGINEERS LTD,01/02/2016,1400.00
Bath and North East Somerset Council,10800960,HA4,Responsive Maintenance PCB,P10,Finance & Efficiency,ASPIRE ENVIRONMENTAL LTD,01/02/2016,1403.00
Bath and North East Somerset Council,10800626,HA4,Responsive Maintenance PCB,P10,Finance & Efficiency,N K S CONTRACTS LTD,01/02/2016,1498.35
Bath and North East Somerset Council,10800432,3F7,External Fees,P13,Economic Development,SMART GROWTH ECONOMICS,01/02/2016,1500.00
Bath and North East Somerset Council,10800563,LJ4,Contracts,P13,Economic Development,ACOUSTIGUIDE LTD,01/02/2016,1527.43
Bath and North East Somerset Council,10800743,HA5,Service Contract PCB,P10,Finance & Efficiency,FIREMARK LTD,01/02/2016,1632.55
Bath and North East Somerset Council,10800873,LJ1,Consultants Fees,P10,Finance & Efficiency,CIVICA UK LTD,01/02/2016,1800.00
Bath and North East Somerset Council,10800896,3F7,External Fees,P10,Finance & Efficiency,FABTECH WELDING & FABRICATION LTD,01/02/2016,1920.00
Bath and North East Somerset Council,10801021,LA1,Equipment Purchase (Non Medical),P11,Adult Social Care & Health,SIRONA CARE SERVICES LTD,01/02/2016,2036.12
Bath and North East Somerset Council,10801029,3F7,External Fees,P01,Transport,MDA CONSULTING LTD,01/02/2016,2437.50
Bath and North East Somerset Council,10800845,LV2,Contributions to Organisations,Z98,West of England Partnership,TERCON LTD,01/02/2016,8389.51
Bath and North East Somerset Council,10800607,HA5,Service Contract PCB,P10,Finance & Efficiency,MANNINGS FACILITIES MANAGEMENT LTD,01/02/2016,2655.10
Bath and North East Somerset Council,10800959,HA6,Planned Maintenance PCB,P10,Finance & Efficiency,ADT FIRE & SECURITY PLC,01/02/2016,2878.00
Bath and North East Somerset Council,10800757,EA1,Training,P12,Children's Services,ME LEARNING LTD,01/02/2016,3600.00
Bath and North East Somerset Council,10801021,LA1,Equipment Purchase (Non Medical),P11,Adult Social Care & Health,SIRONA CARE SERVICES LTD,01/02/2016,5090.08
Bath and North East Somerset Council,10800908,HA3,Planned Maintenance,P13,Economic Development,N K S CONTRACTS LTD,01/02/2016,5185.77
Bath and North East Somerset Council,10800573,HA4,Responsive Maintenance PCB,P10,Finance & Efficiency,H MEALING & SONS LTD,01/02/2016,5215.99
Bath and North East Somerset Council,10800612,3F7,External Fees,P13,Economic Development,CAPITA BUSINESS SERVICES LTD,01/02/2016,5742.00
Bath and North East Somerset Council,10800805,HK2,Street Lighting Maintenance,P01,Transport,SOUTHERN ELECTRIC CONTRACTING LTD,01/02/2016,6343.81
Bath and North East Somerset Council,10800838,EA1,Training,P12,Children's Services,BABCOCK 4S LIMITED,01/02/2016,7030.00
Bath and North East Somerset Council,10800563,LJ4,Contracts,P13,Economic Development,ACOUSTIGUIDE LTD,01/02/2016,12087.11
Bath and North East Somerset Council,10800595,LP4,Software Purchase,P13,Economic Development,GATEWAY TICKETING SYSTEMS UK LTD,01/02/2016,19807.28
Bath and North East Somerset Council,10801021,LA1,Equipment Purchase (Non Medical),P11,Adult Social Care & Health,SIRONA CARE SERVICES LTD,01/02/2016,37363.27
Bath and North East Somerset Council,10800726,HK2,Street Lighting Maintenance,P01,Transport,SOUTHERN ELECTRIC CONTRACTING LTD,01/02/2016,94880.15
Bath and North East Somerset Council,10801025,3C4,Building Works,P12,Children's Services,H MEALING & SONS LTD,01/02/2016,98156.53
Bath and North East Somerset Council,80554919,LL5,Adoption Allowances,P12,Children's Services,REDACTED,03/02/2016,728.82
Bath and North East Somerset Council,80554919,LL5,Adoption Allowances,P12,Children's Services,REDACTED,03/02/2016,742.80
Bath and North East Somerset Council,80554941,PG1,Rent Allowances,P10,Finance & Efficiency,ADVANCE HOUSING SUPPORT & SUPPOR,03/02/2016,2525.68
Bath and North East Somerset Council,10801157,LW9,Other Expenses,P12,Children's Services,B&NES COUNCIL -  OFFICE SERVICES,03/02/2016,4160.20
Bath and North East Somerset Council,80554939,PG1,Rent Allowances,P10,Finance & Efficiency,BATH CHRISTIAN TRUST,03/02/2016,2635.62
Bath and North East Somerset Council,10801140,LV2,Contributions to Organisations,Z98,West of England Partnership,BRISTOL CITY COUNCIL,03/02/2016,329085.52
Bath and North East Somerset Council,10801133,LV2,Contributions to Organisations,Z98,West of England Partnership,CANCER INTELLIGENCE LTD,03/02/2016,40280.76
Bath and North East Somerset Council,10799897,LK1,Fees,P13,Economic Development,REDACTED,03/02/2016,3000.00
Bath and North East Somerset Council,10801194,HA4,Responsive Maintenance PCB,P10,Finance & Efficiency,ASPIRE ENVIRONMENTAL LTD,03/02/2016,200.00
Bath and North East Somerset Council,10801194,HA4,Responsive Maintenance PCB,P10,Finance & Efficiency,ASPIRE ENVIRONMENTAL LTD,03/02/2016,232.00
Bath and North East Somerset Council,10801076,HK1,Highway Maintenance,P01,Transport,SAKNEL HIGHWAYS STRUCTURES CONTRACTOR,03/02/2016,285.00
Bath and North East Somerset Council,10801076,HK1,Highway Maintenance,P01,Transport,SAKNEL HIGHWAYS STRUCTURES CONTRACTOR,03/02/2016,345.00
Bath and North East Somerset Council,10800505,HA5,Service Contract PCB,P10,Finance & Efficiency,MECHANICAL ENGINEERING SERVICE,03/02/2016,408.15
Bath and North East Somerset Council,10801053,KB1,Hire of Vehicles,P14,Community Services,SFS LIMITED T/A CTS,03/02/2016,420.00
Bath and North East Somerset Council,10801206,LK1,Fees,P12,Children's Services,PICKFORDS MOVE MANAGEMENT LTD,03/02/2016,449.60
Bath and North East Somerset Council,10801049,LA1,Equipment Purchase (Non Medical),P11,Adult Social Care & Health,SIRONA CARE SERVICES LTD,03/02/2016,480.00
Bath and North East Somerset Council,10801045,LK1,Fees,P14,Community Services,CO-CHANNEL ELECTRONICS LIMITED,03/02/2016,500.00
Bath and North East Somerset Council,10801045,LK1,Fees,P14,Community Services,CO-CHANNEL ELECTRONICS LIMITED,03/02/2016,500.00
Bath and North East Somerset Council,10801098,LH1,Liability Insurance,Z99,Outside Revenue Accounts,BLM,03/02/2016,520.99
Bath and North East Somerset Council,10800579,3F7,External Fees,P12,Children's Services,COUNTRY CONTRACTS,03/02/2016,546.00
Bath and North East Somerset Council,10800997,LX4,Parish Sweepers,P14,Community Services,BATHEASTON PARISH COUNCIL,03/02/2016,566.72
Bath and North East Somerset Council,10801041,LP4,Software Purchase,P11,Adult Social Care & Health,BERRICK COMPUTING LTD,03/02/2016,582.75
Bath and North East Somerset Council,10801208,KE3,Transport & Travel,P10,Finance & Efficiency,MR P AUSTIN,03/02/2016,580.00
Bath and North East Somerset Council,80554940,PG1,Rent Allowances,P10,Finance & Efficiency,REDACTED,03/02/2016,835.00
Bath and North East Somerset Council,10801209,KD1,Employees Public Transport,P10,Finance & Efficiency,MR P AUSTIN,03/02/2016,1600.00
Bath and North East Somerset Council,10801051,KB1,Hire of Vehicles,P14,Community Services,SHB HIRE LTD,03/02/2016,649.25
Bath and North East Somerset Council,10801097,3C4,Building Works,P01,Transport,WESTERN POWER DISTRIBUTION (SO,03/02/2016,652.37
Bath and North East Somerset Council,10801175,LJ4,Contracts,P12,Children's Services,N B KNAPMAN,03/02/2016,809.43
Bath and North East Somerset Council,80554885,LM2,Foster Carer Allowances,P12,Children's Services,REDACTED,03/02/2016,649.00
Bath and North East Somerset Council,80554920,LM2,Foster Carer Allowances,P12,Children's Services,REDACTED,03/02/2016,100.00
Bath and North East Somerset Council,80554920,LM2,Foster Carer Allowances,P12,Children's Services,REDACTED,03/02/2016,285.72
Bath and North East Somerset Council,80554920,LM2,Foster Carer Allowances,P12,Children's Services,REDACTED,03/02/2016,785.96
Bath and North East Somerset Council,10801009,LX4,Parish Sweepers,P14,Community Services,PAULTON PARISH COUNCIL,03/02/2016,693.25
Bath and North East Somerset Council,80554905,LM2,Foster Carer Allowances,P12,Children's Services,REDACTED,03/02/2016,78.57
Bath and North East Somerset Council,80554905,LM2,Foster Carer Allowances,P12,Children's Services,REDACTED,03/02/2016,196.43
Bath and North East Somerset Council,80554905,LM2,Foster Carer Allowances,P12,Children's Services,REDACTED,03/02/2016,387.26
Bath and North East Somerset Council,10801061,LD1,Protective & Safety Clothing,P14,Community Services,SMI GROUP,03/02/2016,705.00
Bath and North East Somerset Council,10800875,LJ2,Legal Fees,P12,Children's Services,EPSA Ltd,03/02/2016,710.00
Bath and North East Somerset Council,10801069,EA1,Training,P09,Homes & Planning,LABC SW REGION,03/02/2016,750.00
Bath and North East Somerset Council,10801058,LJ2,Legal Fees,P12,Children's Services,ALBION CHAMBERS,03/02/2016,800.00
Bath and North East Somerset Council,10801044,EA1,Training,P12,Children's Services,JANE EVANS PARENTING & BEHAVIOUR SKILLS CONSULTANCY,03/02/2016,822.00
Bath and North East Somerset Council,10800844,EA1,Training,P10,Finance & Efficiency,ROYAL UNITED HOSPITAL NHS TRUST,03/02/2016,870.00
Bath and North East Somerset Council,10801121,EA1,Training,P10,Finance & Efficiency,WILTSHIRE COUNCIL,03/02/2016,900.00
Bath and North East Somerset Council,10800381,EA2,Professional Subscriptions,P14,Community Services,FBCA,03/02/2016,900.80
Bath and North East Somerset Council,10801082,LW9,Other Expenses,P10,Finance & Efficiency,MERIDIAN COST BENEFIT LTD,03/02/2016,919.31
Bath and North East Somerset Council,10801127,HP6,Water Charges,P14,Community Services,BWBSL,03/02/2016,921.58
Bath and North East Somerset Council,80554881,LM2,Foster Carer Allowances,P12,Children's Services,REDACTED,03/02/2016,100.00
Bath and North East Somerset Council,80554881,LM2,Foster Carer Allowances,P12,Children's Services,REDACTED,03/02/2016,140.00
Bath and North East Somerset Council,80554881,LM2,Foster Carer Allowances,P12,Children's Services,REDACTED,03/02/2016,285.72
Bath and North East Somerset Council,10801055,KB1,Hire of Vehicles,P14,Community Services,SFS LIMITED T/A CTS,03/02/2016,990.00
Bath and North East Somerset Council,10801100,EA1,Training,P09,Homes & Planning,IDOX SOFTWARE LTD,03/02/2016,1000.00
Bath and North East Somerset Council,10801034,EA1,Training,P12,Children's Services,LOUDMOUTH EDUCATION & TRAINING LTD,03/02/2016,1040.45
Bath and North East Somerset Council,10801181,HA5,Service Contract PCB,P10,Finance & Efficiency,PROPERTECO,03/02/2016,1062.40
Bath and North East Somerset Council,10801101,EA1,Training,P09,Homes & Planning,LABC,03/02/2016,1100.00
Bath and North East Somerset Council,10801041,LP4,Software Purchase,P12,Children's Services,BERRICK COMPUTING LTD,03/02/2016,1167.25
Bath and North East Somerset Council,10801054,KB1,Hire of Vehicles,P14,Community Services,SFS LIMITED T/A CTS,03/02/2016,1190.00
Bath and North East Somerset Council,10801193,DB1,Agency Staff,P01,Transport,C R DAWSON LTD,03/02/2016,1191.95
Bath and North East Somerset Council,10800802,LA4,Equipment Hire/Rent,P14,Community Services,QUARTIX LIMITED,03/02/2016,1215.00
Bath and North East Somerset Council,10801099,3F7,External Fees,P12,Children's Services,BBA ARCHITECTS,03/02/2016,1250.00
Bath and North East Somerset Council,10801094,HK1,Highway Maintenance,P01,Transport,SAKNEL HIGHWAYS STRUCTURES CONTRACTOR,03/02/2016,1400.00
Bath and North East Somerset Council,10801173,LF1,Printing/Design,P10,Finance & Efficiency,FACILITIES & CORPORATE SOLUTIONS,03/02/2016,1400.27
Bath and North East Somerset Council,10801060,KA3,Fuel,P14,Community Services,ALLSTAR BUSINESS SOLUTIONS LTD,03/02/2016,1477.48
Bath and North East Somerset Council,10801026,LJ2,Legal Fees,P12,Children's Services,3PB BARRISTERS,03/02/2016,1500.00
Bath and North East Somerset Council,10800505,HA5,Service Contract PCB,P10,Finance & Efficiency,MECHANICAL ENGINEERING SERVICE,03/02/2016,1595.77
Bath and North East Somerset Council,10801078,LF5,Postages,P10,Finance & Efficiency,WHISTL,03/02/2016,1597.85
Bath and North East Somerset Council,10801110,LJ4,Contracts,P01,Transport,BBFI LTD,03/02/2016,1600.00
Bath and North East Somerset Council,10801195,LK1,Fees,P13,Economic Development,BAT PRO LTD,03/02/2016,1617.97
Bath and North East Somerset Council,10801038,KB1,Hire of Vehicles,P14,Community Services,M6 VEHICLE HIRE LTD,03/02/2016,1755.00
Bath and North East Somerset Council,10801092,LJ4,Contracts,P11,Adult Social Care & Health,UNIVERSITY HOSPITALS BRISTOL,03/02/2016,1851.91
Bath and North East Somerset Council,10801037,LX5,Concessionary Fares,P01,Transport,KEYNSHAM & DISTRICT DIAL-A-RIDE,03/02/2016,1932.75
Bath and North East Somerset Council,10801094,HK1,Highway Maintenance,P01,Transport,SAKNEL HIGHWAYS STRUCTURES CONTRACTOR,03/02/2016,1947.83
Bath and North East Somerset Council,10801130,LP5,Software Support,P10,Finance & Efficiency,CACI LIMITED,03/02/2016,2317.88
Bath and North East Somerset Council,10801046,KB1,Hire of Vehicles,P14,Community Services,DAWSON RENTALS SWEEPERS,03/02/2016,2352.00
Bath and North East Somerset Council,10800973,HE1,General Maintenance,P14,Community Services,TOM LEDBURY,03/02/2016,300.00
Bath and North East Somerset Council,10801112,3F7,External Fees,P12,Children's Services,BBA ARCHITECTS,03/02/2016,2725.00
Bath and North East Somerset Council,10800603,LA1,Equipment Purchase (Non Medical),P12,Children's Services,PROFESSIONAL VISION SERVICES,03/02/2016,3025.00
Bath and North East Somerset Council,10801217,LM2,Foster Carer Allowances,P12,Children's Services,BLUE SKY FOSTERING LTD C/O FBS,03/02/2016,3045.00
Bath and North East Somerset Council,10800831,HX9,Other Premises Related,P12,Children's Services,N K S CONTRACTS LTD,03/02/2016,3141.08
Bath and North East Somerset Council,10801073,LK3,PCB Fees (paid),P01,Transport,STEER DAVIES GLEAVE,03/02/2016,3252.20
Bath and North East Somerset Council,10801224,LM2,Foster Carer Allowances,P12,Children's Services,CHILDRENS FAMILY TRUST,03/02/2016,3306.15
Bath and North East Somerset Council,10801225,LM2,Foster Carer Allowances,P12,Children's Services,CHILDRENS FAMILY TRUST,03/02/2016,3306.15
Bath and North East Somerset Council,10801220,LM2,Foster Carer Allowances,P12,Children's Services,CHILDRENS FAMILY TRUST,03/02/2016,3307.70
Bath and North East Somerset Council,10801223,LM2,Foster Carer Allowances,P12,Children's Services,CHILDRENS FAMILY TRUST,03/02/2016,3307.70
Bath and North East Somerset Council,10801227,LM2,Foster Carer Allowances,P12,Children's Services,AMICUS FOSTER CARE LIMITED,03/02/2016,3353.92
Bath and North East Somerset Council,10801233,LM2,Foster Carer Allowances,P12,Children's Services,FOSTERING MATTERS LTD,03/02/2016,3472.31
Bath and North East Somerset Council,10801234,LM2,Foster Carer Allowances,P12,Children's Services,PRIORY FOSTERING SERVICES,03/02/2016,3476.43
Bath and North East Somerset Council,10801228,LM2,Foster Carer Allowances,P12,Children's Services,AMICUS FOSTER CARE LIMITED,03/02/2016,3631.42
Bath and North East Somerset Council,10801043,LF6,Subscriptions,P12,Children's Services,LOCAL INFORMATION UNIT LTD,03/02/2016,3702.00
Bath and North East Somerset Council,10801190,LJ4,Contracts,P11,Adult Social Care & Health,SIRONA CARE SERVICES LTD,03/02/2016,3750.00
Bath and North East Somerset Council,10801088,LJ4,Contracts,P01,Transport,PEASEDOWN TAXIS LTD,03/02/2016,3772.61
Bath and North East Somerset Council,10801174,LF5,Postages,P10,Finance & Efficiency,FACILITIES & CORPORATE SOLUTIONS,03/02/2016,4128.87
Bath and North East Somerset Council,10801202,LM2,Foster Carer Allowances,P12,Children's Services,TACT,03/02/2016,4170.21
Bath and North East Somerset Council,10797856,LJ3,Other Services to the Council,P10,Finance & Efficiency,GRANT THORNTON UK LLP,03/02/2016,4200.00
Bath and North East Somerset Council,10801085,LF5,Postages,P10,Finance & Efficiency,NEOPOST LIMITED,03/02/2016,4434.42
Bath and North East Somerset Council,10801030,3F7,External Fees,P12,Children's Services,CAPITA BUSINESS SERVICES LTD,03/02/2016,4488.00
Bath and North East Somerset Council,10801090,HP3,Room Hire Charges,P10,Finance & Efficiency,AQUATERRA LEISURE SERVICES LTD,03/02/2016,4632.00
Bath and North East Somerset Council,10801226,LM2,Foster Carer Allowances,P12,Children's Services,AMICUS FOSTER CARE LIMITED,03/02/2016,4659.87
Bath and North East Somerset Council,10801091,LJ1,Consultants Fees,P14,Community Services,CAPITA SYMONDS,03/02/2016,4930.80
Bath and North East Somerset Council,10801231,LM2,Foster Carer Allowances,P12,Children's Services,FOSTERING MATTERS LTD,03/02/2016,5208.62
Bath and North East Somerset Council,10800973,HE1,General Maintenance,P14,Community Services,TOM LEDBURY,03/02/2016,591.09
Bath and North East Somerset Council,10801049,LA1,Equipment Purchase (Non Medical),P11,Adult Social Care & Health,SIRONA CARE SERVICES LTD,03/02/2016,5248.31
Bath and North East Somerset Council,10801160,LA2,Training Materials,P12,Children's Services,HENRY,03/02/2016,5400.00
Bath and North East Somerset Council,10800339,3C4,Building Works,P12,Children's Services,MODULAR BUILDING SERVICES LTD,03/02/2016,5720.00
Bath and North East Somerset Council,10801200,DB1,Agency Staff,P01,Transport,CEEMA LTD,03/02/2016,6546.15
Bath and North East Somerset Council,10800341,3C4,Building Works,P12,Children's Services,MODULAR BUILDING SERVICES LTD,03/02/2016,7480.00
Bath and North East Somerset Council,10800874,HP8,Service Charges,P14,Community Services,JOHN LEWIS PLC RE RENT RECEIPT,03/02/2016,7500.00
Bath and North East Somerset Council,10801221,LM1,Volunt Homes Placements Top/Up,P12,Children's Services,INCLUDE LIMITED,03/02/2016,10333.33
Bath and North East Somerset Council,10801216,LM2,Foster Carer Allowances,P12,Children's Services,SPORTFIT SHORTBREAK CARE LTD,03/02/2016,11935.00
Bath and North East Somerset Council,10801218,LM2,Foster Carer Allowances,P12,Children's Services,SPORTFIT SHORTBREAK CARE LTD,03/02/2016,11935.00
Bath and North East Somerset Council,10801186,LJ4,Contracts,P11,Adult Social Care & Health,SIRONA CARE SERVICES LTD,03/02/2016,12692.50
Bath and North East Somerset Council,10801052,LJ1,Consultants Fees,P12,Children's Services,UNIVERSITY OF EXETER,03/02/2016,15000.00
Bath and North East Somerset Council,10801134,LJ3,Other Services to the Council,P10,Finance & Efficiency,GRANT THORNTON UK LLP,03/02/2016,18340.00
Bath and North East Somerset Council,10801049,LA1,Equipment Purchase (Non Medical),P11,Adult Social Care & Health,SIRONA CARE SERVICES LTD,03/02/2016,21709.78
Bath and North East Somerset Council,10801191,LJ4,Contracts,P11,Adult Social Care & Health,SIRONA CARE SERVICES LTD,03/02/2016,23380.00
Bath and North East Somerset Council,10801187,LJ4,Contracts,P11,Adult Social Care & Health,SIRONA CARE SERVICES LTD,03/02/2016,23412.08
Bath and North East Somerset Council,10801185,LJ4,Contracts,P11,Adult Social Care & Health,SIRONA CARE SERVICES LTD,03/02/2016,23610.83
Bath and North East Somerset Council,10801189,LJ4,Contracts,P11,Adult Social Care & Health,SIRONA CARE SERVICES LTD,03/02/2016,26055.25
Bath and North East Somerset Council,10801188,LJ4,Contracts,P11,Adult Social Care & Health,SIRONA CARE SERVICES LTD,03/02/2016,28529.42
Bath and North East Somerset Council,10801183,LJ4,Contracts,P11,Adult Social Care & Health,SIRONA CARE SERVICES LTD,03/02/2016,49056.75
Bath and North East Somerset Council,10801171,LM1,Volunt Homes Placements Top/Up,P12,Children's Services,SHEILING SCHOOL THORNBURY GENERAL ACCOUNT,03/02/2016,59340.33
Bath and North East Somerset Council,10801172,LM1,Volunt Homes Placements Top/Up,P12,Children's Services,SHEILING SCHOOL THORNBURY GENERAL ACCOUNT,03/02/2016,71529.00
Bath and North East Somerset Council,10801170,LM1,Volunt Homes Placements Top/Up,P12,Children's Services,SHEILING SCHOOL THORNBURY GENERAL ACCOUNT,03/02/2016,78997.00
Bath and North East Somerset Council,10801033,3F7,External Fees,P10,Finance & Efficiency,H MEALING & SONS LTD,03/02/2016,96753.64
Bath and North East Somerset Council,10801180,LJ4,Contracts,P11,Adult Social Care & Health,SIRONA CARE SERVICES LTD,03/02/2016,205296.00
Bath and North East Somerset Council,10801036,LX5,Concessionary Fares,P01,Transport,SOUTH GLOUCESTERSHIRE COUNCIL,03/02/2016,238365.00
Bath and North East Somerset Council,10801137,LV2,Contributions to Organisations,Z98,West of England Partnership,"UWE, BRISTOL",03/02/2016,350189.00
Bath and North East Somerset Council,10801138,LV2,Contributions to Organisations,Z98,West of England Partnership,WESTON COLLEGE,03/02/2016,671538.37
Bath and North East Somerset Council,10801139,LV2,Contributions to Organisations,Z98,West of England Partnership,WESTON COLLEGE,03/02/2016,689734.19
Bath and North East Somerset Council,10801141,LV2,Contributions to Organisations,Z98,West of England Partnership,NORTH SOMERSET COUNCIL,03/02/2016,1544460.00
Bath and North East Somerset Council,80555113,PG1,Rent Allowances,P10,Finance & Efficiency,REDACTED,04/02/2016,1153.84
Bath and North East Somerset Council,80555074,PG1,Rent Allowances,P10,Finance & Efficiency,REDACTED,04/02/2016,542.96
Bath and North East Somerset Council,80555122,PG1,Rent Allowances,P10,Finance & Efficiency,3C COMMERCIAL LTD,04/02/2016,605.75
Bath and North East Somerset Council,10801445,LN4,Mobile Phones,P10,Finance & Efficiency,ORANGE PERSONAL COMMUNICATION,04/02/2016,0.58
Bath and North East Somerset Council,80555075,PG1,Rent Allowances,P10,Finance & Efficiency,ALLEN RESIDENTIAL LETTINGS,04/02/2016,2221.48
Bath and North East Somerset Council,80555114,PG1,Rent Allowances,P10,Finance & Efficiency,ALLIANCE HOMES GROUP,04/02/2016,596.32
Bath and North East Somerset Council,10801059,3G1,Grants/Advances,P11,Adult Social Care & Health,REDACTED,04/02/2016,2404.90
Bath and North East Somerset Council,10800986,HA4,Responsive Maintenance PCB,P10,Finance & Efficiency,ADT FIRE & SECURITY PLC,04/02/2016,50.00
Bath and North East Somerset Council,10800442,HA5,Service Contract PCB,P13,Economic Development,MANNINGS FACILITIES MANAGEMENT LTD,04/02/2016,86.48
Bath and North East Somerset Council,10800931,LV3,Commissioned Services,P13,Economic Development,BATH TOURISM PLUS,04/02/2016,89.40
Bath and North East Somerset Council,80555008,PG1,Rent Allowances,P10,Finance & Efficiency,BARONS PROPERTY AGENTS,04/02/2016,2135.24
Bath and North East Somerset Council,80555091,PG1,Rent Allowances,P10,Finance & Efficiency,BARTLETT WARD LTD,04/02/2016,516.92
Bath and North East Somerset Council,80555172,PG1,Rent Allowances,P10,Finance & Efficiency,BATH & DISTRICT LIFE CARE,04/02/2016,2612.80
Bath and North East Somerset Council,80555077,PG1,Rent Allowances,P10,Finance & Efficiency,BATH PROPERTY LETTING,04/02/2016,3177.76
Bath and North East Somerset Council,80555089,PG1,Rent Allowances,P10,Finance & Efficiency,C F LETTINGS (BATH) LTD T/A DOVE,04/02/2016,946.76
Bath and North East Somerset Council,80555030,PG1,Rent Allowances,P10,Finance & Efficiency,CENTRIX PROPERTIES LTD,04/02/2016,625.12
Bath and North East Somerset Council,80555115,PG1,Rent Allowances,P10,Finance & Efficiency,CHAPTER 1,04/02/2016,969.32
Bath and North East Somerset Council,10800974,HA5,Service Contract PCB,P13,Economic Development,HORDERS,04/02/2016,150.97
Bath and North East Somerset Council,10800974,HA5,Service Contract PCB,P10,Finance & Efficiency,HORDERS,04/02/2016,150.97
Bath and North East Somerset Council,10800984,HA4,Responsive Maintenance PCB,P10,Finance & Efficiency,N K S CONTRACTS LTD,04/02/2016,194.33
Bath and North East Somerset Council,10801270,LJ4,Contracts,P01,Transport,RIVERSIDE TAXIS,04/02/2016,221.50
Bath and North East Somerset Council,10801161,LV2,Contributions to Organisations,Z98,West of England Partnership,DIGITAL TV LABS LTD,04/02/2016,19606.36
Bath and North East Somerset Council,10800931,LV3,Commissioned Services,P13,Economic Development,BATH TOURISM PLUS,04/02/2016,312.80
Bath and North East Somerset Council,10801270,DB1,Agency Staff,P01,Transport,RIVERSIDE TAXIS,04/02/2016,315.00
Bath and North East Somerset Council,80555004,PG1,Rent Allowances,P10,Finance & Efficiency,DIMENSIONS (UK) LTD,04/02/2016,1500.60
Bath and North East Somerset Council,10801337,LJ4,Contracts,P14,Community Services,LUBBE & SONS (BULBS) LTD,04/02/2016,425.00
Bath and North East Somerset Council,10801122,LJ2,Legal Fees,P12,Children's Services,IAN HALLIDAY,04/02/2016,450.00
Bath and North East Somerset Council,10801252,3F7,External Fees,P12,Children's Services,BBA ARCHITECTS,04/02/2016,452.00
Bath and North East Somerset Council,10801320,LH2,Advertising,P01,Transport,TMP (UK) LTD,04/02/2016,465.06
Bath and North East Somerset Council,80555014,PG1,Rent Allowances,P10,Finance & Efficiency,HANOVER HOUSING ASSOCIATION,04/02/2016,505.78
Bath and North East Somerset Council,80555013,PG1,Rent Allowances,P10,Finance & Efficiency,HANOVER HOUSING ASSOCIATION,04/02/2016,1566.92
Bath and North East Somerset Council,80555000,PG1,Rent Allowances,P10,Finance & Efficiency,HERMVALE LTD,04/02/2016,553.86
Bath and North East Somerset Council,10801305,3N7,Misc. Costs,P01,Transport,TMP (UK) LTD,04/02/2016,491.62
Bath and North East Somerset Council,80555096,PG1,Rent Allowances,P10,Finance & Efficiency,REDACTED (BRISTOL LTD),04/02/2016,664.60
Bath and North East Somerset Council,10801317,LD1,Protective & Safety Clothing,P14,Community Services,SMI GROUP,04/02/2016,500.00
Bath and North East Somerset Council,10801298,KE3,Transport & Travel,P10,Finance & Efficiency,KEYNSHAM CARS,04/02/2016,504.00
Bath and North East Somerset Council,10800986,HA4,Responsive Maintenance PCB,P10,Finance & Efficiency,ADT FIRE & SECURITY PLC,04/02/2016,511.18
Bath and North East Somerset Council,80554994,PG1,Rent Allowances,P10,Finance & Efficiency,KNIGHTSTONE HOUSING ASSOCIATION,04/02/2016,2735.40
Bath and North East Somerset Council,80554992,PG1,Rent Allowances,P10,Finance & Efficiency,KNIGHTSTONE HOUSING ASSOCIATION,04/02/2016,9894.24
Bath and North East Somerset Council,80555009,PG1,Rent Allowances,P10,Finance & Efficiency,KNIGHTSTONE HOUSING ASSOCIATION,04/02/2016,14396.69
Bath and North East Somerset Council,10801313,3N7,Misc. Costs,P13,Economic Development,TMP (UK) LTD,04/02/2016,518.19
Bath and North East Somerset Council,10801325,HK2,Street Lighting Maintenance,P01,Transport,TMP (UK) LTD,04/02/2016,518.19
Bath and North East Somerset Council,10801310,3N7,Misc. Costs,P01,Transport,TMP (UK) LTD,04/02/2016,544.75
Bath and North East Somerset Council,10801336,LF1,Printing/Design,P04,Leader,PRINT IMAGE NETWORK LTD,04/02/2016,545.00
Bath and North East Somerset Council,10801352,KB1,Hire of Vehicles,P14,Community Services,EUROPCAR UK LTD,04/02/2016,567.56
Bath and North East Somerset Council,80555005,PG1,Rent Allowances,P10,Finance & Efficiency,MICHAEL GOULD LETTINGS,04/02/2016,1624.04
Bath and North East Somerset Council,80555017,PG1,Rent Allowances,P10,Finance & Efficiency,REDACTED,04/02/2016,668.92
Bath and North East Somerset Council,80555085,PG1,Rent Allowances,P10,Finance & Efficiency,REDACTED,04/02/2016,1983.12
Bath and North East Somerset Council,10801307,3N7,Misc. Costs,P01,Transport,TMP (UK) LTD,04/02/2016,571.32
Bath and North East Somerset Council,10801308,3N7,Misc. Costs,P01,Transport,TMP (UK) LTD,04/02/2016,571.32
Bath and North East Somerset Council,10801311,3N7,Misc. Costs,P13,Economic Development,TMP (UK) LTD,04/02/2016,571.32
Bath and North East Somerset Council,10801323,3N7,Misc. Costs,P01,Transport,TMP (UK) LTD,04/02/2016,571.32
Bath and North East Somerset Council,80554976,PG1,Rent Allowances,P10,Finance & Efficiency,REDACTED,04/02/2016,668.92
Bath and North East Somerset Council,80555109,PG1,Rent Allowances,P10,Finance & Efficiency,REDACTED,04/02/2016,530.02
Bath and North East Somerset Council,80555102,PG1,Rent Allowances,P10,Finance & Efficiency,REDACTED,04/02/2016,764.60
Bath and North East Somerset Council,80555033,PG1,Rent Allowances,P10,Finance & Efficiency,REDACTED,04/02/2016,507.68
Bath and North East Somerset Council,80555041,PG1,Rent Allowances,P10,Finance & Efficiency,REDACTED,04/02/2016,539.15
Bath and North East Somerset Council,80555164,PG1,Rent Allowances,P10,Finance & Efficiency,REDACTED,04/02/2016,2069.91
Bath and North East Somerset Council,80555015,PG1,Rent Allowances,P10,Finance & Efficiency,REDACTED,04/02/2016,521.52
Bath and North East Somerset Council,80555123,PG1,Rent Allowances,P10,Finance & Efficiency,REDACTED,04/02/2016,540.15
Bath and North East Somerset Council,80555117,PG1,Rent Allowances,P10,Finance & Efficiency,REDACTED,04/02/2016,678.48
Bath and North East Somerset Council,10801201,HX1,Property Insurance,Z99,Outside Revenue Accounts,REDACTED,04/02/2016,814.34
Bath and North East Somerset Council,80555086,PG1,Rent Allowances,P10,Finance & Efficiency,REDACTED,04/02/2016,518.48
Bath and North East Somerset Council,10801203,LJ1,Consultants Fees,P04,Leader,REDACTED,04/02/2016,1442.00
Bath and North East Somerset Council,80555155,PG1,Rent Allowances,P10,Finance & Efficiency,REDACTED,04/02/2016,1080.00
Bath and North East Somerset Council,80554966,PG1,Rent Allowances,P10,Finance & Efficiency,REDACTED,04/02/2016,519.60
Bath and North East Somerset Council,80555019,PG1,Rent Allowances,P10,Finance & Efficiency,REDACTED,04/02/2016,1050.64
Bath and North East Somerset Council,80555100,PG1,Rent Allowances,P10,Finance & Efficiency,REDACTED,04/02/2016,542.96
Bath and North East Somerset Council,80555092,PG1,Rent Allowances,P10,Finance & Efficiency,REDACTED,04/02/2016,847.25
Bath and North East Somerset Council,10801327,3N7,Misc. Costs,P01,Transport,TMP (UK) LTD,04/02/2016,597.89
Bath and North East Somerset Council,10801275,LJ4,Contracts,P01,Transport,RADSTOCK TAXIS,04/02/2016,600.00
Bath and North East Somerset Council,80555097,PG1,Rent Allowances,P10,Finance & Efficiency,REDACTED,04/02/2016,507.68
Bath and North East Somerset Council,80555061,PG1,Rent Allowances,P10,Finance & Efficiency,REDACTED,04/02/2016,572.36
Bath and North East Somerset Council,80555112,PG1,Rent Allowances,P10,Finance & Efficiency,REDACTED,04/02/2016,668.92
Bath and North East Somerset Council,80555160,PG1,Rent Allowances,P10,Finance & Efficiency,REDACTED,04/02/2016,967.26
Bath and North East Somerset Council,80555116,PG1,Rent Allowances,P10,Finance & Efficiency,REDACTED,04/02/2016,550.16
Bath and North East Somerset Council,80555104,PG1,Rent Allowances,P10,Finance & Efficiency,REDACTED,04/02/2016,588.44
Bath and North East Somerset Council,80555026,PG1,Rent Allowances,P10,Finance & Efficiency,REDACTED,04/02/2016,579.92
Bath and North East Somerset Council,80555038,PG1,Rent Allowances,P10,Finance & Efficiency,REDACTED,04/02/2016,542.96
Bath and North East Somerset Council,80555063,PG1,Rent Allowances,P10,Finance & Efficiency,REDACTED,04/02/2016,576.92
Bath and North East Somerset Council,80555051,PG1,Rent Allowances,P10,Finance & Efficiency,REDACTED,04/02/2016,1085.92
Bath and North East Somerset Council,80555046,PG1,Rent Allowances,P10,Finance & Efficiency,REDACTED,04/02/2016,4722.34
Bath and North East Somerset Council,80555034,PG1,Rent Allowances,P10,Finance & Efficiency,REDACTED,04/02/2016,759.44
Bath and North East Somerset Council,80555057,PG1,Rent Allowances,P10,Finance & Efficiency,REDACTED,04/02/2016,944.40
Bath and North East Somerset Council,80555011,PG1,Rent Allowances,P10,Finance & Efficiency,REDACTED,04/02/2016,542.96
Bath and North East Somerset Council,80555037,PG1,Rent Allowances,P10,Finance & Efficiency,REDACTED,04/02/2016,669.20
Bath and North East Somerset Council,10801277,LJ4,Contracts,P01,Transport,FALLOWS TAXIS,04/02/2016,630.00
Bath and North East Somerset Council,80555044,PG1,Rent Allowances,P10,Finance & Efficiency,REDACTED,04/02/2016,668.92
Bath and North East Somerset Council,80555022,PG1,Rent Allowances,P10,Finance & Efficiency,REDACTED,04/02/2016,515.00
Bath and North East Somerset Council,10801290,LK1,Fees,P12,Children's Services,THE AMMERDOWN CENTRE LTD,04/02/2016,648.00
Bath and North East Somerset Council,10801207,KD1,Employees Public Transport,P04,Leader,ABBEY TAXIS LIMITED,04/02/2016,658.00
Bath and North East Somerset Council,10801271,LJ4,Contracts,P01,Transport,RUSSELLS OF BATH PRIVATE HIRE,04/02/2016,663.00
Bath and North East Somerset Council,80555082,PG1,Rent Allowances,P10,Finance & Efficiency,REDACTED,04/02/2016,600.00
Bath and North East Somerset Council,80555028,PG1,Rent Allowances,P10,Finance & Efficiency,REDACTED,04/02/2016,516.92
Bath and North East Somerset Council,80555168,PG1,Rent Allowances,P10,Finance & Efficiency,REDACTED,04/02/2016,578.33
Bath and North East Somerset Council,80555080,PG1,Rent Allowances,P10,Finance & Efficiency,REDACTED,04/02/2016,1414.32
Bath and North East Somerset Council,80555002,PG1,Rent Allowances,P10,Finance & Efficiency,REDACTED,04/02/2016,641.52
Bath and North East Somerset Council,80555048,PG1,Rent Allowances,P10,Finance & Efficiency,REDACTED,04/02/2016,507.68
Bath and North East Somerset Council,80554970,PG1,Rent Allowances,P10,Finance & Efficiency,REDACTED,04/02/2016,507.70
Bath and North East Somerset Council,80555118,PG1,Rent Allowances,P10,Finance & Efficiency,REDACTED,04/02/2016,784.60
Bath and North East Somerset Council,80555045,PG1,Rent Allowances,P10,Finance & Efficiency,REDACTED,04/02/2016,549.24
Bath and North East Somerset Council,80555060,PG1,Rent Allowances,P10,Finance & Efficiency,REDACTED,04/02/2016,1490.72
Bath and North East Somerset Council,80555111,PG1,Rent Allowances,P10,Finance & Efficiency,REDACTED,04/02/2016,586.88
Bath and North East Somerset Council,80555052,PG1,Rent Allowances,P10,Finance & Efficiency,REDACTED,04/02/2016,542.96
Bath and North East Somerset Council,80555162,PG1,Rent Allowances,P10,Finance & Efficiency,REDACTED,04/02/2016,700.30
Bath and North East Somerset Council,80555081,PG1,Rent Allowances,P10,Finance & Efficiency,REDACTED,04/02/2016,784.64
Bath and North East Somerset Council,80555090,PG1,Rent Allowances,P10,Finance & Efficiency,REDACTED,04/02/2016,539.78
Bath and North East Somerset Council,80555058,PG1,Rent Allowances,P10,Finance & Efficiency,REDACTED,04/02/2016,761.52
Bath and North East Somerset Council,80555059,PG1,Rent Allowances,P10,Finance & Efficiency,REDACTED,04/02/2016,2668.92
Bath and North East Somerset Council,80555066,PG1,Rent Allowances,P10,Finance & Efficiency,REDACTED,04/02/2016,553.84
Bath and North East Somerset Council,80555031,PG1,Rent Allowances,P10,Finance & Efficiency,REDACTED,04/02/2016,606.00
Bath and North East Somerset Council,80555099,PG1,Rent Allowances,P10,Finance & Efficiency,REDACTED,04/02/2016,661.84
Bath and North East Somerset Council,80555062,PG1,Rent Allowances,P10,Finance & Efficiency,REDACTED,04/02/2016,864.38
Bath and North East Somerset Council,80555072,PG1,Rent Allowances,P10,Finance & Efficiency,REDACTED,04/02/2016,549.04
Bath and North East Somerset Council,80554978,PG1,Rent Allowances,P10,Finance & Efficiency,REDACTED,04/02/2016,564.88
Bath and North East Somerset Council,80555021,PG1,Rent Allowances,P10,Finance & Efficiency,REDACTED,04/02/2016,613.37
Bath and North East Somerset Council,10801355,3F7,External Fees,P10,Finance & Efficiency,CAPITA SYMONDS,04/02/2016,740.00
Bath and North East Somerset Council,80555067,PG1,Rent Allowances,P10,Finance & Efficiency,NEXT LINK,04/02/2016,4537.96
Bath and North East Somerset Council,10801397,LP5,Software Support,P10,Finance & Efficiency,METRIC GROUP LIMITED,04/02/2016,769.50
Bath and North East Somerset Council,10801244,EA1,Training,P12,Children's Services,UNIVERSITY OF BRISTOL,04/02/2016,775.00
Bath and North East Somerset Council,10801270,LJ4,Contracts,P01,Transport,RIVERSIDE TAXIS,04/02/2016,795.00
Bath and North East Somerset Council,80555069,PG1,Rent Allowances,P10,Finance & Efficiency,OPTIONS FOR LIVING LTD,04/02/2016,2030.76
Bath and North East Somerset Council,80555056,PG1,Rent Allowances,P10,Finance & Efficiency,P.E.O.P.L.E.,04/02/2016,4994.23
Bath and North East Somerset Council,80554993,PG1,Rent Allowances,P10,Finance & Efficiency,PEGASUS PROPERTIES,04/02/2016,1684.28
Bath and North East Somerset Council,10801383,KD1,Employees Public Transport,P10,Finance & Efficiency,ABBEY TAXIS LIMITED,04/02/2016,835.24
Bath and North East Somerset Council,10801256,LJ4,Contracts,P01,Transport,HIGHWAY TAXIS & TRAVEL,04/02/2016,855.00
Bath and North East Somerset Council,10800944,3G1,Grants/Advances,P11,Adult Social Care & Health,A & R MILES LTD,04/02/2016,891.00
Bath and North East Somerset Council,80555012,PG1,Rent Allowances,P10,Finance & Efficiency,PLACES FOR PEOPLE HOMES,04/02/2016,5101.62
Bath and North East Somerset Council,80555071,PG1,Rent Allowances,P10,Finance & Efficiency,PREMIER LETTINGS,04/02/2016,530.76
Bath and North East Somerset Council,10801270,LJ4,Contracts,P01,Transport,RIVERSIDE TAXIS,04/02/2016,924.00
Bath and North East Somerset Council,10801253,LJ4,Contracts,P01,Transport,STEVE WARREN TRANSPORT SERVICES LTD,04/02/2016,962.00
Bath and North East Somerset Council,10800951,3G1,Grants/Advances,P11,Adult Social Care & Health,POWERGUARDS RAMPING SYSTEMS LTD,04/02/2016,970.00
Bath and North East Somerset Council,10801371,3F7,External Fees,P10,Finance & Efficiency,CO-CHANNEL ELECTRONICS LIMITED,04/02/2016,982.50
Bath and North East Somerset Council,10801369,HA3,Planned Maintenance,P10,Finance & Efficiency,OGIER ELECTRONICS LTD,04/02/2016,995.00
Bath and North East Somerset Council,10801340,3F7,External Fees,P10,Finance & Efficiency,CAPITA SYMONDS,04/02/2016,1110.00
Bath and North East Somerset Council,80555001,PG1,Rent Allowances,P10,Finance & Efficiency,SANCTUARY HOUSING ASSOCIATION,04/02/2016,974.48
Bath and North East Somerset Council,10801205,LJ3,Other Services to the Council,P14,Community Services,GREENMAN ENVIRONMENTAL MANAGEMENT,04/02/2016,1130.00
Bath and North East Somerset Council,10800885,3N7,Misc. Costs,P13,Economic Development,CLIVEDEN CONSERVATION WORKSHOP,04/02/2016,1147.00
Bath and North East Somerset Council,80555119,PG1,Rent Allowances,P10,Finance & Efficiency,SELWOOD HOUSING,04/02/2016,578.80
Bath and North East Somerset Council,10801463,3F7,External Fees,P12,Children's Services,BBA ARCHITECTS,04/02/2016,1250.00
Bath and North East Somerset Council,10801293,LJ2,Legal Fees,P12,Children's Services,PSYCHOLOGY ASSOCIATES,04/02/2016,1257.50
Bath and North East Somerset Council,10801274,LJ4,Contracts,P01,Transport,RUSSELLS OF BATH PRIVATE HIRE,04/02/2016,1260.50
Bath and North East Somerset Council,10801254,LJ4,Contracts,P01,Transport,STEVE WARREN TRANSPORT SERVICES LTD,04/02/2016,1264.00
Bath and North East Somerset Council,10801272,LJ4,Contracts,P01,Transport,RUSSELLS OF BATH PRIVATE HIRE,04/02/2016,1273.00
Bath and North East Somerset Council,80555088,PG1,Rent Allowances,P10,Finance & Efficiency,SHELAND LTD,04/02/2016,1246.16
Bath and North East Somerset Council,10801281,LJ4,Contracts,P01,Transport,ROMAN BATH TRANSPORT,04/02/2016,1306.50
Bath and North East Somerset Council,10801241,LM2,Foster Carer Allowances,P12,Children's Services,THE LEAVING CARE COMPANY LTD,04/02/2016,1334.00
Bath and North East Somerset Council,10800974,HA5,Service Contract PCB,P13,Economic Development,HORDERS,04/02/2016,1335.47
Bath and North East Somerset Council,10801267,LJ4,Contracts,P01,Transport,TRAVELBILLITY LTD,04/02/2016,1350.00
Bath and North East Somerset Council,10801282,LJ4,Contracts,P01,Transport,ROMAN BATH TRANSPORT,04/02/2016,1350.00
Bath and North East Somerset Council,10800985,3G1,Grants/Advances,P11,Adult Social Care & Health,REDACTED,04/02/2016,5246.67
Bath and North East Somerset Council,10801297,KD1,Employees Public Transport,P10,Finance & Efficiency,BATH SPA TAXIS,04/02/2016,1430.00
Bath and North East Somerset Council,10801284,LJ4,Contracts,P01,Transport,EAST BRISTOL CARS,04/02/2016,1440.00
Bath and North East Somerset Council,10801273,LJ4,Contracts,P01,Transport,RUSSELLS OF BATH PRIVATE HIRE,04/02/2016,1477.50
Bath and North East Somerset Council,10801242,LK1,Fees,P13,Economic Development,BATH FILM FESTIVAL,04/02/2016,1500.00
Bath and North East Somerset Council,10801268,LJ4,Contracts,P01,Transport,MR M L BRACEY T/A A B M MINIBUSES,04/02/2016,1536.00
Bath and North East Somerset Council,10801379,LJ4,Contracts,P14,Community Services,CRASH CAR BODY REPAIRS,04/02/2016,1543.92
Bath and North East Somerset Council,10801269,LJ4,Contracts,P01,Transport,MR M L BRACEY T/A A B M MINIBUSES,04/02/2016,1546.80
Bath and North East Somerset Council,10801261,LJ4,Contracts,P01,Transport,JASON KING LTD,04/02/2016,1840.00
Bath and North East Somerset Council,10800955,3G1,Grants/Advances,P11,Adult Social Care & Health,STANNAH LIFT SERVICES LIMITED,04/02/2016,1860.00
Bath and North East Somerset Council,10800931,LV3,Commissioned Services,P13,Economic Development,BATH TOURISM PLUS,04/02/2016,1891.55
Bath and North East Somerset Council,10800984,HA4,Responsive Maintenance PCB,P10,Finance & Efficiency,N K S CONTRACTS LTD,04/02/2016,1918.33
Bath and North East Somerset Council,10801280,LJ4,Contracts,P01,Transport,SOMERBUS LTD,04/02/2016,2000.00
Bath and North East Somerset Council,10801247,HA3,Planned Maintenance,P09,Homes & Planning,ZENITH INTERNATIONAL LTD,04/02/2016,2000.00
Bath and North East Somerset Council,10801265,LP4,Software Purchase,P04,Leader,HALAROSE LIMITED,04/02/2016,2000.00
Bath and North East Somerset Council,10800984,HA4,Responsive Maintenance PCB,P10,Finance & Efficiency,N K S CONTRACTS LTD,04/02/2016,2060.67
Bath and North East Somerset Council,10801262,LJ4,Contracts,P01,Transport,JASON KING LTD,04/02/2016,2090.00
Bath and North East Somerset Council,10801259,LJ4,Contracts,P01,Transport,JASON KING LTD,04/02/2016,2120.00
Bath and North East Somerset Council,10801264,HN3,Heating Oil,P11,Adult Social Care & Health,PACE FUELCARE LTD,04/02/2016,2155.79
Bath and North East Somerset Council,10801260,LJ4,Contracts,P01,Transport,JASON KING LTD,04/02/2016,2200.00
Bath and North East Somerset Council,10801333,3F7,External Fees,P01,Transport,BRUNEL PROJECT MANAGEMENT LTD,04/02/2016,2250.00
Bath and North East Somerset Council,10800442,HA5,Service Contract PCB,P10,Finance & Efficiency,MANNINGS FACILITIES MANAGEMENT LTD,04/02/2016,2395.84
Bath and North East Somerset Council,80555073,PG1,Rent Allowances,P10,Finance & Efficiency,REDACTED,04/02/2016,4643.38
Bath and North East Somerset Council,10800986,HA4,Responsive Maintenance PCB,P10,Finance & Efficiency,ADT FIRE & SECURITY PLC,04/02/2016,2457.81
Bath and North East Somerset Council,80555020,PG1,Rent Allowances,P10,Finance & Efficiency,THE BATH PROPERTY SHOP,04/02/2016,1052.32
Bath and North East Somerset Council,10801357,3F7,External Fees,P10,Finance & Efficiency,CAPITA SYMONDS,04/02/2016,2590.00
Bath and North East Somerset Council,10801219,HE1,General Maintenance,P01,Transport,E W HOBBS,04/02/2016,2601.50
Bath and North East Somerset Council,80554996,PG1,Rent Allowances,P10,Finance & Efficiency,THE GUINNESS PARTNERSHIP,04/02/2016,3213.22
Bath and North East Somerset Council,80554997,PG1,Rent Allowances,P10,Finance & Efficiency,THE GUINNESS TRUST,04/02/2016,3567.92
Bath and North East Somerset Council,10801255,LJ4,Contracts,P01,Transport,AVON MINI BUSES LTD,04/02/2016,2960.00
Bath and North East Somerset Council,10801235,TJ2,Leasing Charges,P13,Economic Development,BATH FESTIVALS TRUST,04/02/2016,3000.00
Bath and North East Somerset Council,10801236,LK1,Fees,P13,Economic Development,KILTER THEATRE CO.,04/02/2016,3000.00
Bath and North East Somerset Council,80555036,PG1,Rent Allowances,P10,Finance & Efficiency,TRUSTEASE PROPERTY MANAGEMENT LT,04/02/2016,1988.40
Bath and North East Somerset Council,10801368,LA1,Equipment Purchase (Non Medical),P04,Leader,HYPERTEC LTD,04/02/2016,3360.00
Bath and North East Somerset Council,10801256,LJ4,Contracts,P01,Transport,HIGHWAY TAXIS & TRAVEL,04/02/2016,3460.36
Bath and North East Somerset Council,10801288,LM2,Foster Carer Allowances,P12,Children's Services,AMICUS FOSTER CARE LIMITED,04/02/2016,3661.01
Bath and North East Somerset Council,10800169,LV1,Grants to Voluntary Bodies,P09,Homes & Planning,ECO RESIDENTIAL LTD,04/02/2016,3672.23
Bath and North East Somerset Council,10800950,3G1,Grants/Advances,P11,Adult Social Care & Health,OASIS BATHROOM CENTRE,04/02/2016,3675.00
Bath and North East Somerset Council,10801215,3N7,Misc. Costs,P10,Finance & Efficiency,PICKFORDS MOVE MANAGEMENT LTD,04/02/2016,3818.58
Bath and North East Somerset Council,10801445,LN4,Mobile Phones,P10,Finance & Efficiency,ORANGE PERSONAL COMMUNICATION,04/02/2016,3820.50
Bath and North East Somerset Council,10801367,LP5,Software Support,P10,Finance & Efficiency,IBM UNITED KINGDOM LTD,04/02/2016,3867.00
Bath and North East Somerset Council,10801287,YF2,Fees & Charges,P10,Finance & Efficiency,SMARTT SOFTWARE LTD,04/02/2016,4055.38
Bath and North East Somerset Council,10800953,3G1,Grants/Advances,P11,Adult Social Care & Health,TOTAL HYGIENE LTD,04/02/2016,4356.50
Bath and North East Somerset Council,10800974,HA4,Responsive Maintenance PCB,P10,Finance & Efficiency,HORDERS,04/02/2016,5046.17
Bath and North East Somerset Council,10801238,LM2,Foster Carer Allowances,P12,Children's Services,AMICUS FOSTER CARE LIMITED,04/02/2016,5070.98
Bath and North East Somerset Council,10801165,LX6,Bus Revenue Support,P01,Transport,SOMERBUS LTD,04/02/2016,5259.64
Bath and North East Somerset Council,10801366,HA3,Planned Maintenance,P10,Finance & Efficiency,ADT FIRE & SECURITY PLC,04/02/2016,5483.15
Bath and North East Somerset Council,10801275,LJ4,Contracts,P01,Transport,RADSTOCK TAXIS,04/02/2016,5763.00
Bath and North East Somerset Council,10801289,LM2,Foster Carer Allowances,P12,Children's Services,NCH ACTION FOR CHILDREN,04/02/2016,5770.12
Bath and North East Somerset Council,10801285,DB1,Agency Staff,P01,Transport,TOMMY JUKES,04/02/2016,30.00
Bath and North East Somerset Council,10794931,LM2,Foster Carer Allowances,P12,Children's Services,NCH ACTION FOR CHILDREN,04/02/2016,5962.46
Bath and North East Somerset Council,10797693,LM2,Foster Carer Allowances,P12,Children's Services,NCH ACTION FOR CHILDREN,04/02/2016,5962.46
Bath and North East Somerset Council,10801358,LX6,Bus Revenue Support,P01,Transport,CITISTAR LIMITED,04/02/2016,6292.27
Bath and North East Somerset Council,10801445,LN4,Mobile Phones,P10,Finance & Efficiency,ORANGE PERSONAL COMMUNICATION,04/02/2016,6550.03
Bath and North East Somerset Council,10801302,LJ3,Other Services to the Council,Z98,West of England Partnership,SCIENCE RESEARCH FOUNDATION,04/02/2016,6726.25
Bath and North East Somerset Council,10801353,KA1,Repairs & Maintenance,P14,Community Services,ATS EUROMASTER LTD,04/02/2016,7095.60
Bath and North East Somerset Council,10801285,LJ4,Contracts,P01,Transport,TOMMY JUKES,04/02/2016,10961.60
Bath and North East Somerset Council,10801276,3F7,External Fees,P01,Transport,BRUNEL PROJECT MANAGEMENT LTD,04/02/2016,8100.00
Bath and North East Somerset Council,10801283,LJ4,Contracts,P01,Transport,MINIBUS TRAVEL,04/02/2016,8692.24
Bath and North East Somerset Council,10801204,LJ3,Other Services to the Council,P14,Community Services,GREENMAN ENVIRONMENTAL MANAGEMENT,04/02/2016,10080.00
Bath and North East Somerset Council,10801279,LJ4,Contracts,P01,Transport,S. J. & J M MUNDEN T/A GUYAN MINI BUSES,04/02/2016,10994.80
Bath and North East Somerset Council,10801254,LJ4,Contracts,P01,Transport,STEVE WARREN TRANSPORT SERVICES LTD,04/02/2016,11538.00
Bath and North East Somerset Council,10801142,HP1,Rent Payable,P10,Finance & Efficiency,NHS PROPERTY SERVICES LTD,04/02/2016,11969.82
Bath and North East Somerset Council,10801240,LM1,Volunt Homes Placements Top/Up,P12,Children's Services,ST CHRISTOPHERS SCHOOL,04/02/2016,13888.37
Bath and North East Somerset Council,10801266,LJ4,Contracts,P01,Transport,FILERS COACHES,04/02/2016,14820.00
Bath and North East Somerset Council,10801239,LM1,Volunt Homes Placements Top/Up,P12,Children's Services,ST CHRISTOPHERS SCHOOL,04/02/2016,17360.46
Bath and North East Somerset Council,10801270,LJ4,Contracts,P01,Transport,RIVERSIDE TAXIS,04/02/2016,17989.50
Bath and North East Somerset Council,10800449,LK1,Fees,P04,Leader,THE CARE FORUM,04/02/2016,20500.00
Bath and North East Somerset Council,10801328,KA3,Fuel,P14,Community Services,FORD FUELS LTD,04/02/2016,20737.50
Bath and North East Somerset Council,10801380,KA3,Fuel,P14,Community Services,FORD FUELS LTD,04/02/2016,23985.00
Bath and North East Somerset Council,10801329,KA3,Fuel,P14,Community Services,FORD FUELS LTD,04/02/2016,24585.00
Bath and North East Somerset Council,80555093,PG1,Rent Allowances,P10,Finance & Efficiency,YELLOW PROPERTY,04/02/2016,2371.20
Bath and North East Somerset Council,80555406,LM8,Home Care,P11,Adult Social Care & Health,REDACTED,05/02/2016,99.75
Bath and North East Somerset Council,80555406,LM8,Home Care,P11,Adult Social Care & Health,REDACTED,05/02/2016,143.65
Bath and North East Somerset Council,80555406,LM8,Home Care,P11,Adult Social Care & Health,REDACTED,05/02/2016,143.65
Bath and North East Somerset Council,80555406,LM8,Home Care,P11,Adult Social Care & Health,REDACTED,05/02/2016,143.65
Bath and North East Somerset Council,80555406,LM8,Home Care,P11,Adult Social Care & Health,REDACTED,05/02/2016,143.65
Bath and North East Somerset Council,80555406,LM8,Home Care,P11,Adult Social Care & Health,REDACTED,05/02/2016,143.65
Bath and North East Somerset Council,80555397,LM8,Home Care,P11,Adult Social Care & Health,AGINCARE LIVE IN CARE SERVICES LTD,05/02/2016,0.06
Bath and North East Somerset Council,80555398,LM8,Home Care,P11,Adult Social Care & Health,AGINCARE LIVE IN CARE SERVICES LTD,05/02/2016,0.06
Bath and North East Somerset Council,80555399,LM8,Home Care,P11,Adult Social Care & Health,AGINCARE LIVE IN CARE SERVICES LTD,05/02/2016,700.00
Bath and North East Somerset Council,80555399,LM8,Home Care,P11,Adult Social Care & Health,AGINCARE LIVE IN CARE SERVICES LTD,05/02/2016,700.00
Bath and North East Somerset Council,80555397,LM8,Home Care,P11,Adult Social Care & Health,AGINCARE LIVE IN CARE SERVICES LTD,05/02/2016,765.00
Bath and North East Somerset Council,80555397,LM8,Home Care,P11,Adult Social Care & Health,AGINCARE LIVE IN CARE SERVICES LTD,05/02/2016,765.00
Bath and North East Somerset Council,80555398,LM8,Home Care,P11,Adult Social Care & Health,AGINCARE LIVE IN CARE SERVICES LTD,05/02/2016,765.00
Bath and North East Somerset Council,80555398,LM8,Home Care,P11,Adult Social Care & Health,AGINCARE LIVE IN CARE SERVICES LTD,05/02/2016,765.00
Bath and North East Somerset Council,10790207,HA4,Responsive Maintenance PCB,P10,Finance & Efficiency,PJL LABORATORIES LTD,05/02/2016,20.00
Bath and North East Somerset Council,10790207,HA4,Responsive Maintenance PCB,P10,Finance & Efficiency,PJL LABORATORIES LTD,05/02/2016,50.00
Bath and North East Somerset Council,80555420,LA7,Purchases for Resale,P13,Economic Development,MILLA MADDERN,05/02/2016,50.40
Bath and North East Somerset Council,80555419,LA7,Purchases for Resale,P13,Economic Development,MILLA MADDERN,05/02/2016,63.12
Bath and North East Somerset Council,80555419,LA7,Purchases for Resale,P13,Economic Development,MILLA MADDERN,05/02/2016,75.60
Bath and North East Somerset Council,80555342,LM8,Home Care,P11,Adult Social Care & Health,CANDLELIGHT HOMECARE SERVICES LTD,05/02/2016,796.00
Bath and North East Somerset Council,80555342,LM8,Home Care,P11,Adult Social Care & Health,CANDLELIGHT HOMECARE SERVICES LTD,05/02/2016,796.00
Bath and North East Somerset Council,80555342,LM8,Home Care,P11,Adult Social Care & Health,CANDLELIGHT HOMECARE SERVICES LTD,05/02/2016,796.00
Bath and North East Somerset Council,80555342,LM8,Home Care,P11,Adult Social Care & Health,CANDLELIGHT HOMECARE SERVICES LTD,05/02/2016,796.00
Bath and North East Somerset Council,10801422,DB1,Agency Staff,P01,Transport,MARIAN CALINOIU (MARIO PRIVATE HIRE LTD),05/02/2016,120.00
Bath and North East Somerset Council,80555419,LA7,Purchases for Resale,P13,Economic Development,MILLA MADDERN,05/02/2016,136.08
Bath and North East Somerset Council,80555435,PG1,Rent Allowances,P10,Finance & Efficiency,CURO,05/02/2016,1000.00
Bath and North East Somerset Council,80555436,PG1,Rent Allowances,P10,Finance & Efficiency,CURO,05/02/2016,1000.00
Bath and North East Somerset Council,80555438,PG1,Rent Allowances,P10,Finance & Efficiency,CURO,05/02/2016,25171.78
Bath and North East Somerset Council,80555437,PG1,Rent Allowances,P10,Finance & Efficiency,CURO,05/02/2016,80054.73
Bath and North East Somerset Council,80555419,LA7,Purchases for Resale,P13,Economic Development,MILLA MADDERN,05/02/2016,186.31
Bath and North East Somerset Council,80555416,LA7,Purchases for Resale,P13,Economic Development,GRANTHAM BOOK SERVICES LTD,05/02/2016,206.20
Bath and North East Somerset Council,10801318,LA2,Training Materials,P12,Children's Services,HENRY,05/02/2016,272.00
Bath and North East Somerset Council,80555416,LA7,Purchases for Resale,P13,Economic Development,GRANTHAM BOOK SERVICES LTD,05/02/2016,288.22
Bath and North East Somerset Council,10801296,KD1,Employees Public Transport,P10,Finance & Efficiency,CT COACHES,05/02/2016,294.50
Bath and North East Somerset Council,10801537,3N7,Misc. Costs,P13,Economic Development,JONES LANG LASALLE LTD,05/02/2016,300.00
Bath and North East Somerset Council,10801296,KE3,Transport & Travel,P10,Finance & Efficiency,CT COACHES,05/02/2016,310.00
Bath and North East Somerset Council,10801296,KE3,Transport & Travel,P10,Finance & Efficiency,CT COACHES,05/02/2016,320.00
Bath and North East Somerset Council,10801318,LA2,Training Materials,P12,Children's Services,HENRY,05/02/2016,400.00
Bath and North East Somerset Council,10801296,KD1,Employees Public Transport,P10,Finance & Efficiency,CT COACHES,05/02/2016,420.00
Bath and North East Somerset Council,10801473,LJ2,Legal Fees,P12,Children's Services,3PB BARRISTERS,05/02/2016,425.00
Bath and North East Somerset Council,10801066,3C4,Building Works,P12,Children's Services,STREBEL LTD,05/02/2016,454.00
Bath and North East Somerset Council,80555419,LA7,Purchases for Resale,P13,Economic Development,MILLA MADDERN,05/02/2016,462.00
Bath and North East Somerset Council,10801496,HA4,Responsive Maintenance PCB,P10,Finance & Efficiency,ADT FIRE & SECURITY PLC,05/02/2016,465.24
Bath and North East Somerset Council,80555427,LA7,Purchases for Resale,P13,Economic Development,CAMBROOKE FINE ART PUBL. LTD,05/02/2016,497.34
Bath and North East Somerset Council,80555255,LJ4,Contracts,P11,Adult Social Care & Health,Dr Blackwell & Partners,05/02/2016,503.00
Bath and North East Somerset Council,80555214,LJ4,Contracts,P11,Adult Social Care & Health,Hillcrest Surgery,05/02/2016,506.00
Bath and North East Somerset Council,80555201,LJ4,Contracts,P11,Adult Social Care & Health,Fairfield Park Health Centre,05/02/2016,516.00
Bath and North East Somerset Council,80555423,LA7,Purchases for Resale,P13,Economic Development,THAT LEAF COMPANY LTD,05/02/2016,520.25
Bath and North East Somerset Council,80555183,LJ4,Contracts,P11,Adult Social Care & Health,WEST VIEW SURGERY,05/02/2016,521.00
Bath and North East Somerset Council,80555414,LA7,Purchases for Resale,P13,Economic Development,ELIZA GRACIOUS LTD,05/02/2016,523.80
Bath and North East Somerset Council,80555210,LJ4,Contracts,P11,Adult Social Care & Health,Drs T J Gollin W A Coppock & P Guy,05/02/2016,531.00
Bath and North East Somerset Council,80555211,LJ4,Contracts,P11,Adult Social Care & Health,Drs T J Gollin W A Coppock & P Guy,05/02/2016,533.00
Bath and North East Somerset Council,10790207,HA4,Responsive Maintenance PCB,P10,Finance & Efficiency,PJL LABORATORIES LTD,05/02/2016,535.00
Bath and North East Somerset Council,80555189,LJ4,Contracts,P11,Adult Social Care & Health,Chew Medical Practice,05/02/2016,547.00
Bath and North East Somerset Council,10801360,LJ1,Consultants Fees,P09,Homes & Planning,ARK HOUSING CONSULTANCY LLP,05/02/2016,550.00
Bath and North East Somerset Council,80555249,LJ4,Contracts,P11,Adult Social Care & Health,Somerton House Surgery,05/02/2016,556.00
Bath and North East Somerset Council,80555182,LJ4,Contracts,P11,Adult Social Care & Health,WEST VIEW SURGERY,05/02/2016,565.00
Bath and North East Somerset Council,80555260,LJ4,Contracts,P11,Adult Social Care & Health,St James Surgery,05/02/2016,572.50
Bath and North East Somerset Council,80555264,LJ4,Contracts,P11,Adult Social Care & Health,St James Surgery,05/02/2016,582.00
Bath and North East Somerset Council,80555236,LJ4,Contracts,P11,Adult Social Care & Health,Oldfield Surgery,05/02/2016,590.00
Bath and North East Somerset Council,80555353,LL3,Supported Living,P11,Adult Social Care & Health,REDACTED,05/02/2016,330.00
Bath and North East Somerset Council,80555353,LL3,Supported Living,P11,Adult Social Care & Health,REDACTED,05/02/2016,330.00
Bath and North East Somerset Council,80555353,LL3,Supported Living,P11,Adult Social Care & Health,REDACTED,05/02/2016,330.00
Bath and North East Somerset Council,80555230,LJ4,Contracts,P11,Adult Social Care & Health,"Dr Prees, Wernham & Weldon",05/02/2016,610.00
Bath and North East Somerset Council,80555196,LJ4,Contracts,P11,Adult Social Care & Health,DR ROY & PARTNERS T/A ELM HAYES SURGERY,05/02/2016,611.00
Bath and North East Somerset Council,80555202,LJ4,Contracts,P11,Adult Social Care & Health,Fairfield Park Health Centre,05/02/2016,638.00
Bath and North East Somerset Council,10801370,HA2,Servicing,P13,Economic Development,ASHTON AIR CONDITIONING SERVICES LIMITED,05/02/2016,640.00
Bath and North East Somerset Council,10801505,3N7,Misc. Costs,P10,Finance & Efficiency,HARROW GREEN,05/02/2016,645.00
Bath and North East Somerset Council,80555272,LJ4,Contracts,P11,Adult Social Care & Health,St Michaels Partnership,05/02/2016,650.00
Bath and North East Somerset Council,80555198,LJ4,Contracts,P11,Adult Social Care & Health,DR ROY & PARTNERS T/A ELM HAYES SURGERY,05/02/2016,652.00
Bath and North East Somerset Council,80555228,LJ4,Contracts,P11,Adult Social Care & Health,"Drs Wharton, Cooper, Grabham & Brooks",05/02/2016,656.00
Bath and North East Somerset Council,80555428,LA7,Purchases for Resale,P13,Economic Development,COTSWOLD LAVENDER,05/02/2016,659.40
Bath and North East Somerset Council,80555254,LJ4,Contracts,P11,Adult Social Care & Health,Dr Blackwell & Partners,05/02/2016,668.00
Bath and North East Somerset Council,80555420,LA7,Purchases for Resale,P13,Economic Development,MILLA MADDERN,05/02/2016,699.30
Bath and North East Somerset Council,80555240,LJ4,Contracts,P11,Adult Social Care & Health,"DR TILLEY, STAGG, STANDING, BRUNSKILL & GARDNER-THORPE",05/02/2016,702.00
Bath and North East Somerset Council,80555237,LJ4,Contracts,P11,Adult Social Care & Health,Oldfield Surgery,05/02/2016,706.00
Bath and North East Somerset Council,10801402,LJ4,Contracts,P01,Transport,R E & V P JEFFRIES,05/02/2016,1853.64
Bath and North East Somerset Council,80555433,LA7,Purchases for Resale,P13,Economic Development,ST JUSTIN CORNWALL LIMITED,05/02/2016,740.00
Bath and North East Somerset Council,80555188,LJ4,Contracts,P11,Adult Social Care & Health,Chew Medical Practice,05/02/2016,755.00
Bath and North East Somerset Council,80555259,LJ4,Contracts,P11,Adult Social Care & Health,Dr G Jacson & Partners,05/02/2016,766.00
Bath and North East Somerset Council,10801184,LJ4,Contracts,P11,Adult Social Care & Health,SIRONA CARE SERVICES LTD,05/02/2016,825.08
Bath and North East Somerset Council,10801335,LA2,Training Materials,P04,Leader,HALAROSE LIMITED,05/02/2016,860.00
Bath and North East Somerset Council,80555250,LJ4,Contracts,P11,Adult Social Care & Health,Somerton House Surgery,05/02/2016,868.00
Bath and North East Somerset Council,80555375,LL3,Supported Living,P11,Adult Social Care & Health,PRESTIGE NURSING HEALTHCARE,05/02/2016,366.39
Bath and North East Somerset Council,80555373,LL3,Supported Living,P11,Adult Social Care & Health,PRESTIGE NURSING HEALTHCARE,05/02/2016,422.59
Bath and North East Somerset Council,80555373,LL3,Supported Living,P11,Adult Social Care & Health,PRESTIGE NURSING HEALTHCARE,05/02/2016,735.19
Bath and North East Somerset Council,80555375,LL3,Supported Living,P11,Adult Social Care & Health,PRESTIGE NURSING HEALTHCARE,05/02/2016,735.19
Bath and North East Somerset Council,80555376,LL3,Supported Living,P11,Adult Social Care & Health,PRESTIGE NURSING HEALTHCARE,05/02/2016,735.19
Bath and North East Somerset Council,80555377,LL3,Supported Living,P11,Adult Social Care & Health,PRESTIGE NURSING HEALTHCARE,05/02/2016,735.19
Bath and North East Somerset Council,80555378,LL3,Supported Living,P11,Adult Social Care & Health,PRESTIGE NURSING HEALTHCARE,05/02/2016,735.19
Bath and North East Somerset Council,80555379,LL3,Supported Living,P11,Adult Social Care & Health,PRESTIGE NURSING HEALTHCARE,05/02/2016,2532.01
Bath and North East Somerset Council,80555382,LL3,Supported Living,P11,Adult Social Care & Health,PRESTIGE NURSING HEALTHCARE,05/02/2016,2740.08
Bath and North East Somerset Council,80555348,LM8,Home Care,P11,Adult Social Care & Health,PRESTIGE NURSING HEALTHCARE,05/02/2016,2980.32
Bath and North East Somerset Council,80555384,LL3,Supported Living,P11,Adult Social Care & Health,PRESTIGE NURSING HEALTHCARE,05/02/2016,4421.88
Bath and North East Somerset Council,80555347,LM8,Home Care,P11,Adult Social Care & Health,PRESTIGE NURSING HEALTHCARE,05/02/2016,5824.80
Bath and North East Somerset Council,80555431,LA7,Purchases for Resale,P13,Economic Development,RB CERAMICS LTD,05/02/2016,910.00
Bath and North East Somerset Council,80555344,LM6,Nursing Care,P11,Adult Social Care & Health,REDACTED,05/02/2016,107.40
Bath and North East Somerset Council,80555344,LM6,Nursing Care,P11,Adult Social Care & Health,REDACTED,05/02/2016,138.12
Bath and North East Somerset Council,80555344,LM6,Nursing Care,P11,Adult Social Care & Health,REDACTED,05/02/2016,138.12
Bath and North East Somerset Council,80555344,LM6,Nursing Care,P11,Adult Social Care & Health,REDACTED,05/02/2016,138.12
Bath and North East Somerset Council,80555344,LM6,Nursing Care,P11,Adult Social Care & Health,REDACTED,05/02/2016,138.12
Bath and North East Somerset Council,80555344,LM6,Nursing Care,P11,Adult Social Care & Health,REDACTED,05/02/2016,138.12
Bath and North East Somerset Council,80555372,LL3,Supported Living,P11,Adult Social Care & Health,REDACTED,05/02/2016,145.00
Bath and North East Somerset Council,80555372,LL3,Supported Living,P11,Adult Social Care & Health,REDACTED,05/02/2016,145.00
Bath and North East Somerset Council,80555372,LL3,Supported Living,P11,Adult Social Care & Health,REDACTED,05/02/2016,145.00
Bath and North East Somerset Council,80555372,LL3,Supported Living,P11,Adult Social Care & Health,REDACTED,05/02/2016,145.00
Bath and North East Somerset Council,80555336,LM8,Home Care,P11,Adult Social Care & Health,ROBERT SAGE LTD T/A PRESTIGE NURSING PAYROLL,05/02/2016,3.00
Bath and North East Somerset Council,80555336,LM8,Home Care,P11,Adult Social Care & Health,ROBERT SAGE LTD T/A PRESTIGE NURSING PAYROLL,05/02/2016,165.06
Bath and North East Somerset Council,80555336,LM8,Home Care,P11,Adult Social Care & Health,ROBERT SAGE LTD T/A PRESTIGE NURSING PAYROLL,05/02/2016,660.44
Bath and North East Somerset Council,80555354,LL3,Supported Living,P11,Adult Social Care & Health,ROYAL MENCAP SOCIETY,05/02/2016,1271.27
Bath and North East Somerset Council,80555354,LL3,Supported Living,P11,Adult Social Care & Health,ROYAL MENCAP SOCIETY,05/02/2016,1323.71
Bath and North East Somerset Council,80555354,LL3,Supported Living,P11,Adult Social Care & Health,ROYAL MENCAP SOCIETY,05/02/2016,1323.71
Bath and North East Somerset Council,80555354,LL3,Supported Living,P11,Adult Social Care & Health,ROYAL MENCAP SOCIETY,05/02/2016,1323.71
Bath and North East Somerset Council,80555359,LL3,Supported Living,P11,Adult Social Care & Health,S.W.A.L.L.O.W. LTD,05/02/2016,49.55
Bath and North East Somerset Council,80555360,LL3,Supported Living,P11,Adult Social Care & Health,S.W.A.L.L.O.W. LTD,05/02/2016,77.36
Bath and North East Somerset Council,80555359,LL3,Supported Living,P11,Adult Social Care & Health,S.W.A.L.L.O.W. LTD,05/02/2016,97.86
Bath and North East Somerset Council,80555359,LL3,Supported Living,P11,Adult Social Care & Health,S.W.A.L.L.O.W. LTD,05/02/2016,97.86
Bath and North East Somerset Council,80555359,LL3,Supported Living,P11,Adult Social Care & Health,S.W.A.L.L.O.W. LTD,05/02/2016,97.86
Bath and North East Somerset Council,80555359,LL3,Supported Living,P11,Adult Social Care & Health,S.W.A.L.L.O.W. LTD,05/02/2016,97.86
Bath and North East Somerset Council,80555359,LL3,Supported Living,P11,Adult Social Care & Health,S.W.A.L.L.O.W. LTD,05/02/2016,97.86
Bath and North East Somerset Council,80555359,LL3,Supported Living,P11,Adult Social Care & Health,S.W.A.L.L.O.W. LTD,05/02/2016,116.87
Bath and North East Somerset Council,80555359,LL3,Supported Living,P11,Adult Social Care & Health,S.W.A.L.L.O.W. LTD,05/02/2016,116.87
Bath and North East Somerset Council,80555359,LL3,Supported Living,P11,Adult Social Care & Health,S.W.A.L.L.O.W. LTD,05/02/2016,116.87
Bath and North East Somerset Council,80555359,LL3,Supported Living,P11,Adult Social Care & Health,S.W.A.L.L.O.W. LTD,05/02/2016,116.87
Bath and North East Somerset Council,80555359,LL3,Supported Living,P11,Adult Social Care & Health,S.W.A.L.L.O.W. LTD,05/02/2016,116.87
Bath and North East Somerset Council,80555360,LL3,Supported Living,P11,Adult Social Care & Health,S.W.A.L.L.O.W. LTD,05/02/2016,157.36
Bath and North East Somerset Council,80555360,LL3,Supported Living,P11,Adult Social Care & Health,S.W.A.L.L.O.W. LTD,05/02/2016,157.36
Bath and North East Somerset Council,80555360,LL3,Supported Living,P11,Adult Social Care & Health,S.W.A.L.L.O.W. LTD,05/02/2016,157.36
Bath and North East Somerset Council,80555360,LL3,Supported Living,P11,Adult Social Care & Health,S.W.A.L.L.O.W. LTD,05/02/2016,157.36
Bath and North East Somerset Council,10801500,3N7,Misc. Costs,P10,Finance & Efficiency,N K S CONTRACTS LTD,05/02/2016,968.00
Bath and North East Somerset Council,80555281,LJ4,Contracts,P11,Adult Social Care & Health,University Medical Centre,05/02/2016,968.00
Bath and North East Somerset Council,80555258,LJ4,Contracts,P11,Adult Social Care & Health,Dr G Jacson & Partners,05/02/2016,1001.00
Bath and North East Somerset Council,80555343,LM8,Home Care,P11,Adult Social Care & Health,SAFE & SOUND HOMECARE SERVICES,05/02/2016,227.50
Bath and North East Somerset Council,80555343,LM8,Home Care,P11,Adult Social Care & Health,SAFE & SOUND HOMECARE SERVICES,05/02/2016,227.50
Bath and North East Somerset Council,80555343,LM8,Home Care,P11,Adult Social Care & Health,SAFE & SOUND HOMECARE SERVICES,05/02/2016,227.50
Bath and North East Somerset Council,80555343,LM8,Home Care,P11,Adult Social Care & Health,SAFE & SOUND HOMECARE SERVICES,05/02/2016,227.50
Bath and North East Somerset Council,80555343,LM8,Home Care,P11,Adult Social Care & Health,SAFE & SOUND HOMECARE SERVICES,05/02/2016,227.50
Bath and North East Somerset Council,80555343,LM8,Home Care,P11,Adult Social Care & Health,SAFE & SOUND HOMECARE SERVICES,05/02/2016,435.00
Bath and North East Somerset Council,80555343,LM8,Home Care,P11,Adult Social Care & Health,SAFE & SOUND HOMECARE SERVICES,05/02/2016,435.00
Bath and North East Somerset Council,10801332,3F7,External Fees,P13,Economic Development,ALF PERRY CONSULTING LTD,05/02/2016,1066.73
Bath and North East Somerset Council,80555343,LM8,Home Care,P11,Adult Social Care & Health,SAFE & SOUND HOMECARE SERVICES,05/02/2016,435.00
Bath and North East Somerset Council,80555343,LM8,Home Care,P11,Adult Social Care & Health,SAFE & SOUND HOMECARE SERVICES,05/02/2016,435.00
Bath and North East Somerset Council,80555343,LM8,Home Care,P11,Adult Social Care & Health,SAFE & SOUND HOMECARE SERVICES,05/02/2016,435.00
Bath and North East Somerset Council,80555343,LM8,Home Care,P11,Adult Social Care & Health,SAFE & SOUND HOMECARE SERVICES,05/02/2016,450.00
Bath and North East Somerset Council,10801449,LJ4,Contracts,P01,Transport,NEED TO GET HOME? TAXI COMPANY,05/02/2016,1071.00
Bath and North East Somerset Council,80555390,LL3,Supported Living,P11,Adult Social Care & Health,SELBORNE CARE LTD,05/02/2016,0.04
Bath and North East Somerset Council,80555390,LL3,Supported Living,P11,Adult Social Care & Health,SELBORNE CARE LTD,05/02/2016,189.17
Bath and North East Somerset Council,80555390,LL3,Supported Living,P11,Adult Social Care & Health,SELBORNE CARE LTD,05/02/2016,189.17
Bath and North East Somerset Council,80555390,LL3,Supported Living,P11,Adult Social Care & Health,SELBORNE CARE LTD,05/02/2016,189.17
Bath and North East Somerset Council,80555387,LL3,Supported Living,P11,Adult Social Care & Health,SELBORNE CARE LTD,05/02/2016,332.29
Bath and North East Somerset Council,80555387,LL3,Supported Living,P11,Adult Social Care & Health,SELBORNE CARE LTD,05/02/2016,332.29
Bath and North East Somerset Council,80555387,LL3,Supported Living,P11,Adult Social Care & Health,SELBORNE CARE LTD,05/02/2016,332.29
Bath and North East Somerset Council,80555387,LL3,Supported Living,P11,Adult Social Care & Health,SELBORNE CARE LTD,05/02/2016,332.29
Bath and North East Somerset Council,80555392,LL3,Supported Living,P11,Adult Social Care & Health,SELBORNE CARE LTD,05/02/2016,415.36
Bath and North East Somerset Council,80555392,LL3,Supported Living,P11,Adult Social Care & Health,SELBORNE CARE LTD,05/02/2016,415.36
Bath and North East Somerset Council,80555392,LL3,Supported Living,P11,Adult Social Care & Health,SELBORNE CARE LTD,05/02/2016,415.36
Bath and North East Somerset Council,80555392,LL3,Supported Living,P11,Adult Social Care & Health,SELBORNE CARE LTD,05/02/2016,415.36
Bath and North East Somerset Council,80555393,LL3,Supported Living,P11,Adult Social Care & Health,SELBORNE CARE LTD,05/02/2016,493.50
Bath and North East Somerset Council,80555393,LL3,Supported Living,P11,Adult Social Care & Health,SELBORNE CARE LTD,05/02/2016,493.50
Bath and North East Somerset Council,80555393,LL3,Supported Living,P11,Adult Social Care & Health,SELBORNE CARE LTD,05/02/2016,493.50
Bath and North East Somerset Council,10801434,LJ4,Contracts,P01,Transport,BUGLERS COACHES LIMITED,05/02/2016,1300.00
Bath and North East Somerset Council,80555415,LA7,Purchases for Resale,P13,Economic Development,FIKKERTS LTD,05/02/2016,1327.50
Bath and North East Somerset Council,10801406,LJ4,Contracts,P01,Transport,PLUTO ENTERPRISES LTD T/A A.F.C. TAXIS,05/02/2016,1500.00
Bath and North East Somerset Council,10801427,LJ4,Contracts,P01,Transport,BATH SPA TAXIS,05/02/2016,1520.00
Bath and North East Somerset Council,10801450,LJ4,Contracts,P01,Transport,MR C A HIGGS T/A LIBRA TRAVEL,05/02/2016,1600.00
Bath and North East Somerset Council,80555334,LM8,Home Care,P11,Adult Social Care & Health,STAR HOME CARE SERVICES LIMITED,05/02/2016,524.03
Bath and North East Somerset Council,80555340,LM8,Home Care,P11,Adult Social Care & Health,REDACTED,05/02/2016,44.80
Bath and North East Somerset Council,80555340,LM8,Home Care,P11,Adult Social Care & Health,REDACTED,05/02/2016,120.05
Bath and North East Somerset Council,80555340,LM8,Home Care,P11,Adult Social Care & Health,REDACTED,05/02/2016,120.05
Bath and North East Somerset Council,80555340,LM8,Home Care,P11,Adult Social Care & Health,REDACTED,05/02/2016,120.05
Bath and North East Somerset Council,80555340,LM8,Home Care,P11,Adult Social Care & Health,REDACTED,05/02/2016,120.05
Bath and North East Somerset Council,10801424,LJ4,Contracts,P01,Transport,MARIAN CALINOIU (MARIO PRIVATE HIRE LTD),05/02/2016,1800.00
Bath and North East Somerset Council,80555422,LA7,Purchases for Resale,P13,Economic Development,SOUTH BANK CENTRE,05/02/2016,1887.90
Bath and North East Somerset Council,80555410,LL3,Supported Living,P11,Adult Social Care & Health,SUPPORTED INDEPENDENCE,05/02/2016,473.28
Bath and North East Somerset Council,80555410,LL3,Supported Living,P11,Adult Social Care & Health,SUPPORTED INDEPENDENCE,05/02/2016,473.28
Bath and North East Somerset Council,80555410,LL3,Supported Living,P11,Adult Social Care & Health,SUPPORTED INDEPENDENCE,05/02/2016,473.28
Bath and North East Somerset Council,80555410,LL3,Supported Living,P11,Adult Social Care & Health,SUPPORTED INDEPENDENCE,05/02/2016,473.28
Bath and North East Somerset Council,10801251,LM1,Volunt Homes Placements Top/Up,P12,Children's Services,HERTFORDSHIRE COUNTY COUNCIL,05/02/2016,2000.00
Bath and North East Somerset Council,10801147,3F7,External Fees,P13,Economic Development,JUBB CONSULTING ENGINEERS LTD,05/02/2016,2051.25
Bath and North East Somerset Council,10801422,LJ4,Contracts,P01,Transport,MARIAN CALINOIU (MARIO PRIVATE HIRE LTD),05/02/2016,2200.00
Bath and North East Somerset Council,10801438,LJ4,Contracts,P01,Transport,CT COACHES,05/02/2016,2379.80
Bath and North East Somerset Council,10801414,LJ4,Contracts,P01,Transport,REDACTED,05/02/2016,1280.00
Bath and North East Somerset Council,10801417,LJ4,Contracts,P01,Transport,REDACTED,05/02/2016,2006.00
Bath and North East Somerset Council,10801416,LJ4,Contracts,P01,Transport,REDACTED,05/02/2016,2160.00
Bath and North East Somerset Council,10801452,LJ4,Contracts,P01,Transport,MR C A HIGGS T/A LIBRA TRAVEL,05/02/2016,2445.30
Bath and North East Somerset Council,10801453,LJ4,Contracts,P01,Transport,MR C A HIGGS T/A LIBRA TRAVEL,05/02/2016,2502.00
Bath and North East Somerset Council,80555409,LL3,Supported Living,P11,Adult Social Care & Health,THE BRANDON TRUST,05/02/2016,548.18
Bath and North East Somerset Council,80555409,LL3,Supported Living,P11,Adult Social Care & Health,THE BRANDON TRUST,05/02/2016,548.18
Bath and North East Somerset Council,80555408,LL3,Supported Living,P11,Adult Social Care & Health,THE BRANDON TRUST,05/02/2016,847.19
Bath and North East Somerset Council,80555408,LL3,Supported Living,P11,Adult Social Care & Health,THE BRANDON TRUST,05/02/2016,847.19
Bath and North East Somerset Council,10801451,LJ4,Contracts,P01,Transport,MR C A HIGGS T/A LIBRA TRAVEL,05/02/2016,2600.00
Bath and North East Somerset Council,10801455,LJ4,Contracts,P01,Transport,MR C A HIGGS T/A LIBRA TRAVEL,05/02/2016,2622.00
Bath and North East Somerset Council,10801420,LJ4,Contracts,P01,Transport,MARIAN CALINOIU (MARIO PRIVATE HIRE LTD),05/02/2016,2648.60
Bath and North East Somerset Council,10801425,LJ4,Contracts,P01,Transport,BUGLERS COACHES LIMITED,05/02/2016,2800.00
Bath and North East Somerset Council,10801448,LJ4,Contracts,P01,Transport,EAGLE COACHES LTD,05/02/2016,2848.10
Bath and North East Somerset Council,10801458,LJ4,Contracts,P01,Transport,MR C A HIGGS T/A LIBRA TRAVEL,05/02/2016,2907.00
Bath and North East Somerset Council,10801446,LJ4,Contracts,P01,Transport,EAGLE COACHES LTD,05/02/2016,2942.00
Bath and North East Somerset Council,10801412,LJ4,Contracts,P01,Transport,CENTURION TRAVEL LTD,05/02/2016,2970.00
Bath and North East Somerset Council,10801431,LJ4,Contracts,P01,Transport,BUGLERS COACHES LIMITED,05/02/2016,3000.00
Bath and North East Somerset Council,10801433,LJ4,Contracts,P01,Transport,BUGLERS COACHES LIMITED,05/02/2016,3040.00
Bath and North East Somerset Council,10801447,LJ4,Contracts,P01,Transport,EAGLE COACHES LTD,05/02/2016,3076.10
Bath and North East Somerset Council,10801407,LJ4,Contracts,P01,Transport,GLENVIC COACHES,05/02/2016,3230.00
Bath and North East Somerset Council,10801457,LJ4,Contracts,P01,Transport,MR C A HIGGS T/A LIBRA TRAVEL,05/02/2016,3420.00
Bath and North East Somerset Council,10801405,LJ4,Contracts,P01,Transport,BUGLERS COACHES LIMITED,05/02/2016,3600.00
Bath and North East Somerset Council,10801432,LJ4,Contracts,P01,Transport,BUGLERS COACHES LIMITED,05/02/2016,3600.00
Bath and North East Somerset Council,80555432,LA7,Purchases for Resale,P13,Economic Development,SOUTH BANK CENTRE,05/02/2016,3775.80
Bath and North East Somerset Council,10801399,LJ3,Other Services to the Council,P04,Leader,UNIVERSITY OF BATH,05/02/2016,4422.00
Bath and North East Somerset Council,10801502,HA4,Responsive Maintenance PCB,P10,Finance & Efficiency,N K S CONTRACTS LTD,05/02/2016,5084.41
Bath and North East Somerset Council,10801440,LJ4,Contracts,P01,Transport,ROAD RUNNER TAXI BUSES,05/02/2016,5338.12
Bath and North East Somerset Council,10801537,3N7,Misc. Costs,P13,Economic Development,JONES LANG LASALLE LTD,05/02/2016,5600.00
Bath and North East Somerset Council,10801438,LJ4,Contracts,P01,Transport,CT COACHES,05/02/2016,9548.00
Bath and North East Somerset Council,10801412,LJ4,Contracts,P01,Transport,CENTURION TRAVEL LTD,05/02/2016,12665.90
Bath and North East Somerset Council,10801444,LJ4,Contracts,P01,Transport,EAST HARPTREE COUNTRY CABS,05/02/2016,19264.36
Bath and North East Somerset Council,80555439,PB3,Payments to Other Establishments,P12,Children's Services,FOSSE WAY SCHOOL,05/02/2016,25000.00
Bath and North East Somerset Council,10801530,DB1,Agency Staff,P10,Finance & Efficiency,COMENSURA LTD,05/02/2016,71642.44
Bath and North East Somerset Council,10801398,3F7,External Fees,P13,Economic Development,ALUN GRIFFITHS (CONTRACTORS) LTD,05/02/2016,185071.80
Bath and North East Somerset Council,80555734,LM3,Residential Care,P11,Adult Social Care & Health,6 THE AVENUE -KEYNSHAM MENCAP,08/02/2016,577.87
Bath and North East Somerset Council,80555734,LM3,Residential Care,P11,Adult Social Care & Health,6 THE AVENUE -KEYNSHAM MENCAP,08/02/2016,577.87
Bath and North East Somerset Council,80555734,LM3,Residential Care,P11,Adult Social Care & Health,6 THE AVENUE -KEYNSHAM MENCAP,08/02/2016,583.65
Bath and North East Somerset Council,80555734,LM3,Residential Care,P11,Adult Social Care & Health,6 THE AVENUE -KEYNSHAM MENCAP,08/02/2016,583.65
Bath and North East Somerset Council,80555734,LM3,Residential Care,P11,Adult Social Care & Health,6 THE AVENUE -KEYNSHAM MENCAP,08/02/2016,583.65
Bath and North East Somerset Council,80555734,LM3,Residential Care,P11,Adult Social Care & Health,6 THE AVENUE -KEYNSHAM MENCAP,08/02/2016,583.65
Bath and North East Somerset Council,80555734,LM3,Residential Care,P11,Adult Social Care & Health,6 THE AVENUE -KEYNSHAM MENCAP,08/02/2016,583.65
Bath and North East Somerset Council,80555734,LM3,Residential Care,P11,Adult Social Care & Health,6 THE AVENUE -KEYNSHAM MENCAP,08/02/2016,583.65
Bath and North East Somerset Council,80555734,LM3,Residential Care,P11,Adult Social Care & Health,6 THE AVENUE -KEYNSHAM MENCAP,08/02/2016,663.83
Bath and North East Somerset Council,80555734,LM3,Residential Care,P11,Adult Social Care & Health,6 THE AVENUE -KEYNSHAM MENCAP,08/02/2016,663.83
Bath and North East Somerset Council,80555734,LM3,Residential Care,P11,Adult Social Care & Health,6 THE AVENUE -KEYNSHAM MENCAP,08/02/2016,675.61
Bath and North East Somerset Council,80555734,LM3,Residential Care,P11,Adult Social Care & Health,6 THE AVENUE -KEYNSHAM MENCAP,08/02/2016,675.61
Bath and North East Somerset Council,80555734,LM3,Residential Care,P11,Adult Social Care & Health,6 THE AVENUE -KEYNSHAM MENCAP,08/02/2016,981.65
Bath and North East Somerset Council,80555734,LM3,Residential Care,P11,Adult Social Care & Health,6 THE AVENUE -KEYNSHAM MENCAP,08/02/2016,981.65
Bath and North East Somerset Council,80555734,LM3,Residential Care,P11,Adult Social Care & Health,6 THE AVENUE -KEYNSHAM MENCAP,08/02/2016,1208.13
Bath and North East Somerset Council,80555734,LM3,Residential Care,P11,Adult Social Care & Health,6 THE AVENUE -KEYNSHAM MENCAP,08/02/2016,1208.13
Bath and North East Somerset Council,80555997,LL8,Individualised Budget,P11,Adult Social Care & Health,REDACTED,08/02/2016,357.00
Bath and North East Somerset Council,80555997,LL8,Individualised Budget,P11,Adult Social Care & Health,REDACTED,08/02/2016,357.00
Bath and North East Somerset Council,80555992,LL8,Individualised Budget,P11,Adult Social Care & Health,REDACTED,08/02/2016,1469.80
Bath and North East Somerset Council,80555992,LL8,Individualised Budget,P11,Adult Social Care & Health,REDACTED,08/02/2016,1469.80
Bath and North East Somerset Council,80555619,LM3,Residential Care,P11,Adult Social Care & Health,ALEXANDRA HOMES (BRISTOL) LTD,08/02/2016,1818.00
Bath and North East Somerset Council,80555619,LM3,Residential Care,P11,Adult Social Care & Health,ALEXANDRA HOMES (BRISTOL) LTD,08/02/2016,1818.00
Bath and North East Somerset Council,80555967,LL8,Individualised Budget,P11,Adult Social Care & Health,REDACTED,08/02/2016,840.00
Bath and North East Somerset Council,80555967,LL8,Individualised Budget,P11,Adult Social Care & Health,REDACTED,08/02/2016,840.00
Bath and North East Somerset Council,80555749,LM3,Residential Care,P11,Adult Social Care & Health,ANCHOR TRUST,08/02/2016,447.00
Bath and North East Somerset Council,80555749,LM3,Residential Care,P11,Adult Social Care & Health,ANCHOR TRUST,08/02/2016,447.00
Bath and North East Somerset Council,80555749,LM3,Residential Care,P11,Adult Social Care & Health,ANCHOR TRUST,08/02/2016,447.00
Bath and North East Somerset Council,80555749,LM3,Residential Care,P11,Adult Social Care & Health,ANCHOR TRUST,08/02/2016,447.00
Bath and North East Somerset Council,80555749,LM3,Residential Care,P11,Adult Social Care & Health,ANCHOR TRUST,08/02/2016,447.00
Bath and North East Somerset Council,80555749,LM3,Residential Care,P11,Adult Social Care & Health,ANCHOR TRUST,08/02/2016,447.00
Bath and North East Somerset Council,80555749,LM3,Residential Care,P11,Adult Social Care & Health,ANCHOR TRUST,08/02/2016,447.00
Bath and North East Somerset Council,80555749,LM3,Residential Care,P11,Adult Social Care & Health,ANCHOR TRUST,08/02/2016,447.00
Bath and North East Somerset Council,80555749,LM3,Residential Care,P11,Adult Social Care & Health,ANCHOR TRUST,08/02/2016,520.60
Bath and North East Somerset Council,80555749,LM3,Residential Care,P11,Adult Social Care & Health,ANCHOR TRUST,08/02/2016,520.60
Bath and North East Somerset Council,80555749,LM3,Residential Care,P11,Adult Social Care & Health,ANCHOR TRUST,08/02/2016,555.50
Bath and North East Somerset Council,80555749,LM3,Residential Care,P11,Adult Social Care & Health,ANCHOR TRUST,08/02/2016,555.50
Bath and North East Somerset Council,80555749,LM3,Residential Care,P11,Adult Social Care & Health,ANCHOR TRUST,08/02/2016,650.00
Bath and North East Somerset Council,80555749,LM3,Residential Care,P11,Adult Social Care & Health,ANCHOR TRUST,08/02/2016,650.00
Bath and North East Somerset Council,80555749,LM3,Residential Care,P11,Adult Social Care & Health,ANCHOR TRUST,08/02/2016,686.80
Bath and North East Somerset Council,80555749,LM3,Residential Care,P11,Adult Social Care & Health,ANCHOR TRUST,08/02/2016,686.80
Bath and North East Somerset Council,80555749,LM3,Residential Care,P11,Adult Social Care & Health,ANCHOR TRUST,08/02/2016,686.80
Bath and North East Somerset Council,80555749,LM3,Residential Care,P11,Adult Social Care & Health,ANCHOR TRUST,08/02/2016,686.80
Bath and North East Somerset Council,80555749,LM3,Residential Care,P11,Adult Social Care & Health,ANCHOR TRUST,08/02/2016,707.00
Bath and North East Somerset Council,80555749,LM3,Residential Care,P11,Adult Social Care & Health,ANCHOR TRUST,08/02/2016,707.00
Bath and North East Somerset Council,80555749,LM3,Residential Care,P11,Adult Social Care & Health,ANCHOR TRUST,08/02/2016,721.14
Bath and North East Somerset Council,80555749,LM3,Residential Care,P11,Adult Social Care & Health,ANCHOR TRUST,08/02/2016,721.14
Bath and North East Somerset Council,80555749,LM3,Residential Care,P11,Adult Social Care & Health,ANCHOR TRUST,08/02/2016,750.00
Bath and North East Somerset Council,80555749,LM3,Residential Care,P11,Adult Social Care & Health,ANCHOR TRUST,08/02/2016,750.00
Bath and North East Somerset Council,80555749,LM3,Residential Care,P11,Adult Social Care & Health,ANCHOR TRUST,08/02/2016,750.00
Bath and North East Somerset Council,80555749,LM3,Residential Care,P11,Adult Social Care & Health,ANCHOR TRUST,08/02/2016,750.00
Bath and North East Somerset Council,80555749,LM3,Residential Care,P11,Adult Social Care & Health,ANCHOR TRUST,08/02/2016,795.00
Bath and North East Somerset Council,80555749,LM3,Residential Care,P11,Adult Social Care & Health,ANCHOR TRUST,08/02/2016,795.00
Bath and North East Somerset Council,80555880,LL8,Individualised Budget,P11,Adult Social Care & Health,REDACTED,08/02/2016,346.50
Bath and North East Somerset Council,80555880,LL8,Individualised Budget,P11,Adult Social Care & Health,REDACTED,08/02/2016,346.50
Bath and North East Somerset Council,80556154,LL4,Direct Payments,P11,Adult Social Care & Health,REDACTED,08/02/2016,2265.35
Bath and North East Somerset Council,80556154,LL4,Direct Payments,P11,Adult Social Care & Health,REDACTED,08/02/2016,2265.35
Bath and North East Somerset Council,80555996,LL3,Supported Living,P11,Adult Social Care & Health,ARCH CARE SERVICES,08/02/2016,18.00
Bath and North East Somerset Council,80555996,LL3,Supported Living,P11,Adult Social Care & Health,ARCH CARE SERVICES,08/02/2016,18.00
Bath and North East Somerset Council,80555996,LL3,Supported Living,P11,Adult Social Care & Health,ARCH CARE SERVICES,08/02/2016,18.00
Bath and North East Somerset Council,80555996,LL3,Supported Living,P11,Adult Social Care & Health,ARCH CARE SERVICES,08/02/2016,18.00
Bath and North East Somerset Council,80555996,LL3,Supported Living,P11,Adult Social Care & Health,ARCH CARE SERVICES,08/02/2016,18.00
Bath and North East Somerset Council,80555996,LL3,Supported Living,P11,Adult Social Care & Health,ARCH CARE SERVICES,08/02/2016,18.00
Bath and North East Somerset Council,80555996,LL3,Supported Living,P11,Adult Social Care & Health,ARCH CARE SERVICES,08/02/2016,18.00
Bath and North East Somerset Council,80555996,LL3,Supported Living,P11,Adult Social Care & Health,ARCH CARE SERVICES,08/02/2016,18.00
Bath and North East Somerset Council,80555996,LL3,Supported Living,P11,Adult Social Care & Health,ARCH CARE SERVICES,08/02/2016,18.00
Bath and North East Somerset Council,80555996,LL3,Supported Living,P11,Adult Social Care & Health,ARCH CARE SERVICES,08/02/2016,18.00
Bath and North East Somerset Council,80555996,LL3,Supported Living,P11,Adult Social Care & Health,ARCH CARE SERVICES,08/02/2016,18.00
Bath and North East Somerset Council,80555996,LL3,Supported Living,P11,Adult Social Care & Health,ARCH CARE SERVICES,08/02/2016,18.00
Bath and North East Somerset Council,80555996,LL3,Supported Living,P11,Adult Social Care & Health,ARCH CARE SERVICES,08/02/2016,18.00
Bath and North East Somerset Council,80555996,LL3,Supported Living,P11,Adult Social Care & Health,ARCH CARE SERVICES,08/02/2016,18.00
Bath and North East Somerset Council,80555996,LL3,Supported Living,P11,Adult Social Care & Health,ARCH CARE SERVICES,08/02/2016,18.00
Bath and North East Somerset Council,80555996,LL3,Supported Living,P11,Adult Social Care & Health,ARCH CARE SERVICES,08/02/2016,18.00
Bath and North East Somerset Council,80555996,LL3,Supported Living,P11,Adult Social Care & Health,ARCH CARE SERVICES,08/02/2016,18.00
Bath and North East Somerset Council,80555996,LL3,Supported Living,P11,Adult Social Care & Health,ARCH CARE SERVICES,08/02/2016,18.00
Bath and North East Somerset Council,80555996,LL3,Supported Living,P11,Adult Social Care & Health,ARCH CARE SERVICES,08/02/2016,18.00
Bath and North East Somerset Council,80555996,LL3,Supported Living,P11,Adult Social Care & Health,ARCH CARE SERVICES,08/02/2016,18.00
Bath and North East Somerset Council,80555996,LL3,Supported Living,P11,Adult Social Care & Health,ARCH CARE SERVICES,08/02/2016,18.00
Bath and North East Somerset Council,80555996,LL3,Supported Living,P11,Adult Social Care & Health,ARCH CARE SERVICES,08/02/2016,18.00
Bath and North East Somerset Council,80555996,LL3,Supported Living,P11,Adult Social Care & Health,ARCH CARE SERVICES,08/02/2016,18.00
Bath and North East Somerset Council,80555996,LL3,Supported Living,P11,Adult Social Care & Health,ARCH CARE SERVICES,08/02/2016,18.00
Bath and North East Somerset Council,80555996,LL3,Supported Living,P11,Adult Social Care & Health,ARCH CARE SERVICES,08/02/2016,18.00
Bath and North East Somerset Council,80555996,LL3,Supported Living,P11,Adult Social Care & Health,ARCH CARE SERVICES,08/02/2016,18.00
Bath and North East Somerset Council,80555996,LL3,Supported Living,P11,Adult Social Care & Health,ARCH CARE SERVICES,08/02/2016,18.00
Bath and North East Somerset Council,80555996,LL3,Supported Living,P11,Adult Social Care & Health,ARCH CARE SERVICES,08/02/2016,18.00
Bath and North East Somerset Council,80555996,LL3,Supported Living,P11,Adult Social Care & Health,ARCH CARE SERVICES,08/02/2016,18.00
Bath and North East Somerset Council,80555996,LL3,Supported Living,P11,Adult Social Care & Health,ARCH CARE SERVICES,08/02/2016,18.00
Bath and North East Somerset Council,80555996,LL3,Supported Living,P11,Adult Social Care & Health,ARCH CARE SERVICES,08/02/2016,18.00
Bath and North East Somerset Council,80555996,LL3,Supported Living,P11,Adult Social Care & Health,ARCH CARE SERVICES,08/02/2016,18.00
Bath and North East Somerset Council,80555996,LL3,Supported Living,P11,Adult Social Care & Health,ARCH CARE SERVICES,08/02/2016,18.00
Bath and North East Somerset Council,80555996,LL3,Supported Living,P11,Adult Social Care & Health,ARCH CARE SERVICES,08/02/2016,18.00
Bath and North East Somerset Council,80555996,LL3,Supported Living,P11,Adult Social Care & Health,ARCH CARE SERVICES,08/02/2016,18.00
Bath and North East Somerset Council,80555996,LL3,Supported Living,P11,Adult Social Care & Health,ARCH CARE SERVICES,08/02/2016,18.00
Bath and North East Somerset Council,80555996,LL3,Supported Living,P11,Adult Social Care & Health,ARCH CARE SERVICES,08/02/2016,18.00
Bath and North East Somerset Council,80555996,LL3,Supported Living,P11,Adult Social Care & Health,ARCH CARE SERVICES,08/02/2016,18.00
Bath and North East Somerset Council,80555996,LL3,Supported Living,P11,Adult Social Care & Health,ARCH CARE SERVICES,08/02/2016,18.00
Bath and North East Somerset Council,80555996,LL3,Supported Living,P11,Adult Social Care & Health,ARCH CARE SERVICES,08/02/2016,18.00
Bath and North East Somerset Council,80555996,LL3,Supported Living,P11,Adult Social Care & Health,ARCH CARE SERVICES,08/02/2016,18.00
Bath and North East Somerset Council,80555996,LL3,Supported Living,P11,Adult Social Care & Health,ARCH CARE SERVICES,08/02/2016,18.00
Bath and North East Somerset Council,80555996,LL3,Supported Living,P11,Adult Social Care & Health,ARCH CARE SERVICES,08/02/2016,18.00
Bath and North East Somerset Council,80555996,LL3,Supported Living,P11,Adult Social Care & Health,ARCH CARE SERVICES,08/02/2016,18.00
Bath and North East Somerset Council,80555996,LL3,Supported Living,P11,Adult Social Care & Health,ARCH CARE SERVICES,08/02/2016,18.00
Bath and North East Somerset Council,80555996,LL3,Supported Living,P11,Adult Social Care & Health,ARCH CARE SERVICES,08/02/2016,18.00
Bath and North East Somerset Council,80555996,LL3,Supported Living,P11,Adult Social Care & Health,ARCH CARE SERVICES,08/02/2016,18.00
Bath and North East Somerset Council,80555996,LL3,Supported Living,P11,Adult Social Care & Health,ARCH CARE SERVICES,08/02/2016,18.00
Bath and North East Somerset Council,80555996,LL3,Supported Living,P11,Adult Social Care & Health,ARCH CARE SERVICES,08/02/2016,18.00
Bath and North East Somerset Council,80555996,LL3,Supported Living,P11,Adult Social Care & Health,ARCH CARE SERVICES,08/02/2016,18.00
Bath and North East Somerset Council,80555996,LL3,Supported Living,P11,Adult Social Care & Health,ARCH CARE SERVICES,08/02/2016,18.00
Bath and North East Somerset Council,80555996,LL3,Supported Living,P11,Adult Social Care & Health,ARCH CARE SERVICES,08/02/2016,18.00
Bath and North East Somerset Council,80555996,LL3,Supported Living,P11,Adult Social Care & Health,ARCH CARE SERVICES,08/02/2016,18.00
Bath and North East Somerset Council,80555996,LL3,Supported Living,P11,Adult Social Care & Health,ARCH CARE SERVICES,08/02/2016,18.00
Bath and North East Somerset Council,80555996,LL3,Supported Living,P11,Adult Social Care & Health,ARCH CARE SERVICES,08/02/2016,18.00
Bath and North East Somerset Council,80555996,LL3,Supported Living,P11,Adult Social Care & Health,ARCH CARE SERVICES,08/02/2016,18.00
Bath and North East Somerset Council,80555996,LL3,Supported Living,P11,Adult Social Care & Health,ARCH CARE SERVICES,08/02/2016,18.00
Bath and North East Somerset Council,80555996,LL3,Supported Living,P11,Adult Social Care & Health,ARCH CARE SERVICES,08/02/2016,18.00
Bath and North East Somerset Council,80555996,LL3,Supported Living,P11,Adult Social Care & Health,ARCH CARE SERVICES,08/02/2016,18.00
Bath and North East Somerset Council,80555996,LL3,Supported Living,P11,Adult Social Care & Health,ARCH CARE SERVICES,08/02/2016,18.00
Bath and North East Somerset Council,80555996,LL3,Supported Living,P11,Adult Social Care & Health,ARCH CARE SERVICES,08/02/2016,18.00
Bath and North East Somerset Council,80555996,LL3,Supported Living,P11,Adult Social Care & Health,ARCH CARE SERVICES,08/02/2016,18.00
Bath and North East Somerset Council,80555996,LL3,Supported Living,P11,Adult Social Care & Health,ARCH CARE SERVICES,08/02/2016,18.00
Bath and North East Somerset Council,80555996,LL3,Supported Living,P11,Adult Social Care & Health,ARCH CARE SERVICES,08/02/2016,18.00
Bath and North East Somerset Council,80555996,LL3,Supported Living,P11,Adult Social Care & Health,ARCH CARE SERVICES,08/02/2016,18.00
Bath and North East Somerset Council,80555996,LL3,Supported Living,P11,Adult Social Care & Health,ARCH CARE SERVICES,08/02/2016,18.00
Bath and North East Somerset Council,80555996,LL3,Supported Living,P11,Adult Social Care & Health,ARCH CARE SERVICES,08/02/2016,18.00
Bath and North East Somerset Council,80555996,LL3,Supported Living,P11,Adult Social Care & Health,ARCH CARE SERVICES,08/02/2016,18.00
Bath and North East Somerset Council,80555996,LL3,Supported Living,P11,Adult Social Care & Health,ARCH CARE SERVICES,08/02/2016,18.00
Bath and North East Somerset Council,80555996,LL3,Supported Living,P11,Adult Social Care & Health,ARCH CARE SERVICES,08/02/2016,54.00
Bath and North East Somerset Council,80555996,LL3,Supported Living,P11,Adult Social Care & Health,ARCH CARE SERVICES,08/02/2016,54.00
Bath and North East Somerset Council,80555996,LL3,Supported Living,P11,Adult Social Care & Health,ARCH CARE SERVICES,08/02/2016,72.00
Bath and North East Somerset Council,80555996,LL3,Supported Living,P11,Adult Social Care & Health,ARCH CARE SERVICES,08/02/2016,72.00
Bath and North East Somerset Council,80555996,LL3,Supported Living,P11,Adult Social Care & Health,ARCH CARE SERVICES,08/02/2016,90.00
Bath and North East Somerset Council,80555996,LL3,Supported Living,P11,Adult Social Care & Health,ARCH CARE SERVICES,08/02/2016,90.00
Bath and North East Somerset Council,80555996,LL3,Supported Living,P11,Adult Social Care & Health,ARCH CARE SERVICES,08/02/2016,90.00
Bath and North East Somerset Council,80555996,LL3,Supported Living,P11,Adult Social Care & Health,ARCH CARE SERVICES,08/02/2016,90.00
Bath and North East Somerset Council,80555996,LL3,Supported Living,P11,Adult Social Care & Health,ARCH CARE SERVICES,08/02/2016,135.00
Bath and North East Somerset Council,80555996,LL3,Supported Living,P11,Adult Social Care & Health,ARCH CARE SERVICES,08/02/2016,135.00
Bath and North East Somerset Council,80555996,LL3,Supported Living,P11,Adult Social Care & Health,ARCH CARE SERVICES,08/02/2016,252.50
Bath and North East Somerset Council,80555996,LL3,Supported Living,P11,Adult Social Care & Health,ARCH CARE SERVICES,08/02/2016,252.50
Bath and North East Somerset Council,80555996,LL3,Supported Living,P11,Adult Social Care & Health,ARCH CARE SERVICES,08/02/2016,270.00
Bath and North East Somerset Council,80555996,LL3,Supported Living,P11,Adult Social Care & Health,ARCH CARE SERVICES,08/02/2016,270.00
Bath and North East Somerset Council,80555996,LL3,Supported Living,P11,Adult Social Care & Health,ARCH CARE SERVICES,08/02/2016,346.43
Bath and North East Somerset Council,80555996,LL3,Supported Living,P11,Adult Social Care & Health,ARCH CARE SERVICES,08/02/2016,346.43
Bath and North East Somerset Council,80555996,LL3,Supported Living,P11,Adult Social Care & Health,ARCH CARE SERVICES,08/02/2016,360.00
Bath and North East Somerset Council,80555996,LL3,Supported Living,P11,Adult Social Care & Health,ARCH CARE SERVICES,08/02/2016,360.00
Bath and North East Somerset Council,80555996,LL3,Supported Living,P11,Adult Social Care & Health,ARCH CARE SERVICES,08/02/2016,397.00
Bath and North East Somerset Council,80555996,LL3,Supported Living,P11,Adult Social Care & Health,ARCH CARE SERVICES,08/02/2016,397.00
Bath and North East Somerset Council,80556027,LM6,Nursing Care,P11,Adult Social Care & Health,ARCH CARE SERVICES,08/02/2016,427.00
Bath and North East Somerset Council,80556027,LM6,Nursing Care,P11,Adult Social Care & Health,ARCH CARE SERVICES,08/02/2016,427.00
Bath and North East Somerset Council,80555996,LL3,Supported Living,P11,Adult Social Care & Health,ARCH CARE SERVICES,08/02/2016,430.00
Bath and North East Somerset Council,80555996,LL3,Supported Living,P11,Adult Social Care & Health,ARCH CARE SERVICES,08/02/2016,430.00
Bath and North East Somerset Council,80555996,LL3,Supported Living,P11,Adult Social Care & Health,ARCH CARE SERVICES,08/02/2016,430.00
Bath and North East Somerset Council,80555996,LL3,Supported Living,P11,Adult Social Care & Health,ARCH CARE SERVICES,08/02/2016,430.00
Bath and North East Somerset Council,80555996,LL3,Supported Living,P11,Adult Social Care & Health,ARCH CARE SERVICES,08/02/2016,430.00
Bath and North East Somerset Council,80555996,LL3,Supported Living,P11,Adult Social Care & Health,ARCH CARE SERVICES,08/02/2016,430.00
Bath and North East Somerset Council,80555996,LL3,Supported Living,P11,Adult Social Care & Health,ARCH CARE SERVICES,08/02/2016,450.00
Bath and North East Somerset Council,80555996,LL3,Supported Living,P11,Adult Social Care & Health,ARCH CARE SERVICES,08/02/2016,450.00
Bath and North East Somerset Council,80555700,LM3,Residential Care,P11,Adult Social Care & Health,ARTI CARE HOMES (SOUTHWEST) LTD,08/02/2016,69.43
Bath and North East Somerset Council,80555700,LM3,Residential Care,P11,Adult Social Care & Health,ARTI CARE HOMES (SOUTHWEST) LTD,08/02/2016,347.14
Bath and North East Somerset Council,80555700,LM3,Residential Care,P11,Adult Social Care & Health,ARTI CARE HOMES (SOUTHWEST) LTD,08/02/2016,447.00
Bath and North East Somerset Council,80555700,LM3,Residential Care,P11,Adult Social Care & Health,ARTI CARE HOMES (SOUTHWEST) LTD,08/02/2016,447.00
Bath and North East Somerset Council,80555700,LM3,Residential Care,P11,Adult Social Care & Health,ARTI CARE HOMES (SOUTHWEST) LTD,08/02/2016,447.00
Bath and North East Somerset Council,80555700,LM3,Residential Care,P11,Adult Social Care & Health,ARTI CARE HOMES (SOUTHWEST) LTD,08/02/2016,447.00
Bath and North East Somerset Council,80555700,LM3,Residential Care,P11,Adult Social Care & Health,ARTI CARE HOMES (SOUTHWEST) LTD,08/02/2016,447.00
Bath and North East Somerset Council,80555700,LM3,Residential Care,P11,Adult Social Care & Health,ARTI CARE HOMES (SOUTHWEST) LTD,08/02/2016,447.00
Bath and North East Somerset Council,80555700,LM3,Residential Care,P11,Adult Social Care & Health,ARTI CARE HOMES (SOUTHWEST) LTD,08/02/2016,447.00
Bath and North East Somerset Council,80555700,LM3,Residential Care,P11,Adult Social Care & Health,ARTI CARE HOMES (SOUTHWEST) LTD,08/02/2016,447.00
Bath and North East Somerset Council,80555700,LM3,Residential Care,P11,Adult Social Care & Health,ARTI CARE HOMES (SOUTHWEST) LTD,08/02/2016,447.00
Bath and North East Somerset Council,80555700,LM3,Residential Care,P11,Adult Social Care & Health,ARTI CARE HOMES (SOUTHWEST) LTD,08/02/2016,447.00
Bath and North East Somerset Council,80555700,LM3,Residential Care,P11,Adult Social Care & Health,ARTI CARE HOMES (SOUTHWEST) LTD,08/02/2016,447.00
Bath and North East Somerset Council,80555700,LM3,Residential Care,P11,Adult Social Care & Health,ARTI CARE HOMES (SOUTHWEST) LTD,08/02/2016,447.00
Bath and North East Somerset Council,80555700,LM3,Residential Care,P11,Adult Social Care & Health,ARTI CARE HOMES (SOUTHWEST) LTD,08/02/2016,447.00
Bath and North East Somerset Council,80555700,LM3,Residential Care,P11,Adult Social Care & Health,ARTI CARE HOMES (SOUTHWEST) LTD,08/02/2016,447.00
Bath and North East Somerset Council,80555700,LM3,Residential Care,P11,Adult Social Care & Health,ARTI CARE HOMES (SOUTHWEST) LTD,08/02/2016,447.00
Bath and North East Somerset Council,80555700,LM3,Residential Care,P11,Adult Social Care & Health,ARTI CARE HOMES (SOUTHWEST) LTD,08/02/2016,447.00
Bath and North East Somerset Council,80555700,LM3,Residential Care,P11,Adult Social Care & Health,ARTI CARE HOMES (SOUTHWEST) LTD,08/02/2016,447.00
Bath and North East Somerset Council,80555700,LM3,Residential Care,P11,Adult Social Care & Health,ARTI CARE HOMES (SOUTHWEST) LTD,08/02/2016,447.00
Bath and North East Somerset Council,80555700,LM3,Residential Care,P11,Adult Social Care & Health,ARTI CARE HOMES (SOUTHWEST) LTD,08/02/2016,486.00
Bath and North East Somerset Council,80555700,LM3,Residential Care,P11,Adult Social Care & Health,ARTI CARE HOMES (SOUTHWEST) LTD,08/02/2016,486.00
Bath and North East Somerset Council,80555700,LM3,Residential Care,P11,Adult Social Care & Health,ARTI CARE HOMES (SOUTHWEST) LTD,08/02/2016,486.00
Bath and North East Somerset Council,80555700,LM3,Residential Care,P11,Adult Social Care & Health,ARTI CARE HOMES (SOUTHWEST) LTD,08/02/2016,491.00
Bath and North East Somerset Council,80555700,LM3,Residential Care,P11,Adult Social Care & Health,ARTI CARE HOMES (SOUTHWEST) LTD,08/02/2016,491.00
Bath and North East Somerset Council,80555700,LM3,Residential Care,P11,Adult Social Care & Health,ARTI CARE HOMES (SOUTHWEST) LTD,08/02/2016,491.00
Bath and North East Somerset Council,80555700,LM3,Residential Care,P11,Adult Social Care & Health,ARTI CARE HOMES (SOUTHWEST) LTD,08/02/2016,491.00
Bath and North East Somerset Council,80555700,LM3,Residential Care,P11,Adult Social Care & Health,ARTI CARE HOMES (SOUTHWEST) LTD,08/02/2016,520.15
Bath and North East Somerset Council,80555700,LM3,Residential Care,P11,Adult Social Care & Health,ARTI CARE HOMES (SOUTHWEST) LTD,08/02/2016,520.15
Bath and North East Somerset Council,80555616,LM3,Residential Care,P11,Adult Social Care & Health,ARTI SERVICES LTD T/A THE MANOR FARM HOUSE,08/02/2016,447.00
Bath and North East Somerset Council,80555616,LM3,Residential Care,P11,Adult Social Care & Health,ARTI SERVICES LTD T/A THE MANOR FARM HOUSE,08/02/2016,447.00
Bath and North East Somerset Council,80555616,LM3,Residential Care,P11,Adult Social Care & Health,ARTI SERVICES LTD T/A THE MANOR FARM HOUSE,08/02/2016,447.00
Bath and North East Somerset Council,80555616,LM3,Residential Care,P11,Adult Social Care & Health,ARTI SERVICES LTD T/A THE MANOR FARM HOUSE,08/02/2016,447.00
Bath and North East Somerset Council,80555616,LM3,Residential Care,P11,Adult Social Care & Health,ARTI SERVICES LTD T/A THE MANOR FARM HOUSE,08/02/2016,447.00
Bath and North East Somerset Council,80555616,LM3,Residential Care,P11,Adult Social Care & Health,ARTI SERVICES LTD T/A THE MANOR FARM HOUSE,08/02/2016,447.00
Bath and North East Somerset Council,80555616,LM3,Residential Care,P11,Adult Social Care & Health,ARTI SERVICES LTD T/A THE MANOR FARM HOUSE,08/02/2016,447.00
Bath and North East Somerset Council,80555616,LM3,Residential Care,P11,Adult Social Care & Health,ARTI SERVICES LTD T/A THE MANOR FARM HOUSE,08/02/2016,447.00
Bath and North East Somerset Council,80555616,LM3,Residential Care,P11,Adult Social Care & Health,ARTI SERVICES LTD T/A THE MANOR FARM HOUSE,08/02/2016,447.00
Bath and North East Somerset Council,80555616,LM3,Residential Care,P11,Adult Social Care & Health,ARTI SERVICES LTD T/A THE MANOR FARM HOUSE,08/02/2016,447.00
Bath and North East Somerset Council,80555616,LM3,Residential Care,P11,Adult Social Care & Health,ARTI SERVICES LTD T/A THE MANOR FARM HOUSE,08/02/2016,491.00
Bath and North East Somerset Council,80555616,LM3,Residential Care,P11,Adult Social Care & Health,ARTI SERVICES LTD T/A THE MANOR FARM HOUSE,08/02/2016,491.00
Bath and North East Somerset Council,80555616,LM3,Residential Care,P11,Adult Social Care & Health,ARTI SERVICES LTD T/A THE MANOR FARM HOUSE,08/02/2016,491.00
Bath and North East Somerset Council,80555616,LM3,Residential Care,P11,Adult Social Care & Health,ARTI SERVICES LTD T/A THE MANOR FARM HOUSE,08/02/2016,491.00
Bath and North East Somerset Council,80555616,LM3,Residential Care,P11,Adult Social Care & Health,ARTI SERVICES LTD T/A THE MANOR FARM HOUSE,08/02/2016,491.00
Bath and North East Somerset Council,80555616,LM3,Residential Care,P11,Adult Social Care & Health,ARTI SERVICES LTD T/A THE MANOR FARM HOUSE,08/02/2016,491.00
Bath and North East Somerset Council,80555616,LM3,Residential Care,P11,Adult Social Care & Health,ARTI SERVICES LTD T/A THE MANOR FARM HOUSE,08/02/2016,563.00
Bath and North East Somerset Council,80555616,LM3,Residential Care,P11,Adult Social Care & Health,ARTI SERVICES LTD T/A THE MANOR FARM HOUSE,08/02/2016,563.00
Bath and North East Somerset Council,80555751,LM3,Residential Care,P11,Adult Social Care & Health,ASPECTS & MILESTONES TRUST,08/02/2016,851.60
Bath and North East Somerset Council,80555751,LM3,Residential Care,P11,Adult Social Care & Health,ASPECTS & MILESTONES TRUST,08/02/2016,851.60
Bath and North East Somerset Council,80555754,LM3,Residential Care,P11,Adult Social Care & Health,ASPECTS & MILESTONES TRUST,08/02/2016,950.00
Bath and North East Somerset Council,80555754,LM3,Residential Care,P11,Adult Social Care & Health,ASPECTS & MILESTONES TRUST,08/02/2016,950.00
Bath and North East Somerset Council,80555750,LM3,Residential Care,P11,Adult Social Care & Health,ASPECTS & MILESTONES TRUST,08/02/2016,1010.00
Bath and North East Somerset Council,80555750,LM3,Residential Care,P11,Adult Social Care & Health,ASPECTS & MILESTONES TRUST,08/02/2016,1010.00
Bath and North East Somerset Council,80555753,LM3,Residential Care,P11,Adult Social Care & Health,ASPECTS & MILESTONES TRUST,08/02/2016,1993.62
Bath and North East Somerset Council,80555753,LM3,Residential Care,P11,Adult Social Care & Health,ASPECTS & MILESTONES TRUST,08/02/2016,1993.62
Bath and North East Somerset Council,80555755,LM3,Residential Care,P11,Adult Social Care & Health,ASPECTS & MILESTONES TRUST,08/02/2016,2533.73
Bath and North East Somerset Council,80555755,LM3,Residential Care,P11,Adult Social Care & Health,ASPECTS & MILESTONES TRUST,08/02/2016,2533.73
Bath and North East Somerset Council,80555580,LM3,Residential Care,P11,Adult Social Care & Health,AUTISM SPECIALISED CARE HOMES LTD,08/02/2016,1297.10
Bath and North East Somerset Council,80555580,LM3,Residential Care,P11,Adult Social Care & Health,AUTISM SPECIALISED CARE HOMES LTD,08/02/2016,1297.10
Bath and North East Somerset Council,80555980,LL8,Individualised Budget,P11,Adult Social Care & Health,REDACTED,08/02/2016,484.00
Bath and North East Somerset Council,80555980,LL8,Individualised Budget,P11,Adult Social Care & Health,REDACTED,08/02/2016,484.00
Bath and North East Somerset Council,80555636,LM3,Residential Care,P11,Adult Social Care & Health,BAMFIELD LODGE LIMITED,08/02/2016,491.00
Bath and North East Somerset Council,80555636,LM3,Residential Care,P11,Adult Social Care & Health,BAMFIELD LODGE LIMITED,08/02/2016,491.00
Bath and North East Somerset Council,80555636,LM3,Residential Care,P11,Adult Social Care & Health,BAMFIELD LODGE LIMITED,08/02/2016,800.00
Bath and North East Somerset Council,80555636,LM3,Residential Care,P11,Adult Social Care & Health,BAMFIELD LODGE LIMITED,08/02/2016,800.00
Bath and North East Somerset Council,80556073,LM6,Nursing Care,P11,Adult Social Care & Health,BARCHESTER HEALTH CARE,08/02/2016,112.00
Bath and North East Somerset Council,80556073,LM6,Nursing Care,P11,Adult Social Care & Health,BARCHESTER HEALTH CARE,08/02/2016,112.00
Bath and North East Somerset Council,80556073,LM6,Nursing Care,P11,Adult Social Care & Health,BARCHESTER HEALTH CARE,08/02/2016,112.00
Bath and North East Somerset Council,80556073,LM6,Nursing Care,P11,Adult Social Care & Health,BARCHESTER HEALTH CARE,08/02/2016,112.00
Bath and North East Somerset Council,80556073,LM6,Nursing Care,P11,Adult Social Care & Health,BARCHESTER HEALTH CARE,08/02/2016,112.00
Bath and North East Somerset Council,80556073,LM6,Nursing Care,P11,Adult Social Care & Health,BARCHESTER HEALTH CARE,08/02/2016,112.00
Bath and North East Somerset Council,80556073,LM6,Nursing Care,P11,Adult Social Care & Health,BARCHESTER HEALTH CARE,08/02/2016,112.00
Bath and North East Somerset Council,80556073,LM6,Nursing Care,P11,Adult Social Care & Health,BARCHESTER HEALTH CARE,08/02/2016,112.00
Bath and North East Somerset Council,80556073,LM6,Nursing Care,P11,Adult Social Care & Health,BARCHESTER HEALTH CARE,08/02/2016,112.00
Bath and North East Somerset Council,80556073,LM6,Nursing Care,P11,Adult Social Care & Health,BARCHESTER HEALTH CARE,08/02/2016,112.00
Bath and North East Somerset Council,80556073,LM6,Nursing Care,P11,Adult Social Care & Health,BARCHESTER HEALTH CARE,08/02/2016,112.00
Bath and North East Somerset Council,80556073,LM6,Nursing Care,P11,Adult Social Care & Health,BARCHESTER HEALTH CARE,08/02/2016,112.00
Bath and North East Somerset Council,80556073,LM6,Nursing Care,P11,Adult Social Care & Health,BARCHESTER HEALTH CARE,08/02/2016,112.00
Bath and North East Somerset Council,80556073,LM6,Nursing Care,P11,Adult Social Care & Health,BARCHESTER HEALTH CARE,08/02/2016,112.00
Bath and North East Somerset Council,80556073,LM6,Nursing Care,P11,Adult Social Care & Health,BARCHESTER HEALTH CARE,08/02/2016,112.00
Bath and North East Somerset Council,80556073,LM6,Nursing Care,P11,Adult Social Care & Health,BARCHESTER HEALTH CARE,08/02/2016,112.00
Bath and North East Somerset Council,80556073,LM6,Nursing Care,P11,Adult Social Care & Health,BARCHESTER HEALTH CARE,08/02/2016,112.00
Bath and North East Somerset Council,80556073,LM6,Nursing Care,P11,Adult Social Care & Health,BARCHESTER HEALTH CARE,08/02/2016,112.00
Bath and North East Somerset Council,80556073,LM6,Nursing Care,P11,Adult Social Care & Health,BARCHESTER HEALTH CARE,08/02/2016,112.00
Bath and North East Somerset Council,80556073,LM6,Nursing Care,P11,Adult Social Care & Health,BARCHESTER HEALTH CARE,08/02/2016,112.00
Bath and North East Somerset Council,80556073,LM6,Nursing Care,P11,Adult Social Care & Health,BARCHESTER HEALTH CARE,08/02/2016,112.00
Bath and North East Somerset Council,80556073,LM6,Nursing Care,P11,Adult Social Care & Health,BARCHESTER HEALTH CARE,08/02/2016,112.00
Bath and North East Somerset Council,80556073,LM6,Nursing Care,P11,Adult Social Care & Health,BARCHESTER HEALTH CARE,08/02/2016,112.00
Bath and North East Somerset Council,80556073,LM6,Nursing Care,P11,Adult Social Care & Health,BARCHESTER HEALTH CARE,08/02/2016,112.00
Bath and North East Somerset Council,80556073,LM6,Nursing Care,P11,Adult Social Care & Health,BARCHESTER HEALTH CARE,08/02/2016,112.00
Bath and North East Somerset Council,80556073,LM6,Nursing Care,P11,Adult Social Care & Health,BARCHESTER HEALTH CARE,08/02/2016,112.00
Bath and North East Somerset Council,80556073,LM6,Nursing Care,P11,Adult Social Care & Health,BARCHESTER HEALTH CARE,08/02/2016,112.00
Bath and North East Somerset Council,80556073,LM6,Nursing Care,P11,Adult Social Care & Health,BARCHESTER HEALTH CARE,08/02/2016,112.00
Bath and North East Somerset Council,80556073,LM6,Nursing Care,P11,Adult Social Care & Health,BARCHESTER HEALTH CARE,08/02/2016,112.00
Bath and North East Somerset Council,80556073,LM6,Nursing Care,P11,Adult Social Care & Health,BARCHESTER HEALTH CARE,08/02/2016,112.00
Bath and North East Somerset Council,80556073,LM6,Nursing Care,P11,Adult Social Care & Health,BARCHESTER HEALTH CARE,08/02/2016,112.00
Bath and North East Somerset Council,80556073,LM6,Nursing Care,P11,Adult Social Care & Health,BARCHESTER HEALTH CARE,08/02/2016,112.00
Bath and North East Somerset Council,80556073,LM6,Nursing Care,P11,Adult Social Care & Health,BARCHESTER HEALTH CARE,08/02/2016,112.00
Bath and North East Somerset Council,80556073,LM6,Nursing Care,P11,Adult Social Care & Health,BARCHESTER HEALTH CARE,08/02/2016,112.00
Bath and North East Somerset Council,80556073,LM6,Nursing Care,P11,Adult Social Care & Health,BARCHESTER HEALTH CARE,08/02/2016,112.00
Bath and North East Somerset Council,80556073,LM6,Nursing Care,P11,Adult Social Care & Health,BARCHESTER HEALTH CARE,08/02/2016,112.00
Bath and North East Somerset Council,80556073,LM6,Nursing Care,P11,Adult Social Care & Health,BARCHESTER HEALTH CARE,08/02/2016,112.00
Bath and North East Somerset Council,80556073,LM6,Nursing Care,P11,Adult Social Care & Health,BARCHESTER HEALTH CARE,08/02/2016,112.00
Bath and North East Somerset Council,80555667,LM6,Nursing Care,P11,Adult Social Care & Health,BARCHESTER HEALTH CARE,08/02/2016,570.00
Bath and North East Somerset Council,80555667,LM6,Nursing Care,P11,Adult Social Care & Health,BARCHESTER HEALTH CARE,08/02/2016,570.00
Bath and North East Somerset Council,80555667,LM6,Nursing Care,P11,Adult Social Care & Health,BARCHESTER HEALTH CARE,08/02/2016,594.00
Bath and North East Somerset Council,80555667,LM6,Nursing Care,P11,Adult Social Care & Health,BARCHESTER HEALTH CARE,08/02/2016,594.00
Bath and North East Somerset Council,80555667,LM6,Nursing Care,P11,Adult Social Care & Health,BARCHESTER HEALTH CARE,08/02/2016,656.50
Bath and North East Somerset Council,80555667,LM6,Nursing Care,P11,Adult Social Care & Health,BARCHESTER HEALTH CARE,08/02/2016,656.50
Bath and North East Somerset Council,80556040,LM6,Nursing Care,P11,Adult Social Care & Health,BARCHESTER HEALTH CARE,08/02/2016,993.00
Bath and North East Somerset Council,80556040,LM6,Nursing Care,P11,Adult Social Care & Health,BARCHESTER HEALTH CARE,08/02/2016,993.00
Bath and North East Somerset Council,80556040,LM6,Nursing Care,P11,Adult Social Care & Health,BARCHESTER HEALTH CARE,08/02/2016,1050.00
Bath and North East Somerset Council,80556040,LM6,Nursing Care,P11,Adult Social Care & Health,BARCHESTER HEALTH CARE,08/02/2016,1050.00
Bath and North East Somerset Council,80556040,LM6,Nursing Care,P11,Adult Social Care & Health,BARCHESTER HEALTH CARE,08/02/2016,1100.00
Bath and North East Somerset Council,80556040,LM6,Nursing Care,P11,Adult Social Care & Health,BARCHESTER HEALTH CARE,08/02/2016,1100.00
Bath and North East Somerset Council,80556040,LM6,Nursing Care,P11,Adult Social Care & Health,BARCHESTER HEALTH CARE,08/02/2016,1119.00
Bath and North East Somerset Council,80556040,LM6,Nursing Care,P11,Adult Social Care & Health,BARCHESTER HEALTH CARE,08/02/2016,1119.00
Bath and North East Somerset Council,80556040,LM6,Nursing Care,P11,Adult Social Care & Health,BARCHESTER HEALTH CARE,08/02/2016,1139.00
Bath and North East Somerset Council,80556040,LM6,Nursing Care,P11,Adult Social Care & Health,BARCHESTER HEALTH CARE,08/02/2016,1139.00
Bath and North East Somerset Council,80556040,LM6,Nursing Care,P11,Adult Social Care & Health,BARCHESTER HEALTH CARE,08/02/2016,1139.00
Bath and North East Somerset Council,80556040,LM6,Nursing Care,P11,Adult Social Care & Health,BARCHESTER HEALTH CARE,08/02/2016,1139.00
Bath and North East Somerset Council,80555667,LM6,Nursing Care,P11,Adult Social Care & Health,BARCHESTER HEALTH CARE,08/02/2016,1161.50
Bath and North East Somerset Council,80555667,LM6,Nursing Care,P11,Adult Social Care & Health,BARCHESTER HEALTH CARE,08/02/2016,1161.50
Bath and North East Somerset Council,80555582,LM6,Nursing Care,P11,Adult Social Care & Health,BARCHESTER HEALTHCARE,08/02/2016,707.00
Bath and North East Somerset Council,80555582,LM6,Nursing Care,P11,Adult Social Care & Health,BARCHESTER HEALTHCARE,08/02/2016,707.00
Bath and North East Somerset Council,80555582,LM6,Nursing Care,P11,Adult Social Care & Health,BARCHESTER HEALTHCARE,08/02/2016,707.00
Bath and North East Somerset Council,80555582,LM6,Nursing Care,P11,Adult Social Care & Health,BARCHESTER HEALTHCARE,08/02/2016,707.00
Bath and North East Somerset Council,80555582,LM6,Nursing Care,P11,Adult Social Care & Health,BARCHESTER HEALTHCARE,08/02/2016,814.13
Bath and North East Somerset Council,80555582,LM6,Nursing Care,P11,Adult Social Care & Health,BARCHESTER HEALTHCARE,08/02/2016,814.13
Bath and North East Somerset Council,80555582,LM6,Nursing Care,P11,Adult Social Care & Health,BARCHESTER HEALTHCARE,08/02/2016,814.13
Bath and North East Somerset Council,80555582,LM6,Nursing Care,P11,Adult Social Care & Health,BARCHESTER HEALTHCARE,08/02/2016,814.13
Bath and North East Somerset Council,80555722,YF2,Fees & Charges,P11,Adult Social Care & Health,BARCHESTER HEALTHCARE HOMES LTD,08/02/2016,56.18
Bath and North East Somerset Council,80556056,LM6,Nursing Care,P11,Adult Social Care & Health,BARCHESTER HEALTHCARE HOMES LTD,08/02/2016,112.00
Bath and North East Somerset Council,80556056,LM6,Nursing Care,P11,Adult Social Care & Health,BARCHESTER HEALTHCARE HOMES LTD,08/02/2016,112.00
Bath and North East Somerset Council,80556056,LM6,Nursing Care,P11,Adult Social Care & Health,BARCHESTER HEALTHCARE HOMES LTD,08/02/2016,112.00
Bath and North East Somerset Council,80556056,LM6,Nursing Care,P11,Adult Social Care & Health,BARCHESTER HEALTHCARE HOMES LTD,08/02/2016,112.00
Bath and North East Somerset Council,80556056,LM6,Nursing Care,P11,Adult Social Care & Health,BARCHESTER HEALTHCARE HOMES LTD,08/02/2016,112.00
Bath and North East Somerset Council,80556056,LM6,Nursing Care,P11,Adult Social Care & Health,BARCHESTER HEALTHCARE HOMES LTD,08/02/2016,112.00
Bath and North East Somerset Council,80556056,LM6,Nursing Care,P11,Adult Social Care & Health,BARCHESTER HEALTHCARE HOMES LTD,08/02/2016,112.00
Bath and North East Somerset Council,80556056,LM6,Nursing Care,P11,Adult Social Care & Health,BARCHESTER HEALTHCARE HOMES LTD,08/02/2016,112.00
Bath and North East Somerset Council,80556056,LM6,Nursing Care,P11,Adult Social Care & Health,BARCHESTER HEALTHCARE HOMES LTD,08/02/2016,112.00
Bath and North East Somerset Council,80556056,LM6,Nursing Care,P11,Adult Social Care & Health,BARCHESTER HEALTHCARE HOMES LTD,08/02/2016,112.00
Bath and North East Somerset Council,80556056,LM6,Nursing Care,P11,Adult Social Care & Health,BARCHESTER HEALTHCARE HOMES LTD,08/02/2016,112.00
Bath and North East Somerset Council,80556056,LM6,Nursing Care,P11,Adult Social Care & Health,BARCHESTER HEALTHCARE HOMES LTD,08/02/2016,112.00
Bath and North East Somerset Council,80556056,LM6,Nursing Care,P11,Adult Social Care & Health,BARCHESTER HEALTHCARE HOMES LTD,08/02/2016,112.00
Bath and North East Somerset Council,80556056,LM6,Nursing Care,P11,Adult Social Care & Health,BARCHESTER HEALTHCARE HOMES LTD,08/02/2016,112.00
Bath and North East Somerset Council,80556056,LM6,Nursing Care,P11,Adult Social Care & Health,BARCHESTER HEALTHCARE HOMES LTD,08/02/2016,112.00
Bath and North East Somerset Council,80556056,LM6,Nursing Care,P11,Adult Social Care & Health,BARCHESTER HEALTHCARE HOMES LTD,08/02/2016,112.00
Bath and North East Somerset Council,80556056,LM6,Nursing Care,P11,Adult Social Care & Health,BARCHESTER HEALTHCARE HOMES LTD,08/02/2016,112.00
Bath and North East Somerset Council,80556056,LM6,Nursing Care,P11,Adult Social Care & Health,BARCHESTER HEALTHCARE HOMES LTD,08/02/2016,112.00
Bath and North East Somerset Council,80556056,LM6,Nursing Care,P11,Adult Social Care & Health,BARCHESTER HEALTHCARE HOMES LTD,08/02/2016,112.00
Bath and North East Somerset Council,80556056,LM6,Nursing Care,P11,Adult Social Care & Health,BARCHESTER HEALTHCARE HOMES LTD,08/02/2016,112.00
Bath and North East Somerset Council,80556056,LM6,Nursing Care,P11,Adult Social Care & Health,BARCHESTER HEALTHCARE HOMES LTD,08/02/2016,112.00
Bath and North East Somerset Council,80556056,LM6,Nursing Care,P11,Adult Social Care & Health,BARCHESTER HEALTHCARE HOMES LTD,08/02/2016,112.00
Bath and North East Somerset Council,80556056,LM6,Nursing Care,P11,Adult Social Care & Health,BARCHESTER HEALTHCARE HOMES LTD,08/02/2016,112.00
Bath and North East Somerset Council,80556056,LM6,Nursing Care,P11,Adult Social Care & Health,BARCHESTER HEALTHCARE HOMES LTD,08/02/2016,112.00
Bath and North East Somerset Council,80556056,LM6,Nursing Care,P11,Adult Social Care & Health,BARCHESTER HEALTHCARE HOMES LTD,08/02/2016,112.00
Bath and North East Somerset Council,80556056,LM6,Nursing Care,P11,Adult Social Care & Health,BARCHESTER HEALTHCARE HOMES LTD,08/02/2016,112.00
Bath and North East Somerset Council,80556056,LM6,Nursing Care,P11,Adult Social Care & Health,BARCHESTER HEALTHCARE HOMES LTD,08/02/2016,112.00
Bath and North East Somerset Council,80556056,LM6,Nursing Care,P11,Adult Social Care & Health,BARCHESTER HEALTHCARE HOMES LTD,08/02/2016,112.00
Bath and North East Somerset Council,80556056,LM6,Nursing Care,P11,Adult Social Care & Health,BARCHESTER HEALTHCARE HOMES LTD,08/02/2016,112.00
Bath and North East Somerset Council,80556056,LM6,Nursing Care,P11,Adult Social Care & Health,BARCHESTER HEALTHCARE HOMES LTD,08/02/2016,112.00
Bath and North East Somerset Council,80556056,LM6,Nursing Care,P11,Adult Social Care & Health,BARCHESTER HEALTHCARE HOMES LTD,08/02/2016,112.00
Bath and North East Somerset Council,80556056,LM6,Nursing Care,P11,Adult Social Care & Health,BARCHESTER HEALTHCARE HOMES LTD,08/02/2016,112.00
Bath and North East Somerset Council,80556056,LM6,Nursing Care,P11,Adult Social Care & Health,BARCHESTER HEALTHCARE HOMES LTD,08/02/2016,112.00
Bath and North East Somerset Council,80556056,LM6,Nursing Care,P11,Adult Social Care & Health,BARCHESTER HEALTHCARE HOMES LTD,08/02/2016,112.00
Bath and North East Somerset Council,80556056,LM6,Nursing Care,P11,Adult Social Care & Health,BARCHESTER HEALTHCARE HOMES LTD,08/02/2016,112.00
Bath and North East Somerset Council,80556056,LM6,Nursing Care,P11,Adult Social Care & Health,BARCHESTER HEALTHCARE HOMES LTD,08/02/2016,112.00
Bath and North East Somerset Council,80556056,LM6,Nursing Care,P11,Adult Social Care & Health,BARCHESTER HEALTHCARE HOMES LTD,08/02/2016,112.00
Bath and North East Somerset Council,80556056,LM6,Nursing Care,P11,Adult Social Care & Health,BARCHESTER HEALTHCARE HOMES LTD,08/02/2016,112.00
Bath and North East Somerset Council,80556056,LM6,Nursing Care,P11,Adult Social Care & Health,BARCHESTER HEALTHCARE HOMES LTD,08/02/2016,112.00
Bath and North East Somerset Council,80556056,LM6,Nursing Care,P11,Adult Social Care & Health,BARCHESTER HEALTHCARE HOMES LTD,08/02/2016,112.00
Bath and North East Somerset Council,80556056,LM6,Nursing Care,P11,Adult Social Care & Health,BARCHESTER HEALTHCARE HOMES LTD,08/02/2016,112.00
Bath and North East Somerset Council,80556056,LM6,Nursing Care,P11,Adult Social Care & Health,BARCHESTER HEALTHCARE HOMES LTD,08/02/2016,112.00
Bath and North East Somerset Council,80556056,LM6,Nursing Care,P11,Adult Social Care & Health,BARCHESTER HEALTHCARE HOMES LTD,08/02/2016,112.00
Bath and North East Somerset Council,80556056,LM6,Nursing Care,P11,Adult Social Care & Health,BARCHESTER HEALTHCARE HOMES LTD,08/02/2016,112.00
Bath and North East Somerset Council,80556056,LM6,Nursing Care,P11,Adult Social Care & Health,BARCHESTER HEALTHCARE HOMES LTD,08/02/2016,112.00
Bath and North East Somerset Council,80556056,LM6,Nursing Care,P11,Adult Social Care & Health,BARCHESTER HEALTHCARE HOMES LTD,08/02/2016,112.00
Bath and North East Somerset Council,80556056,LM6,Nursing Care,P11,Adult Social Care & Health,BARCHESTER HEALTHCARE HOMES LTD,08/02/2016,112.00
Bath and North East Somerset Council,80556056,LM6,Nursing Care,P11,Adult Social Care & Health,BARCHESTER HEALTHCARE HOMES LTD,08/02/2016,112.00
Bath and North East Somerset Council,80556056,LM6,Nursing Care,P11,Adult Social Care & Health,BARCHESTER HEALTHCARE HOMES LTD,08/02/2016,112.00
Bath and North East Somerset Council,80556056,LM6,Nursing Care,P11,Adult Social Care & Health,BARCHESTER HEALTHCARE HOMES LTD,08/02/2016,112.00
Bath and North East Somerset Council,80556056,LM6,Nursing Care,P11,Adult Social Care & Health,BARCHESTER HEALTHCARE HOMES LTD,08/02/2016,112.00
Bath and North East Somerset Council,80556056,LM6,Nursing Care,P11,Adult Social Care & Health,BARCHESTER HEALTHCARE HOMES LTD,08/02/2016,112.00
Bath and North East Somerset Council,80556056,LM6,Nursing Care,P11,Adult Social Care & Health,BARCHESTER HEALTHCARE HOMES LTD,08/02/2016,112.00
Bath and North East Somerset Council,80556056,LM6,Nursing Care,P11,Adult Social Care & Health,BARCHESTER HEALTHCARE HOMES LTD,08/02/2016,112.00
Bath and North East Somerset Council,80556056,LM6,Nursing Care,P11,Adult Social Care & Health,BARCHESTER HEALTHCARE HOMES LTD,08/02/2016,112.00
Bath and North East Somerset Council,80556056,LM6,Nursing Care,P11,Adult Social Care & Health,BARCHESTER HEALTHCARE HOMES LTD,08/02/2016,112.00
Bath and North East Somerset Council,80556056,LM6,Nursing Care,P11,Adult Social Care & Health,BARCHESTER HEALTHCARE HOMES LTD,08/02/2016,112.00
Bath and North East Somerset Council,80556056,LM6,Nursing Care,P11,Adult Social Care & Health,BARCHESTER HEALTHCARE HOMES LTD,08/02/2016,112.00
Bath and North East Somerset Council,80556056,LM6,Nursing Care,P11,Adult Social Care & Health,BARCHESTER HEALTHCARE HOMES LTD,08/02/2016,112.00
Bath and North East Somerset Council,80556056,LM6,Nursing Care,P11,Adult Social Care & Health,BARCHESTER HEALTHCARE HOMES LTD,08/02/2016,112.00
Bath and North East Somerset Council,80556056,LM6,Nursing Care,P11,Adult Social Care & Health,BARCHESTER HEALTHCARE HOMES LTD,08/02/2016,112.00
Bath and North East Somerset Council,80556056,LM6,Nursing Care,P11,Adult Social Care & Health,BARCHESTER HEALTHCARE HOMES LTD,08/02/2016,112.00
Bath and North East Somerset Council,80556056,LM6,Nursing Care,P11,Adult Social Care & Health,BARCHESTER HEALTHCARE HOMES LTD,08/02/2016,112.00
Bath and North East Somerset Council,80556056,LM6,Nursing Care,P11,Adult Social Care & Health,BARCHESTER HEALTHCARE HOMES LTD,08/02/2016,112.00
Bath and North East Somerset Council,80556056,LM6,Nursing Care,P11,Adult Social Care & Health,BARCHESTER HEALTHCARE HOMES LTD,08/02/2016,112.00
Bath and North East Somerset Council,80556056,LM6,Nursing Care,P11,Adult Social Care & Health,BARCHESTER HEALTHCARE HOMES LTD,08/02/2016,112.00
Bath and North East Somerset Council,80556056,LM6,Nursing Care,P11,Adult Social Care & Health,BARCHESTER HEALTHCARE HOMES LTD,08/02/2016,112.00
Bath and North East Somerset Council,80556056,LM6,Nursing Care,P11,Adult Social Care & Health,BARCHESTER HEALTHCARE HOMES LTD,08/02/2016,112.00
Bath and North East Somerset Council,80556056,LM6,Nursing Care,P11,Adult Social Care & Health,BARCHESTER HEALTHCARE HOMES LTD,08/02/2016,112.00
Bath and North East Somerset Council,80556056,LM6,Nursing Care,P11,Adult Social Care & Health,BARCHESTER HEALTHCARE HOMES LTD,08/02/2016,112.00
Bath and North East Somerset Council,80556056,LM6,Nursing Care,P11,Adult Social Care & Health,BARCHESTER HEALTHCARE HOMES LTD,08/02/2016,112.00
Bath and North East Somerset Council,80556056,LM6,Nursing Care,P11,Adult Social Care & Health,BARCHESTER HEALTHCARE HOMES LTD,08/02/2016,112.00
Bath and North East Somerset Council,80556056,LM6,Nursing Care,P11,Adult Social Care & Health,BARCHESTER HEALTHCARE HOMES LTD,08/02/2016,112.00
Bath and North East Somerset Council,80556056,LM6,Nursing Care,P11,Adult Social Care & Health,BARCHESTER HEALTHCARE HOMES LTD,08/02/2016,112.00
Bath and North East Somerset Council,80556056,LM6,Nursing Care,P11,Adult Social Care & Health,BARCHESTER HEALTHCARE HOMES LTD,08/02/2016,112.00
Bath and North East Somerset Council,80556056,LM6,Nursing Care,P11,Adult Social Care & Health,BARCHESTER HEALTHCARE HOMES LTD,08/02/2016,112.00
Bath and North East Somerset Council,80556056,LM6,Nursing Care,P11,Adult Social Care & Health,BARCHESTER HEALTHCARE HOMES LTD,08/02/2016,112.00
Bath and North East Somerset Council,80556056,LM6,Nursing Care,P11,Adult Social Care & Health,BARCHESTER HEALTHCARE HOMES LTD,08/02/2016,112.00
Bath and North East Somerset Council,80556056,LM6,Nursing Care,P11,Adult Social Care & Health,BARCHESTER HEALTHCARE HOMES LTD,08/02/2016,112.00
Bath and North East Somerset Council,80556056,LM6,Nursing Care,P11,Adult Social Care & Health,BARCHESTER HEALTHCARE HOMES LTD,08/02/2016,112.00
Bath and North East Somerset Council,80556056,LM6,Nursing Care,P11,Adult Social Care & Health,BARCHESTER HEALTHCARE HOMES LTD,08/02/2016,112.00
Bath and North East Somerset Council,80556056,LM6,Nursing Care,P11,Adult Social Care & Health,BARCHESTER HEALTHCARE HOMES LTD,08/02/2016,112.00
Bath and North East Somerset Council,80555722,YF2,Fees & Charges,P11,Adult Social Care & Health,BARCHESTER HEALTHCARE HOMES LTD,08/02/2016,131.09
Bath and North East Somerset Council,80555722,LM6,Nursing Care,P11,Adult Social Care & Health,BARCHESTER HEALTHCARE HOMES LTD,08/02/2016,342.86
Bath and North East Somerset Council,10801621,LV3,Commissioned Services,P13,Economic Development,BATH TOURISM PLUS,08/02/2016,35.10
Bath and North East Somerset Council,80555722,LM6,Nursing Care,P11,Adult Social Care & Health,BARCHESTER HEALTHCARE HOMES LTD,08/02/2016,353.50
Bath and North East Somerset Council,80556009,LM6,Nursing Care,P11,Adult Social Care & Health,BARCHESTER HEALTHCARE HOMES LTD,08/02/2016,364.29
Bath and North East Somerset Council,80556009,LM6,Nursing Care,P11,Adult Social Care & Health,BARCHESTER HEALTHCARE HOMES LTD,08/02/2016,385.71
Bath and North East Somerset Council,80555722,LM3,Residential Care,P11,Adult Social Care & Health,BARCHESTER HEALTHCARE HOMES LTD,08/02/2016,510.05
Bath and North East Somerset Council,80555722,LM3,Residential Care,P11,Adult Social Care & Health,BARCHESTER HEALTHCARE HOMES LTD,08/02/2016,510.05
Bath and North East Somerset Council,80556009,LM6,Nursing Care,P11,Adult Social Care & Health,BARCHESTER HEALTHCARE HOMES LTD,08/02/2016,514.29
Bath and North East Somerset Council,80555722,LM6,Nursing Care,P11,Adult Social Care & Health,BARCHESTER HEALTHCARE HOMES LTD,08/02/2016,570.00
Bath and North East Somerset Council,80555722,LM6,Nursing Care,P11,Adult Social Care & Health,BARCHESTER HEALTHCARE HOMES LTD,08/02/2016,570.00
Bath and North East Somerset Council,80555722,LM6,Nursing Care,P11,Adult Social Care & Health,BARCHESTER HEALTHCARE HOMES LTD,08/02/2016,570.00
Bath and North East Somerset Council,80555722,LM6,Nursing Care,P11,Adult Social Care & Health,BARCHESTER HEALTHCARE HOMES LTD,08/02/2016,570.00
Bath and North East Somerset Council,80555722,LM6,Nursing Care,P11,Adult Social Care & Health,BARCHESTER HEALTHCARE HOMES LTD,08/02/2016,570.00
Bath and North East Somerset Council,80555722,LM6,Nursing Care,P11,Adult Social Care & Health,BARCHESTER HEALTHCARE HOMES LTD,08/02/2016,570.00
Bath and North East Somerset Council,80555722,LM6,Nursing Care,P11,Adult Social Care & Health,BARCHESTER HEALTHCARE HOMES LTD,08/02/2016,592.00
Bath and North East Somerset Council,80555722,LM6,Nursing Care,P11,Adult Social Care & Health,BARCHESTER HEALTHCARE HOMES LTD,08/02/2016,592.00
Bath and North East Somerset Council,80555722,LM6,Nursing Care,P11,Adult Social Care & Health,BARCHESTER HEALTHCARE HOMES LTD,08/02/2016,656.00
Bath and North East Somerset Council,80555722,LM6,Nursing Care,P11,Adult Social Care & Health,BARCHESTER HEALTHCARE HOMES LTD,08/02/2016,656.00
Bath and North East Somerset Council,80555722,LM3,Residential Care,P11,Adult Social Care & Health,BARCHESTER HEALTHCARE HOMES LTD,08/02/2016,656.50
Bath and North East Somerset Council,80555722,LM3,Residential Care,P11,Adult Social Care & Health,BARCHESTER HEALTHCARE HOMES LTD,08/02/2016,656.50
Bath and North East Somerset Council,80556009,LM6,Nursing Care,P11,Adult Social Care & Health,BARCHESTER HEALTHCARE HOMES LTD,08/02/2016,746.00
Bath and North East Somerset Council,80556009,LM6,Nursing Care,P11,Adult Social Care & Health,BARCHESTER HEALTHCARE HOMES LTD,08/02/2016,746.00
Bath and North East Somerset Council,80556009,LM6,Nursing Care,P11,Adult Social Care & Health,BARCHESTER HEALTHCARE HOMES LTD,08/02/2016,750.00
Bath and North East Somerset Council,80556009,LM6,Nursing Care,P11,Adult Social Care & Health,BARCHESTER HEALTHCARE HOMES LTD,08/02/2016,750.00
Bath and North East Somerset Council,80555722,LM6,Nursing Care,P11,Adult Social Care & Health,BARCHESTER HEALTHCARE HOMES LTD,08/02/2016,757.50
Bath and North East Somerset Council,80555722,LM6,Nursing Care,P11,Adult Social Care & Health,BARCHESTER HEALTHCARE HOMES LTD,08/02/2016,757.50
Bath and North East Somerset Council,80556009,LM6,Nursing Care,P11,Adult Social Care & Health,BARCHESTER HEALTHCARE HOMES LTD,08/02/2016,771.43
Bath and North East Somerset Council,80555722,LM6,Nursing Care,P11,Adult Social Care & Health,BARCHESTER HEALTHCARE HOMES LTD,08/02/2016,824.83
Bath and North East Somerset Council,80555722,LM6,Nursing Care,P11,Adult Social Care & Health,BARCHESTER HEALTHCARE HOMES LTD,08/02/2016,850.00
Bath and North East Somerset Council,80555722,LM6,Nursing Care,P11,Adult Social Care & Health,BARCHESTER HEALTHCARE HOMES LTD,08/02/2016,850.00
Bath and North East Somerset Council,80556009,LM6,Nursing Care,P11,Adult Social Care & Health,BARCHESTER HEALTHCARE HOMES LTD,08/02/2016,850.00
Bath and North East Somerset Council,80556009,LM6,Nursing Care,P11,Adult Social Care & Health,BARCHESTER HEALTHCARE HOMES LTD,08/02/2016,850.00
Bath and North East Somerset Council,80556009,LM6,Nursing Care,P11,Adult Social Care & Health,BARCHESTER HEALTHCARE HOMES LTD,08/02/2016,850.00
Bath and North East Somerset Council,80556009,LM6,Nursing Care,P11,Adult Social Care & Health,BARCHESTER HEALTHCARE HOMES LTD,08/02/2016,850.00
Bath and North East Somerset Council,80555722,LM6,Nursing Care,P11,Adult Social Care & Health,BARCHESTER HEALTHCARE HOMES LTD,08/02/2016,858.50
Bath and North East Somerset Council,80555722,LM6,Nursing Care,P11,Adult Social Care & Health,BARCHESTER HEALTHCARE HOMES LTD,08/02/2016,858.50
Bath and North East Somerset Council,80555722,LM6,Nursing Care,P11,Adult Social Care & Health,BARCHESTER HEALTHCARE HOMES LTD,08/02/2016,858.50
Bath and North East Somerset Council,80555722,LM6,Nursing Care,P11,Adult Social Care & Health,BARCHESTER HEALTHCARE HOMES LTD,08/02/2016,858.50
Bath and North East Somerset Council,80556009,LM6,Nursing Care,P11,Adult Social Care & Health,BARCHESTER HEALTHCARE HOMES LTD,08/02/2016,874.00
Bath and North East Somerset Council,80556009,LM6,Nursing Care,P11,Adult Social Care & Health,BARCHESTER HEALTHCARE HOMES LTD,08/02/2016,874.00
Bath and North East Somerset Council,80555722,LM6,Nursing Care,P11,Adult Social Care & Health,BARCHESTER HEALTHCARE HOMES LTD,08/02/2016,875.00
Bath and North East Somerset Council,80555722,LM6,Nursing Care,P11,Adult Social Care & Health,BARCHESTER HEALTHCARE HOMES LTD,08/02/2016,875.00
Bath and North East Somerset Council,80555722,LM6,Nursing Care,P11,Adult Social Care & Health,BARCHESTER HEALTHCARE HOMES LTD,08/02/2016,900.00
Bath and North East Somerset Council,80555722,LM6,Nursing Care,P11,Adult Social Care & Health,BARCHESTER HEALTHCARE HOMES LTD,08/02/2016,900.00
Bath and North East Somerset Council,80556009,LM6,Nursing Care,P11,Adult Social Care & Health,BARCHESTER HEALTHCARE HOMES LTD,08/02/2016,900.00
Bath and North East Somerset Council,80556009,LM6,Nursing Care,P11,Adult Social Care & Health,BARCHESTER HEALTHCARE HOMES LTD,08/02/2016,900.00
Bath and North East Somerset Council,80556009,LM6,Nursing Care,P11,Adult Social Care & Health,BARCHESTER HEALTHCARE HOMES LTD,08/02/2016,900.00
Bath and North East Somerset Council,80556009,LM6,Nursing Care,P11,Adult Social Care & Health,BARCHESTER HEALTHCARE HOMES LTD,08/02/2016,900.00
Bath and North East Somerset Council,80556009,LM6,Nursing Care,P11,Adult Social Care & Health,BARCHESTER HEALTHCARE HOMES LTD,08/02/2016,900.00
Bath and North East Somerset Council,80556009,LM6,Nursing Care,P11,Adult Social Care & Health,BARCHESTER HEALTHCARE HOMES LTD,08/02/2016,900.00
Bath and North East Somerset Council,80556009,LM6,Nursing Care,P11,Adult Social Care & Health,BARCHESTER HEALTHCARE HOMES LTD,08/02/2016,900.00
Bath and North East Somerset Council,80556009,LM6,Nursing Care,P11,Adult Social Care & Health,BARCHESTER HEALTHCARE HOMES LTD,08/02/2016,900.00
Bath and North East Somerset Council,80555722,LM6,Nursing Care,P11,Adult Social Care & Health,BARCHESTER HEALTHCARE HOMES LTD,08/02/2016,909.00
Bath and North East Somerset Council,80555722,LM6,Nursing Care,P11,Adult Social Care & Health,BARCHESTER HEALTHCARE HOMES LTD,08/02/2016,909.00
Bath and North East Somerset Council,80555722,LM6,Nursing Care,P11,Adult Social Care & Health,BARCHESTER HEALTHCARE HOMES LTD,08/02/2016,916.00
Bath and North East Somerset Council,80555722,LM6,Nursing Care,P11,Adult Social Care & Health,BARCHESTER HEALTHCARE HOMES LTD,08/02/2016,916.00
Bath and North East Somerset Council,80555722,LM6,Nursing Care,P11,Adult Social Care & Health,BARCHESTER HEALTHCARE HOMES LTD,08/02/2016,919.10
Bath and North East Somerset Council,80555722,LM6,Nursing Care,P11,Adult Social Care & Health,BARCHESTER HEALTHCARE HOMES LTD,08/02/2016,919.10
Bath and North East Somerset Council,80555722,LM6,Nursing Care,P11,Adult Social Care & Health,BARCHESTER HEALTHCARE HOMES LTD,08/02/2016,1100.00
Bath and North East Somerset Council,80555722,LM6,Nursing Care,P11,Adult Social Care & Health,BARCHESTER HEALTHCARE HOMES LTD,08/02/2016,1100.00
Bath and North East Somerset Council,80556069,LM6,Nursing Care,P11,Adult Social Care & Health,BARKER CHEMICALS LTD T/A ST TERESA'S NH,08/02/2016,112.00
Bath and North East Somerset Council,80556069,LM6,Nursing Care,P11,Adult Social Care & Health,BARKER CHEMICALS LTD T/A ST TERESA'S NH,08/02/2016,112.00
Bath and North East Somerset Council,80556069,LM6,Nursing Care,P11,Adult Social Care & Health,BARKER CHEMICALS LTD T/A ST TERESA'S NH,08/02/2016,112.00
Bath and North East Somerset Council,80556069,LM6,Nursing Care,P11,Adult Social Care & Health,BARKER CHEMICALS LTD T/A ST TERESA'S NH,08/02/2016,112.00
Bath and North East Somerset Council,80556069,LM6,Nursing Care,P11,Adult Social Care & Health,BARKER CHEMICALS LTD T/A ST TERESA'S NH,08/02/2016,112.00
Bath and North East Somerset Council,80556069,LM6,Nursing Care,P11,Adult Social Care & Health,BARKER CHEMICALS LTD T/A ST TERESA'S NH,08/02/2016,112.00
Bath and North East Somerset Council,80556069,LM6,Nursing Care,P11,Adult Social Care & Health,BARKER CHEMICALS LTD T/A ST TERESA'S NH,08/02/2016,112.00
Bath and North East Somerset Council,80556069,LM6,Nursing Care,P11,Adult Social Care & Health,BARKER CHEMICALS LTD T/A ST TERESA'S NH,08/02/2016,112.00
Bath and North East Somerset Council,80556069,LM6,Nursing Care,P11,Adult Social Care & Health,BARKER CHEMICALS LTD T/A ST TERESA'S NH,08/02/2016,112.00
Bath and North East Somerset Council,80556069,LM6,Nursing Care,P11,Adult Social Care & Health,BARKER CHEMICALS LTD T/A ST TERESA'S NH,08/02/2016,112.00
Bath and North East Somerset Council,80556069,LM6,Nursing Care,P11,Adult Social Care & Health,BARKER CHEMICALS LTD T/A ST TERESA'S NH,08/02/2016,112.00
Bath and North East Somerset Council,80556069,LM6,Nursing Care,P11,Adult Social Care & Health,BARKER CHEMICALS LTD T/A ST TERESA'S NH,08/02/2016,112.00
Bath and North East Somerset Council,80556069,LM6,Nursing Care,P11,Adult Social Care & Health,BARKER CHEMICALS LTD T/A ST TERESA'S NH,08/02/2016,112.00
Bath and North East Somerset Council,80556069,LM6,Nursing Care,P11,Adult Social Care & Health,BARKER CHEMICALS LTD T/A ST TERESA'S NH,08/02/2016,112.00
Bath and North East Somerset Council,80556069,LM6,Nursing Care,P11,Adult Social Care & Health,BARKER CHEMICALS LTD T/A ST TERESA'S NH,08/02/2016,112.00
Bath and North East Somerset Council,80556069,LM6,Nursing Care,P11,Adult Social Care & Health,BARKER CHEMICALS LTD T/A ST TERESA'S NH,08/02/2016,112.00
Bath and North East Somerset Council,80556069,LM6,Nursing Care,P11,Adult Social Care & Health,BARKER CHEMICALS LTD T/A ST TERESA'S NH,08/02/2016,112.00
Bath and North East Somerset Council,80556069,LM6,Nursing Care,P11,Adult Social Care & Health,BARKER CHEMICALS LTD T/A ST TERESA'S NH,08/02/2016,112.00
Bath and North East Somerset Council,80556069,LM6,Nursing Care,P11,Adult Social Care & Health,BARKER CHEMICALS LTD T/A ST TERESA'S NH,08/02/2016,112.00
Bath and North East Somerset Council,80556069,LM6,Nursing Care,P11,Adult Social Care & Health,BARKER CHEMICALS LTD T/A ST TERESA'S NH,08/02/2016,112.00
Bath and North East Somerset Council,80556069,LM6,Nursing Care,P11,Adult Social Care & Health,BARKER CHEMICALS LTD T/A ST TERESA'S NH,08/02/2016,112.00
Bath and North East Somerset Council,80556069,LM6,Nursing Care,P11,Adult Social Care & Health,BARKER CHEMICALS LTD T/A ST TERESA'S NH,08/02/2016,112.00
Bath and North East Somerset Council,80556069,LM6,Nursing Care,P11,Adult Social Care & Health,BARKER CHEMICALS LTD T/A ST TERESA'S NH,08/02/2016,112.00
Bath and North East Somerset Council,80556069,LM6,Nursing Care,P11,Adult Social Care & Health,BARKER CHEMICALS LTD T/A ST TERESA'S NH,08/02/2016,112.00
Bath and North East Somerset Council,80556069,LM6,Nursing Care,P11,Adult Social Care & Health,BARKER CHEMICALS LTD T/A ST TERESA'S NH,08/02/2016,112.00
Bath and North East Somerset Council,80556069,LM6,Nursing Care,P11,Adult Social Care & Health,BARKER CHEMICALS LTD T/A ST TERESA'S NH,08/02/2016,112.00
Bath and North East Somerset Council,80556069,LM6,Nursing Care,P11,Adult Social Care & Health,BARKER CHEMICALS LTD T/A ST TERESA'S NH,08/02/2016,112.00
Bath and North East Somerset Council,80556069,LM6,Nursing Care,P11,Adult Social Care & Health,BARKER CHEMICALS LTD T/A ST TERESA'S NH,08/02/2016,112.00
Bath and North East Somerset Council,80556069,LM6,Nursing Care,P11,Adult Social Care & Health,BARKER CHEMICALS LTD T/A ST TERESA'S NH,08/02/2016,112.00
Bath and North East Somerset Council,80556069,LM6,Nursing Care,P11,Adult Social Care & Health,BARKER CHEMICALS LTD T/A ST TERESA'S NH,08/02/2016,112.00
Bath and North East Somerset Council,80556069,LM6,Nursing Care,P11,Adult Social Care & Health,BARKER CHEMICALS LTD T/A ST TERESA'S NH,08/02/2016,112.00
Bath and North East Somerset Council,80556069,LM6,Nursing Care,P11,Adult Social Care & Health,BARKER CHEMICALS LTD T/A ST TERESA'S NH,08/02/2016,112.00
Bath and North East Somerset Council,80556069,LM6,Nursing Care,P11,Adult Social Care & Health,BARKER CHEMICALS LTD T/A ST TERESA'S NH,08/02/2016,112.00
Bath and North East Somerset Council,80556069,LM6,Nursing Care,P11,Adult Social Care & Health,BARKER CHEMICALS LTD T/A ST TERESA'S NH,08/02/2016,112.00
Bath and North East Somerset Council,80556069,LM6,Nursing Care,P11,Adult Social Care & Health,BARKER CHEMICALS LTD T/A ST TERESA'S NH,08/02/2016,112.00
Bath and North East Somerset Council,80556069,LM6,Nursing Care,P11,Adult Social Care & Health,BARKER CHEMICALS LTD T/A ST TERESA'S NH,08/02/2016,112.00
Bath and North East Somerset Council,80556069,LM6,Nursing Care,P11,Adult Social Care & Health,BARKER CHEMICALS LTD T/A ST TERESA'S NH,08/02/2016,112.00
Bath and North East Somerset Council,80556069,LM6,Nursing Care,P11,Adult Social Care & Health,BARKER CHEMICALS LTD T/A ST TERESA'S NH,08/02/2016,112.00
Bath and North East Somerset Council,80556069,LM6,Nursing Care,P11,Adult Social Care & Health,BARKER CHEMICALS LTD T/A ST TERESA'S NH,08/02/2016,112.00
Bath and North East Somerset Council,80556069,LM6,Nursing Care,P11,Adult Social Care & Health,BARKER CHEMICALS LTD T/A ST TERESA'S NH,08/02/2016,112.00
Bath and North East Somerset Council,80556069,LM6,Nursing Care,P11,Adult Social Care & Health,BARKER CHEMICALS LTD T/A ST TERESA'S NH,08/02/2016,112.00
Bath and North East Somerset Council,80556069,LM6,Nursing Care,P11,Adult Social Care & Health,BARKER CHEMICALS LTD T/A ST TERESA'S NH,08/02/2016,112.00
Bath and North East Somerset Council,80556069,LM6,Nursing Care,P11,Adult Social Care & Health,BARKER CHEMICALS LTD T/A ST TERESA'S NH,08/02/2016,112.00
Bath and North East Somerset Council,80556069,LM6,Nursing Care,P11,Adult Social Care & Health,BARKER CHEMICALS LTD T/A ST TERESA'S NH,08/02/2016,112.00
Bath and North East Somerset Council,80555627,YF2,Fees & Charges,P11,Adult Social Care & Health,BARKER CHEMICALS LTD T/A ST TERESA'S NH,08/02/2016,175.90
Bath and North East Somerset Council,80555627,YF2,Fees & Charges,P11,Adult Social Care & Health,BARKER CHEMICALS LTD T/A ST TERESA'S NH,08/02/2016,205.22
Bath and North East Somerset Council,80555627,YF2,Fees & Charges,P11,Adult Social Care & Health,BARKER CHEMICALS LTD T/A ST TERESA'S NH,08/02/2016,205.22
Bath and North East Somerset Council,80555627,YF2,Fees & Charges,P11,Adult Social Care & Health,BARKER CHEMICALS LTD T/A ST TERESA'S NH,08/02/2016,205.22
Bath and North East Somerset Council,80555627,YF2,Fees & Charges,P11,Adult Social Care & Health,BARKER CHEMICALS LTD T/A ST TERESA'S NH,08/02/2016,205.22
Bath and North East Somerset Council,80555627,YF2,Fees & Charges,P11,Adult Social Care & Health,BARKER CHEMICALS LTD T/A ST TERESA'S NH,08/02/2016,205.22
Bath and North East Somerset Council,80555627,YF2,Fees & Charges,P11,Adult Social Care & Health,BARKER CHEMICALS LTD T/A ST TERESA'S NH,08/02/2016,205.22
Bath and North East Somerset Council,80555627,YF2,Fees & Charges,P11,Adult Social Care & Health,BARKER CHEMICALS LTD T/A ST TERESA'S NH,08/02/2016,205.22
Bath and North East Somerset Council,80555627,YF2,Fees & Charges,P11,Adult Social Care & Health,BARKER CHEMICALS LTD T/A ST TERESA'S NH,08/02/2016,205.22
Bath and North East Somerset Council,80555627,YF2,Fees & Charges,P11,Adult Social Care & Health,BARKER CHEMICALS LTD T/A ST TERESA'S NH,08/02/2016,205.22
Bath and North East Somerset Council,80555627,YF2,Fees & Charges,P11,Adult Social Care & Health,BARKER CHEMICALS LTD T/A ST TERESA'S NH,08/02/2016,205.22
Bath and North East Somerset Council,80555627,YF2,Fees & Charges,P11,Adult Social Care & Health,BARKER CHEMICALS LTD T/A ST TERESA'S NH,08/02/2016,205.22
Bath and North East Somerset Council,80556031,LM6,Nursing Care,P11,Adult Social Care & Health,BARKER CHEMICALS LTD T/A ST TERESA'S NH,08/02/2016,278.57
Bath and North East Somerset Council,80556031,LM6,Nursing Care,P11,Adult Social Care & Health,BARKER CHEMICALS LTD T/A ST TERESA'S NH,08/02/2016,342.86
Bath and North East Somerset Council,80555627,LM6,Nursing Care,P11,Adult Social Care & Health,BARKER CHEMICALS LTD T/A ST TERESA'S NH,08/02/2016,400.00
Bath and North East Somerset Council,80556031,LM6,Nursing Care,P11,Adult Social Care & Health,BARKER CHEMICALS LTD T/A ST TERESA'S NH,08/02/2016,457.14
Bath and North East Somerset Council,80556031,LM6,Nursing Care,P11,Adult Social Care & Health,BARKER CHEMICALS LTD T/A ST TERESA'S NH,08/02/2016,457.14
Bath and North East Somerset Council,80556031,LM6,Nursing Care,P11,Adult Social Care & Health,BARKER CHEMICALS LTD T/A ST TERESA'S NH,08/02/2016,464.29
Bath and North East Somerset Council,80555627,LM6,Nursing Care,P11,Adult Social Care & Health,BARKER CHEMICALS LTD T/A ST TERESA'S NH,08/02/2016,570.00
Bath and North East Somerset Council,80555627,LM6,Nursing Care,P11,Adult Social Care & Health,BARKER CHEMICALS LTD T/A ST TERESA'S NH,08/02/2016,570.00
Bath and North East Somerset Council,80555627,LM6,Nursing Care,P11,Adult Social Care & Health,BARKER CHEMICALS LTD T/A ST TERESA'S NH,08/02/2016,570.00
Bath and North East Somerset Council,80555627,LM6,Nursing Care,P11,Adult Social Care & Health,BARKER CHEMICALS LTD T/A ST TERESA'S NH,08/02/2016,570.00
Bath and North East Somerset Council,80555627,LM6,Nursing Care,P11,Adult Social Care & Health,BARKER CHEMICALS LTD T/A ST TERESA'S NH,08/02/2016,570.00
Bath and North East Somerset Council,80555627,LM6,Nursing Care,P11,Adult Social Care & Health,BARKER CHEMICALS LTD T/A ST TERESA'S NH,08/02/2016,570.00
Bath and North East Somerset Council,80555627,LM6,Nursing Care,P11,Adult Social Care & Health,BARKER CHEMICALS LTD T/A ST TERESA'S NH,08/02/2016,570.00
Bath and North East Somerset Council,80555627,LM6,Nursing Care,P11,Adult Social Care & Health,BARKER CHEMICALS LTD T/A ST TERESA'S NH,08/02/2016,570.00
Bath and North East Somerset Council,80555627,LM6,Nursing Care,P11,Adult Social Care & Health,BARKER CHEMICALS LTD T/A ST TERESA'S NH,08/02/2016,571.43
Bath and North East Somerset Council,80555627,LM6,Nursing Care,P11,Adult Social Care & Health,BARKER CHEMICALS LTD T/A ST TERESA'S NH,08/02/2016,592.00
Bath and North East Somerset Council,80555627,LM6,Nursing Care,P11,Adult Social Care & Health,BARKER CHEMICALS LTD T/A ST TERESA'S NH,08/02/2016,592.00
Bath and North East Somerset Council,80555627,LM6,Nursing Care,P11,Adult Social Care & Health,BARKER CHEMICALS LTD T/A ST TERESA'S NH,08/02/2016,592.00
Bath and North East Somerset Council,80555627,LM6,Nursing Care,P11,Adult Social Care & Health,BARKER CHEMICALS LTD T/A ST TERESA'S NH,08/02/2016,592.00
Bath and North East Somerset Council,80555627,LM6,Nursing Care,P11,Adult Social Care & Health,BARKER CHEMICALS LTD T/A ST TERESA'S NH,08/02/2016,606.00
Bath and North East Somerset Council,80555627,LM6,Nursing Care,P11,Adult Social Care & Health,BARKER CHEMICALS LTD T/A ST TERESA'S NH,08/02/2016,606.00
Bath and North East Somerset Council,80555627,LM6,Nursing Care,P11,Adult Social Care & Health,BARKER CHEMICALS LTD T/A ST TERESA'S NH,08/02/2016,606.00
Bath and North East Somerset Council,80555627,LM6,Nursing Care,P11,Adult Social Care & Health,BARKER CHEMICALS LTD T/A ST TERESA'S NH,08/02/2016,606.00
Bath and North East Somerset Council,80555627,LM6,Nursing Care,P11,Adult Social Care & Health,BARKER CHEMICALS LTD T/A ST TERESA'S NH,08/02/2016,606.00
Bath and North East Somerset Council,80555627,LM6,Nursing Care,P11,Adult Social Care & Health,BARKER CHEMICALS LTD T/A ST TERESA'S NH,08/02/2016,606.00
Bath and North East Somerset Council,80555627,LM6,Nursing Care,P11,Adult Social Care & Health,BARKER CHEMICALS LTD T/A ST TERESA'S NH,08/02/2016,650.00
Bath and North East Somerset Council,80555627,LM6,Nursing Care,P11,Adult Social Care & Health,BARKER CHEMICALS LTD T/A ST TERESA'S NH,08/02/2016,650.00
Bath and North East Somerset Council,80556031,LM6,Nursing Care,P11,Adult Social Care & Health,BARKER CHEMICALS LTD T/A ST TERESA'S NH,08/02/2016,650.00
Bath and North East Somerset Council,80556031,LM6,Nursing Care,P11,Adult Social Care & Health,BARKER CHEMICALS LTD T/A ST TERESA'S NH,08/02/2016,650.00
Bath and North East Somerset Council,80556031,LM6,Nursing Care,P11,Adult Social Care & Health,BARKER CHEMICALS LTD T/A ST TERESA'S NH,08/02/2016,650.00
Bath and North East Somerset Council,80556031,LM6,Nursing Care,P11,Adult Social Care & Health,BARKER CHEMICALS LTD T/A ST TERESA'S NH,08/02/2016,650.00
Bath and North East Somerset Council,80556031,LM6,Nursing Care,P11,Adult Social Care & Health,BARKER CHEMICALS LTD T/A ST TERESA'S NH,08/02/2016,650.00
Bath and North East Somerset Council,80556031,LM6,Nursing Care,P11,Adult Social Care & Health,BARKER CHEMICALS LTD T/A ST TERESA'S NH,08/02/2016,650.00
Bath and North East Somerset Council,80555627,LM6,Nursing Care,P11,Adult Social Care & Health,BARKER CHEMICALS LTD T/A ST TERESA'S NH,08/02/2016,654.00
Bath and North East Somerset Council,80555627,LM6,Nursing Care,P11,Adult Social Care & Health,BARKER CHEMICALS LTD T/A ST TERESA'S NH,08/02/2016,654.00
Bath and North East Somerset Council,80555627,LM6,Nursing Care,P11,Adult Social Care & Health,BARKER CHEMICALS LTD T/A ST TERESA'S NH,08/02/2016,656.50
Bath and North East Somerset Council,80555627,LM6,Nursing Care,P11,Adult Social Care & Health,BARKER CHEMICALS LTD T/A ST TERESA'S NH,08/02/2016,656.50
Bath and North East Somerset Council,80555627,LM6,Nursing Care,P11,Adult Social Care & Health,BARKER CHEMICALS LTD T/A ST TERESA'S NH,08/02/2016,656.50
Bath and North East Somerset Council,80555627,LM6,Nursing Care,P11,Adult Social Care & Health,BARKER CHEMICALS LTD T/A ST TERESA'S NH,08/02/2016,656.50
Bath and North East Somerset Council,80555627,LM6,Nursing Care,P11,Adult Social Care & Health,BARKER CHEMICALS LTD T/A ST TERESA'S NH,08/02/2016,656.50
Bath and North East Somerset Council,80555627,LM6,Nursing Care,P11,Adult Social Care & Health,BARKER CHEMICALS LTD T/A ST TERESA'S NH,08/02/2016,656.50
Bath and North East Somerset Council,80555627,LM6,Nursing Care,P11,Adult Social Care & Health,BARKER CHEMICALS LTD T/A ST TERESA'S NH,08/02/2016,681.75
Bath and North East Somerset Council,80555627,LM6,Nursing Care,P11,Adult Social Care & Health,BARKER CHEMICALS LTD T/A ST TERESA'S NH,08/02/2016,681.75
Bath and North East Somerset Council,80555627,LM6,Nursing Care,P11,Adult Social Care & Health,BARKER CHEMICALS LTD T/A ST TERESA'S NH,08/02/2016,695.89
Bath and North East Somerset Council,80555627,LM6,Nursing Care,P11,Adult Social Care & Health,BARKER CHEMICALS LTD T/A ST TERESA'S NH,08/02/2016,695.89
Bath and North East Somerset Council,80555627,LM6,Nursing Care,P11,Adult Social Care & Health,BARKER CHEMICALS LTD T/A ST TERESA'S NH,08/02/2016,700.00
Bath and North East Somerset Council,80555627,LM6,Nursing Care,P11,Adult Social Care & Health,BARKER CHEMICALS LTD T/A ST TERESA'S NH,08/02/2016,700.00
Bath and North East Somerset Council,80555627,LM6,Nursing Care,P11,Adult Social Care & Health,BARKER CHEMICALS LTD T/A ST TERESA'S NH,08/02/2016,700.00
Bath and North East Somerset Council,80555627,LM6,Nursing Care,P11,Adult Social Care & Health,BARKER CHEMICALS LTD T/A ST TERESA'S NH,08/02/2016,700.00
Bath and North East Somerset Council,80555627,LM6,Nursing Care,P11,Adult Social Care & Health,BARKER CHEMICALS LTD T/A ST TERESA'S NH,08/02/2016,700.00
Bath and North East Somerset Council,80555627,LM6,Nursing Care,P11,Adult Social Care & Health,BARKER CHEMICALS LTD T/A ST TERESA'S NH,08/02/2016,700.00
Bath and North East Somerset Council,80555627,LM6,Nursing Care,P11,Adult Social Care & Health,BARKER CHEMICALS LTD T/A ST TERESA'S NH,08/02/2016,700.00
Bath and North East Somerset Council,80555627,LM6,Nursing Care,P11,Adult Social Care & Health,BARKER CHEMICALS LTD T/A ST TERESA'S NH,08/02/2016,700.00
Bath and North East Somerset Council,80555627,LM6,Nursing Care,P11,Adult Social Care & Health,BARKER CHEMICALS LTD T/A ST TERESA'S NH,08/02/2016,700.00
Bath and North East Somerset Council,80555627,LM6,Nursing Care,P11,Adult Social Care & Health,BARKER CHEMICALS LTD T/A ST TERESA'S NH,08/02/2016,700.00
Bath and North East Somerset Council,80555627,LM6,Nursing Care,P11,Adult Social Care & Health,BARKER CHEMICALS LTD T/A ST TERESA'S NH,08/02/2016,700.00
Bath and North East Somerset Council,80555627,LM6,Nursing Care,P11,Adult Social Care & Health,BARKER CHEMICALS LTD T/A ST TERESA'S NH,08/02/2016,700.00
Bath and North East Somerset Council,80555627,LM6,Nursing Care,P11,Adult Social Care & Health,BARKER CHEMICALS LTD T/A ST TERESA'S NH,08/02/2016,700.00
Bath and North East Somerset Council,80555627,LM6,Nursing Care,P11,Adult Social Care & Health,BARKER CHEMICALS LTD T/A ST TERESA'S NH,08/02/2016,700.00
Bath and North East Somerset Council,80555627,LM6,Nursing Care,P11,Adult Social Care & Health,BARKER CHEMICALS LTD T/A ST TERESA'S NH,08/02/2016,700.00
Bath and North East Somerset Council,80555627,LM6,Nursing Care,P11,Adult Social Care & Health,BARKER CHEMICALS LTD T/A ST TERESA'S NH,08/02/2016,700.00
Bath and North East Somerset Council,80555627,LM6,Nursing Care,P11,Adult Social Care & Health,BARKER CHEMICALS LTD T/A ST TERESA'S NH,08/02/2016,700.00
Bath and North East Somerset Council,80555627,LM6,Nursing Care,P11,Adult Social Care & Health,BARKER CHEMICALS LTD T/A ST TERESA'S NH,08/02/2016,700.00
Bath and North East Somerset Council,80555627,LM6,Nursing Care,P11,Adult Social Care & Health,BARKER CHEMICALS LTD T/A ST TERESA'S NH,08/02/2016,700.00
Bath and North East Somerset Council,80555627,LM6,Nursing Care,P11,Adult Social Care & Health,BARKER CHEMICALS LTD T/A ST TERESA'S NH,08/02/2016,700.00
Bath and North East Somerset Council,80555627,LM6,Nursing Care,P11,Adult Social Care & Health,BARKER CHEMICALS LTD T/A ST TERESA'S NH,08/02/2016,700.00
Bath and North East Somerset Council,80555627,LM6,Nursing Care,P11,Adult Social Care & Health,BARKER CHEMICALS LTD T/A ST TERESA'S NH,08/02/2016,700.00
Bath and North East Somerset Council,80555627,LM6,Nursing Care,P11,Adult Social Care & Health,BARKER CHEMICALS LTD T/A ST TERESA'S NH,08/02/2016,700.00
Bath and North East Somerset Council,80555627,LM6,Nursing Care,P11,Adult Social Care & Health,BARKER CHEMICALS LTD T/A ST TERESA'S NH,08/02/2016,700.00
Bath and North East Somerset Council,80555627,LM6,Nursing Care,P11,Adult Social Care & Health,BARKER CHEMICALS LTD T/A ST TERESA'S NH,08/02/2016,700.00
Bath and North East Somerset Council,80555627,LM6,Nursing Care,P11,Adult Social Care & Health,BARKER CHEMICALS LTD T/A ST TERESA'S NH,08/02/2016,707.00
Bath and North East Somerset Council,80555627,LM6,Nursing Care,P11,Adult Social Care & Health,BARKER CHEMICALS LTD T/A ST TERESA'S NH,08/02/2016,707.00
Bath and North East Somerset Council,80555627,LM6,Nursing Care,P11,Adult Social Care & Health,BARKER CHEMICALS LTD T/A ST TERESA'S NH,08/02/2016,707.00
Bath and North East Somerset Council,80555627,LM6,Nursing Care,P11,Adult Social Care & Health,BARKER CHEMICALS LTD T/A ST TERESA'S NH,08/02/2016,707.00
Bath and North East Somerset Council,80555627,LM6,Nursing Care,P11,Adult Social Care & Health,BARKER CHEMICALS LTD T/A ST TERESA'S NH,08/02/2016,707.00
Bath and North East Somerset Council,80555627,LM6,Nursing Care,P11,Adult Social Care & Health,BARKER CHEMICALS LTD T/A ST TERESA'S NH,08/02/2016,707.00
Bath and North East Somerset Council,80555627,LM6,Nursing Care,P11,Adult Social Care & Health,BARKER CHEMICALS LTD T/A ST TERESA'S NH,08/02/2016,707.00
Bath and North East Somerset Council,80555627,LM6,Nursing Care,P11,Adult Social Care & Health,BARKER CHEMICALS LTD T/A ST TERESA'S NH,08/02/2016,707.00
Bath and North East Somerset Council,80555627,LM6,Nursing Care,P11,Adult Social Care & Health,BARKER CHEMICALS LTD T/A ST TERESA'S NH,08/02/2016,707.00
Bath and North East Somerset Council,80555627,LM6,Nursing Care,P11,Adult Social Care & Health,BARKER CHEMICALS LTD T/A ST TERESA'S NH,08/02/2016,707.00
Bath and North East Somerset Council,80555627,LM6,Nursing Care,P11,Adult Social Care & Health,BARKER CHEMICALS LTD T/A ST TERESA'S NH,08/02/2016,707.00
Bath and North East Somerset Council,80555627,LM6,Nursing Care,P11,Adult Social Care & Health,BARKER CHEMICALS LTD T/A ST TERESA'S NH,08/02/2016,707.00
Bath and North East Somerset Council,80555627,LM6,Nursing Care,P11,Adult Social Care & Health,BARKER CHEMICALS LTD T/A ST TERESA'S NH,08/02/2016,707.00
Bath and North East Somerset Council,80555627,LM6,Nursing Care,P11,Adult Social Care & Health,BARKER CHEMICALS LTD T/A ST TERESA'S NH,08/02/2016,707.00
Bath and North East Somerset Council,80555627,LM6,Nursing Care,P11,Adult Social Care & Health,BARKER CHEMICALS LTD T/A ST TERESA'S NH,08/02/2016,729.00
Bath and North East Somerset Council,80555627,LM6,Nursing Care,P11,Adult Social Care & Health,BARKER CHEMICALS LTD T/A ST TERESA'S NH,08/02/2016,729.00
Bath and North East Somerset Council,80555627,LM6,Nursing Care,P11,Adult Social Care & Health,BARKER CHEMICALS LTD T/A ST TERESA'S NH,08/02/2016,732.25
Bath and North East Somerset Council,80555627,LM6,Nursing Care,P11,Adult Social Care & Health,BARKER CHEMICALS LTD T/A ST TERESA'S NH,08/02/2016,732.25
Bath and North East Somerset Council,80555627,LM6,Nursing Care,P11,Adult Social Care & Health,BARKER CHEMICALS LTD T/A ST TERESA'S NH,08/02/2016,742.00
Bath and North East Somerset Council,80555627,LM6,Nursing Care,P11,Adult Social Care & Health,BARKER CHEMICALS LTD T/A ST TERESA'S NH,08/02/2016,742.00
Bath and North East Somerset Council,80556031,LM6,Nursing Care,P11,Adult Social Care & Health,BARKER CHEMICALS LTD T/A ST TERESA'S NH,08/02/2016,750.00
Bath and North East Somerset Council,80556031,LM6,Nursing Care,P11,Adult Social Care & Health,BARKER CHEMICALS LTD T/A ST TERESA'S NH,08/02/2016,750.00
Bath and North East Somerset Council,80555627,LM6,Nursing Care,P11,Adult Social Care & Health,BARKER CHEMICALS LTD T/A ST TERESA'S NH,08/02/2016,762.55
Bath and North East Somerset Council,80555627,LM6,Nursing Care,P11,Adult Social Care & Health,BARKER CHEMICALS LTD T/A ST TERESA'S NH,08/02/2016,762.55
Bath and North East Somerset Council,80555627,LM6,Nursing Care,P11,Adult Social Care & Health,BARKER CHEMICALS LTD T/A ST TERESA'S NH,08/02/2016,787.80
Bath and North East Somerset Council,80555627,LM6,Nursing Care,P11,Adult Social Care & Health,BARKER CHEMICALS LTD T/A ST TERESA'S NH,08/02/2016,787.80
Bath and North East Somerset Council,80555627,LM6,Nursing Care,P11,Adult Social Care & Health,BARKER CHEMICALS LTD T/A ST TERESA'S NH,08/02/2016,800.00
Bath and North East Somerset Council,80555627,LM6,Nursing Care,P11,Adult Social Care & Health,BARKER CHEMICALS LTD T/A ST TERESA'S NH,08/02/2016,800.00
Bath and North East Somerset Council,80555627,LM6,Nursing Care,P11,Adult Social Care & Health,BARKER CHEMICALS LTD T/A ST TERESA'S NH,08/02/2016,800.00
Bath and North East Somerset Council,80555627,LM6,Nursing Care,P11,Adult Social Care & Health,BARKER CHEMICALS LTD T/A ST TERESA'S NH,08/02/2016,800.00
Bath and North East Somerset Council,80555627,LM6,Nursing Care,P11,Adult Social Care & Health,BARKER CHEMICALS LTD T/A ST TERESA'S NH,08/02/2016,800.00
Bath and North East Somerset Council,80555627,LM6,Nursing Care,P11,Adult Social Care & Health,BARKER CHEMICALS LTD T/A ST TERESA'S NH,08/02/2016,800.00
Bath and North East Somerset Council,80555627,LM6,Nursing Care,P11,Adult Social Care & Health,BARKER CHEMICALS LTD T/A ST TERESA'S NH,08/02/2016,800.00
Bath and North East Somerset Council,80555627,LM6,Nursing Care,P11,Adult Social Care & Health,BARKER CHEMICALS LTD T/A ST TERESA'S NH,08/02/2016,800.00
Bath and North East Somerset Council,80555627,LM6,Nursing Care,P11,Adult Social Care & Health,BARKER CHEMICALS LTD T/A ST TERESA'S NH,08/02/2016,800.00
Bath and North East Somerset Council,80555627,LM6,Nursing Care,P11,Adult Social Care & Health,BARKER CHEMICALS LTD T/A ST TERESA'S NH,08/02/2016,800.00
Bath and North East Somerset Council,80555627,LM6,Nursing Care,P11,Adult Social Care & Health,BARKER CHEMICALS LTD T/A ST TERESA'S NH,08/02/2016,800.00
Bath and North East Somerset Council,80555627,LM6,Nursing Care,P11,Adult Social Care & Health,BARKER CHEMICALS LTD T/A ST TERESA'S NH,08/02/2016,800.00
Bath and North East Somerset Council,80555627,LM6,Nursing Care,P11,Adult Social Care & Health,BARKER CHEMICALS LTD T/A ST TERESA'S NH,08/02/2016,800.00
Bath and North East Somerset Council,80555627,LM6,Nursing Care,P11,Adult Social Care & Health,BARKER CHEMICALS LTD T/A ST TERESA'S NH,08/02/2016,800.00
Bath and North East Somerset Council,80555627,LM6,Nursing Care,P11,Adult Social Care & Health,BARKER CHEMICALS LTD T/A ST TERESA'S NH,08/02/2016,800.00
Bath and North East Somerset Council,80555627,LM6,Nursing Care,P11,Adult Social Care & Health,BARKER CHEMICALS LTD T/A ST TERESA'S NH,08/02/2016,800.00
Bath and North East Somerset Council,80555627,LM6,Nursing Care,P11,Adult Social Care & Health,BARKER CHEMICALS LTD T/A ST TERESA'S NH,08/02/2016,800.00
Bath and North East Somerset Council,80555627,LM6,Nursing Care,P11,Adult Social Care & Health,BARKER CHEMICALS LTD T/A ST TERESA'S NH,08/02/2016,800.00
Bath and North East Somerset Council,80556031,LM6,Nursing Care,P11,Adult Social Care & Health,BARKER CHEMICALS LTD T/A ST TERESA'S NH,08/02/2016,800.00
Bath and North East Somerset Council,80555627,LM6,Nursing Care,P11,Adult Social Care & Health,BARKER CHEMICALS LTD T/A ST TERESA'S NH,08/02/2016,804.00
Bath and North East Somerset Council,80555627,LM6,Nursing Care,P11,Adult Social Care & Health,BARKER CHEMICALS LTD T/A ST TERESA'S NH,08/02/2016,804.00
Bath and North East Somerset Council,80555627,LM6,Nursing Care,P11,Adult Social Care & Health,BARKER CHEMICALS LTD T/A ST TERESA'S NH,08/02/2016,804.00
Bath and North East Somerset Council,80555627,LM6,Nursing Care,P11,Adult Social Care & Health,BARKER CHEMICALS LTD T/A ST TERESA'S NH,08/02/2016,804.00
Bath and North East Somerset Council,80555627,LM6,Nursing Care,P11,Adult Social Care & Health,BARKER CHEMICALS LTD T/A ST TERESA'S NH,08/02/2016,808.00
Bath and North East Somerset Council,80555627,LM6,Nursing Care,P11,Adult Social Care & Health,BARKER CHEMICALS LTD T/A ST TERESA'S NH,08/02/2016,808.00
Bath and North East Somerset Council,80556031,LM6,Nursing Care,P11,Adult Social Care & Health,BARKER CHEMICALS LTD T/A ST TERESA'S NH,08/02/2016,925.00
Bath and North East Somerset Council,80556031,LM6,Nursing Care,P11,Adult Social Care & Health,BARKER CHEMICALS LTD T/A ST TERESA'S NH,08/02/2016,925.00
Bath and North East Somerset Council,80556031,LM6,Nursing Care,P11,Adult Social Care & Health,BARKER CHEMICALS LTD T/A ST TERESA'S NH,08/02/2016,941.00
Bath and North East Somerset Council,80556031,LM6,Nursing Care,P11,Adult Social Care & Health,BARKER CHEMICALS LTD T/A ST TERESA'S NH,08/02/2016,941.00
Bath and North East Somerset Council,80555627,LM6,Nursing Care,P11,Adult Social Care & Health,BARKER CHEMICALS LTD T/A ST TERESA'S NH,08/02/2016,990.00
Bath and North East Somerset Council,80555627,LM6,Nursing Care,P11,Adult Social Care & Health,BARKER CHEMICALS LTD T/A ST TERESA'S NH,08/02/2016,990.00
Bath and North East Somerset Council,80556031,LM6,Nursing Care,P11,Adult Social Care & Health,BARKER CHEMICALS LTD T/A ST TERESA'S NH,08/02/2016,990.00
Bath and North East Somerset Council,80556031,LM6,Nursing Care,P11,Adult Social Care & Health,BARKER CHEMICALS LTD T/A ST TERESA'S NH,08/02/2016,990.00
Bath and North East Somerset Council,80555757,LM3,Residential Care,P11,Adult Social Care & Health,BATH MIND,08/02/2016,730.00
Bath and North East Somerset Council,80555757,LM3,Residential Care,P11,Adult Social Care & Health,BATH MIND,08/02/2016,730.00
Bath and North East Somerset Council,80555757,LM3,Residential Care,P11,Adult Social Care & Health,BATH MIND,08/02/2016,730.00
Bath and North East Somerset Council,80555757,LM3,Residential Care,P11,Adult Social Care & Health,BATH MIND,08/02/2016,730.00
Bath and North East Somerset Council,80555757,LM3,Residential Care,P11,Adult Social Care & Health,BATH MIND,08/02/2016,730.00
Bath and North East Somerset Council,80555757,LM3,Residential Care,P11,Adult Social Care & Health,BATH MIND,08/02/2016,730.00
Bath and North East Somerset Council,80555757,LM3,Residential Care,P11,Adult Social Care & Health,BATH MIND,08/02/2016,730.00
Bath and North East Somerset Council,80555757,LM3,Residential Care,P11,Adult Social Care & Health,BATH MIND,08/02/2016,730.00
Bath and North East Somerset Council,80555757,LM3,Residential Care,P11,Adult Social Care & Health,BATH MIND,08/02/2016,730.00
Bath and North East Somerset Council,80555757,LM3,Residential Care,P11,Adult Social Care & Health,BATH MIND,08/02/2016,730.00
Bath and North East Somerset Council,80555757,LM3,Residential Care,P11,Adult Social Care & Health,BATH MIND,08/02/2016,730.00
Bath and North East Somerset Council,80555757,LM3,Residential Care,P11,Adult Social Care & Health,BATH MIND,08/02/2016,730.00
Bath and North East Somerset Council,80555757,LM3,Residential Care,P11,Adult Social Care & Health,BATH MIND,08/02/2016,730.00
Bath and North East Somerset Council,80555757,LM3,Residential Care,P11,Adult Social Care & Health,BATH MIND,08/02/2016,730.00
Bath and North East Somerset Council,80555757,LM3,Residential Care,P11,Adult Social Care & Health,BATH MIND,08/02/2016,730.00
Bath and North East Somerset Council,80555757,LM3,Residential Care,P11,Adult Social Care & Health,BATH MIND,08/02/2016,730.00
Bath and North East Somerset Council,80555743,LM3,Residential Care,P11,Adult Social Care & Health,BCVS HOMES,08/02/2016,447.00
Bath and North East Somerset Council,80555743,LM3,Residential Care,P11,Adult Social Care & Health,BCVS HOMES,08/02/2016,447.00
Bath and North East Somerset Council,80555743,LM3,Residential Care,P11,Adult Social Care & Health,BCVS HOMES,08/02/2016,447.00
Bath and North East Somerset Council,80555743,LM3,Residential Care,P11,Adult Social Care & Health,BCVS HOMES,08/02/2016,447.00
Bath and North East Somerset Council,80555744,LM3,Residential Care,P11,Adult Social Care & Health,BCVS HOMES,08/02/2016,447.00
Bath and North East Somerset Council,80555744,LM3,Residential Care,P11,Adult Social Care & Health,BCVS HOMES,08/02/2016,447.00
Bath and North East Somerset Council,80555744,LM3,Residential Care,P11,Adult Social Care & Health,BCVS HOMES,08/02/2016,447.00
Bath and North East Somerset Council,80555744,LM3,Residential Care,P11,Adult Social Care & Health,BCVS HOMES,08/02/2016,447.00
Bath and North East Somerset Council,80555744,LM3,Residential Care,P11,Adult Social Care & Health,BCVS HOMES,08/02/2016,460.07
Bath and North East Somerset Council,80555744,LM3,Residential Care,P11,Adult Social Care & Health,BCVS HOMES,08/02/2016,460.07
Bath and North East Somerset Council,80555744,LM3,Residential Care,P11,Adult Social Care & Health,BCVS HOMES,08/02/2016,505.00
Bath and North East Somerset Council,80555744,LM3,Residential Care,P11,Adult Social Care & Health,BCVS HOMES,08/02/2016,505.00
Bath and North East Somerset Council,80555744,LM3,Residential Care,P11,Adult Social Care & Health,BCVS HOMES,08/02/2016,505.00
Bath and North East Somerset Council,80555744,LM3,Residential Care,P11,Adult Social Care & Health,BCVS HOMES,08/02/2016,505.00
Bath and North East Somerset Council,80555744,LM3,Residential Care,P11,Adult Social Care & Health,BCVS HOMES,08/02/2016,545.40
Bath and North East Somerset Council,80555744,LM3,Residential Care,P11,Adult Social Care & Health,BCVS HOMES,08/02/2016,545.40
Bath and North East Somerset Council,80555744,LM3,Residential Care,P11,Adult Social Care & Health,BCVS HOMES,08/02/2016,567.62
Bath and North East Somerset Council,80555744,LM3,Residential Care,P11,Adult Social Care & Health,BCVS HOMES,08/02/2016,567.62
Bath and North East Somerset Council,80555744,LM3,Residential Care,P11,Adult Social Care & Health,BCVS HOMES,08/02/2016,571.00
Bath and North East Somerset Council,80555744,LM3,Residential Care,P11,Adult Social Care & Health,BCVS HOMES,08/02/2016,571.00
Bath and North East Somerset Council,80555744,LM3,Residential Care,P11,Adult Social Care & Health,BCVS HOMES,08/02/2016,576.00
Bath and North East Somerset Council,80555744,LM3,Residential Care,P11,Adult Social Care & Health,BCVS HOMES,08/02/2016,576.00
Bath and North East Somerset Council,80555581,LM3,Residential Care,P11,Adult Social Care & Health,BEDROCK LODGE,08/02/2016,797.60
Bath and North East Somerset Council,80555581,LM3,Residential Care,P11,Adult Social Care & Health,BEDROCK LODGE,08/02/2016,797.60
Bath and North East Somerset Council,80555621,LM3,Residential Care,P11,Adult Social Care & Health,BELMONT VILLA RESIDENTIAL NURSING HOME LTD,08/02/2016,555.50
Bath and North East Somerset Council,80555621,LM3,Residential Care,P11,Adult Social Care & Health,BELMONT VILLA RESIDENTIAL NURSING HOME LTD,08/02/2016,555.50
Bath and North East Somerset Council,80555621,LM6,Nursing Care,P11,Adult Social Care & Health,BELMONT VILLA RESIDENTIAL NURSING HOME LTD,08/02/2016,1010.00
Bath and North East Somerset Council,80555621,LM6,Nursing Care,P11,Adult Social Care & Health,BELMONT VILLA RESIDENTIAL NURSING HOME LTD,08/02/2016,1010.00
Bath and North East Somerset Council,80555617,LM3,Residential Care,P11,Adult Social Care & Health,BOLE ALLER HOUSE LTD,08/02/2016,735.92
Bath and North East Somerset Council,80555617,LM3,Residential Care,P11,Adult Social Care & Health,BOLE ALLER HOUSE LTD,08/02/2016,735.92
Bath and North East Somerset Council,80555652,LM3,Residential Care,P11,Adult Social Care & Health,BOROUGH CARE LIMITED,08/02/2016,446.00
Bath and North East Somerset Council,80555652,LM3,Residential Care,P11,Adult Social Care & Health,BOROUGH CARE LIMITED,08/02/2016,446.00
Bath and North East Somerset Council,80555685,LM3,Residential Care,P11,Adult Social Care & Health,BOYACK ENTERPRISES LTD T/A BEAUFORT HALL,08/02/2016,447.00
Bath and North East Somerset Council,80555685,LM3,Residential Care,P11,Adult Social Care & Health,BOYACK ENTERPRISES LTD T/A BEAUFORT HALL,08/02/2016,447.00
Bath and North East Somerset Council,80556066,LM6,Nursing Care,P11,Adult Social Care & Health,BRIDGE CARE LTD,08/02/2016,112.00
Bath and North East Somerset Council,80556066,LM6,Nursing Care,P11,Adult Social Care & Health,BRIDGE CARE LTD,08/02/2016,112.00
Bath and North East Somerset Council,80556066,LM6,Nursing Care,P11,Adult Social Care & Health,BRIDGE CARE LTD,08/02/2016,112.00
Bath and North East Somerset Council,80556066,LM6,Nursing Care,P11,Adult Social Care & Health,BRIDGE CARE LTD,08/02/2016,112.00
Bath and North East Somerset Council,80556066,LM6,Nursing Care,P11,Adult Social Care & Health,BRIDGE CARE LTD,08/02/2016,112.00
Bath and North East Somerset Council,80556066,LM6,Nursing Care,P11,Adult Social Care & Health,BRIDGE CARE LTD,08/02/2016,112.00
Bath and North East Somerset Council,80556066,LM6,Nursing Care,P11,Adult Social Care & Health,BRIDGE CARE LTD,08/02/2016,112.00
Bath and North East Somerset Council,80556066,LM6,Nursing Care,P11,Adult Social Care & Health,BRIDGE CARE LTD,08/02/2016,112.00
Bath and North East Somerset Council,80556066,LM6,Nursing Care,P11,Adult Social Care & Health,BRIDGE CARE LTD,08/02/2016,112.00
Bath and North East Somerset Council,80556066,LM6,Nursing Care,P11,Adult Social Care & Health,BRIDGE CARE LTD,08/02/2016,112.00
Bath and North East Somerset Council,80556066,LM6,Nursing Care,P11,Adult Social Care & Health,BRIDGE CARE LTD,08/02/2016,112.00
Bath and North East Somerset Council,80556066,LM6,Nursing Care,P11,Adult Social Care & Health,BRIDGE CARE LTD,08/02/2016,112.00
Bath and North East Somerset Council,80556066,LM6,Nursing Care,P11,Adult Social Care & Health,BRIDGE CARE LTD,08/02/2016,112.00
Bath and North East Somerset Council,80556066,LM6,Nursing Care,P11,Adult Social Care & Health,BRIDGE CARE LTD,08/02/2016,112.00
Bath and North East Somerset Council,80556066,LM6,Nursing Care,P11,Adult Social Care & Health,BRIDGE CARE LTD,08/02/2016,112.00
Bath and North East Somerset Council,80556066,LM6,Nursing Care,P11,Adult Social Care & Health,BRIDGE CARE LTD,08/02/2016,112.00
Bath and North East Somerset Council,80556066,LM6,Nursing Care,P11,Adult Social Care & Health,BRIDGE CARE LTD,08/02/2016,112.00
Bath and North East Somerset Council,80556066,LM6,Nursing Care,P11,Adult Social Care & Health,BRIDGE CARE LTD,08/02/2016,112.00
Bath and North East Somerset Council,80556051,LM6,Nursing Care,P11,Adult Social Care & Health,BRIDGE CARE LTD,08/02/2016,385.71
Bath and North East Somerset Council,80556051,LM6,Nursing Care,P11,Adult Social Care & Health,BRIDGE CARE LTD,08/02/2016,385.71
Bath and North East Somerset Council,80555646,LM3,Residential Care,P11,Adult Social Care & Health,BRIDGE CARE LTD,08/02/2016,447.00
Bath and North East Somerset Council,80555646,LM3,Residential Care,P11,Adult Social Care & Health,BRIDGE CARE LTD,08/02/2016,447.00
Bath and North East Somerset Council,80555646,LM3,Residential Care,P11,Adult Social Care & Health,BRIDGE CARE LTD,08/02/2016,447.00
Bath and North East Somerset Council,80555646,LM3,Residential Care,P11,Adult Social Care & Health,BRIDGE CARE LTD,08/02/2016,447.00
Bath and North East Somerset Council,80555646,LM3,Residential Care,P11,Adult Social Care & Health,BRIDGE CARE LTD,08/02/2016,447.00
Bath and North East Somerset Council,80555646,LM3,Residential Care,P11,Adult Social Care & Health,BRIDGE CARE LTD,08/02/2016,447.00
Bath and North East Somerset Council,80555646,LM3,Residential Care,P11,Adult Social Care & Health,BRIDGE CARE LTD,08/02/2016,447.00
Bath and North East Somerset Council,80555646,LM3,Residential Care,P11,Adult Social Care & Health,BRIDGE CARE LTD,08/02/2016,447.00
Bath and North East Somerset Council,80555646,LM6,Nursing Care,P11,Adult Social Care & Health,BRIDGE CARE LTD,08/02/2016,570.00
Bath and North East Somerset Council,80555646,LM6,Nursing Care,P11,Adult Social Care & Health,BRIDGE CARE LTD,08/02/2016,570.00
Bath and North East Somerset Council,80555646,LM6,Nursing Care,P11,Adult Social Care & Health,BRIDGE CARE LTD,08/02/2016,570.00
Bath and North East Somerset Council,80555646,LM6,Nursing Care,P11,Adult Social Care & Health,BRIDGE CARE LTD,08/02/2016,570.00
Bath and North East Somerset Council,80555646,LM6,Nursing Care,P11,Adult Social Care & Health,BRIDGE CARE LTD,08/02/2016,570.00
Bath and North East Somerset Council,80555646,LM6,Nursing Care,P11,Adult Social Care & Health,BRIDGE CARE LTD,08/02/2016,570.00
Bath and North East Somerset Council,80555646,LM6,Nursing Care,P11,Adult Social Care & Health,BRIDGE CARE LTD,08/02/2016,570.00
Bath and North East Somerset Council,80555646,LM6,Nursing Care,P11,Adult Social Care & Health,BRIDGE CARE LTD,08/02/2016,570.00
Bath and North East Somerset Council,80555646,LM6,Nursing Care,P11,Adult Social Care & Health,BRIDGE CARE LTD,08/02/2016,570.00
Bath and North East Somerset Council,80555646,LM6,Nursing Care,P11,Adult Social Care & Health,BRIDGE CARE LTD,08/02/2016,570.00
Bath and North East Somerset Council,80555646,LM3,Residential Care,P11,Adult Social Care & Health,BRIDGE CARE LTD,08/02/2016,600.00
Bath and North East Somerset Council,80555646,LM3,Residential Care,P11,Adult Social Care & Health,BRIDGE CARE LTD,08/02/2016,600.00
Bath and North East Somerset Council,80555646,LM6,Nursing Care,P11,Adult Social Care & Health,BRIDGE CARE LTD,08/02/2016,656.00
Bath and North East Somerset Council,80555646,LM6,Nursing Care,P11,Adult Social Care & Health,BRIDGE CARE LTD,08/02/2016,656.00
Bath and North East Somerset Council,80555646,LM6,Nursing Care,P11,Adult Social Care & Health,BRIDGE CARE LTD,08/02/2016,800.00
Bath and North East Somerset Council,80555646,LM6,Nursing Care,P11,Adult Social Care & Health,BRIDGE CARE LTD,08/02/2016,800.00
Bath and North East Somerset Council,80555646,LM6,Nursing Care,P11,Adult Social Care & Health,BRIDGE CARE LTD,08/02/2016,808.00
Bath and North East Somerset Council,80555646,LM6,Nursing Care,P11,Adult Social Care & Health,BRIDGE CARE LTD,08/02/2016,808.00
Bath and North East Somerset Council,80555646,LM6,Nursing Care,P11,Adult Social Care & Health,BRIDGE CARE LTD,08/02/2016,858.50
Bath and North East Somerset Council,80555646,LM6,Nursing Care,P11,Adult Social Care & Health,BRIDGE CARE LTD,08/02/2016,858.50
Bath and North East Somerset Council,80556051,LM6,Nursing Care,P11,Adult Social Care & Health,BRIDGE CARE LTD,08/02/2016,875.00
Bath and North East Somerset Council,80556051,LM6,Nursing Care,P11,Adult Social Care & Health,BRIDGE CARE LTD,08/02/2016,875.00
Bath and North East Somerset Council,80556051,LM6,Nursing Care,P11,Adult Social Care & Health,BRIDGE CARE LTD,08/02/2016,875.00
Bath and North East Somerset Council,80556051,LM6,Nursing Care,P11,Adult Social Care & Health,BRIDGE CARE LTD,08/02/2016,875.00
Bath and North East Somerset Council,80555657,LM3,Residential Care,P11,Adult Social Care & Health,BRIGHTBOW LODGE,08/02/2016,524.00
Bath and North East Somerset Council,80555776,LL3,Supported Living,P11,Adult Social Care & Health,BRIGHTBOW LODGE,08/02/2016,558.00
Bath and North East Somerset Council,80555776,LL3,Supported Living,P11,Adult Social Care & Health,BRIGHTBOW LODGE,08/02/2016,558.00
Bath and North East Somerset Council,80555657,LM3,Residential Care,P11,Adult Social Care & Health,BRIGHTBOW LODGE,08/02/2016,632.70
Bath and North East Somerset Council,80555657,LM3,Residential Care,P11,Adult Social Care & Health,BRIGHTBOW LODGE,08/02/2016,632.70
Bath and North East Somerset Council,80555657,LM3,Residential Care,P11,Adult Social Care & Health,BRIGHTBOW LODGE,08/02/2016,639.03
Bath and North East Somerset Council,80555657,LM3,Residential Care,P11,Adult Social Care & Health,BRIGHTBOW LODGE,08/02/2016,639.03
Bath and North East Somerset Council,80555657,LM6,Nursing Care,P11,Adult Social Care & Health,BRIGHTBOW LODGE,08/02/2016,679.95
Bath and North East Somerset Council,80555657,LM6,Nursing Care,P11,Adult Social Care & Health,BRIGHTBOW LODGE,08/02/2016,679.95
Bath and North East Somerset Council,80555657,LM6,Nursing Care,P11,Adult Social Care & Health,BRIGHTBOW LODGE,08/02/2016,679.95
Bath and North East Somerset Council,80555657,LM6,Nursing Care,P11,Adult Social Care & Health,BRIGHTBOW LODGE,08/02/2016,679.95
Bath and North East Somerset Council,80555657,LM6,Nursing Care,P11,Adult Social Care & Health,BRIGHTBOW LODGE,08/02/2016,722.99
Bath and North East Somerset Council,80555657,LM6,Nursing Care,P11,Adult Social Care & Health,BRIGHTBOW LODGE,08/02/2016,722.99
Bath and North East Somerset Council,80555657,LM3,Residential Care,P11,Adult Social Care & Health,BRIGHTBOW LODGE,08/02/2016,733.60
Bath and North East Somerset Council,80555657,LM3,Residential Care,P11,Adult Social Care & Health,BRIGHTBOW LODGE,08/02/2016,733.60
Bath and North East Somerset Council,80555657,LM3,Residential Care,P11,Adult Social Care & Health,BRIGHTBOW LODGE,08/02/2016,733.60
Bath and North East Somerset Council,80555657,LM3,Residential Care,P11,Adult Social Care & Health,BRIGHTBOW LODGE,08/02/2016,733.60
Bath and North East Somerset Council,80555657,LM3,Residential Care,P11,Adult Social Care & Health,BRIGHTBOW LODGE,08/02/2016,733.60
Bath and North East Somerset Council,80555657,LM3,Residential Care,P11,Adult Social Care & Health,BRIGHTBOW LODGE,08/02/2016,733.60
Bath and North East Somerset Council,80555657,LM3,Residential Care,P11,Adult Social Care & Health,BRIGHTBOW LODGE,08/02/2016,733.60
Bath and North East Somerset Council,80555657,LM3,Residential Care,P11,Adult Social Care & Health,BRIGHTBOW LODGE,08/02/2016,733.60
Bath and North East Somerset Council,80556013,LM6,Nursing Care,P11,Adult Social Care & Health,BRISTOL AGE CARE,08/02/2016,750.00
Bath and North East Somerset Council,80556013,LM6,Nursing Care,P11,Adult Social Care & Health,BRISTOL AGE CARE,08/02/2016,750.00
Bath and North East Somerset Council,80555746,LM6,Nursing Care,P11,Adult Social Care & Health,BRISTOL AGE CARE,08/02/2016,757.29
Bath and North East Somerset Council,80555746,LM6,Nursing Care,P11,Adult Social Care & Health,BRISTOL AGE CARE,08/02/2016,757.29
Bath and North East Somerset Council,80556013,LM6,Nursing Care,P11,Adult Social Care & Health,BRISTOL AGE CARE,08/02/2016,759.79
Bath and North East Somerset Council,80556013,LM6,Nursing Care,P11,Adult Social Care & Health,BRISTOL AGE CARE,08/02/2016,759.79
Bath and North East Somerset Council,80555746,LM6,Nursing Care,P11,Adult Social Care & Health,BRISTOL AGE CARE,08/02/2016,869.50
Bath and North East Somerset Council,80555746,LM6,Nursing Care,P11,Adult Social Care & Health,BRISTOL AGE CARE,08/02/2016,869.50
Bath and North East Somerset Council,80555746,LM6,Nursing Care,P11,Adult Social Care & Health,BRISTOL AGE CARE,08/02/2016,912.00
Bath and North East Somerset Council,80555746,LM6,Nursing Care,P11,Adult Social Care & Health,BRISTOL AGE CARE,08/02/2016,912.00
Bath and North East Somerset Council,80555713,LM3,Residential Care,P11,Adult Social Care & Health,BROADREACH HOUSE,08/02/2016,795.00
Bath and North East Somerset Council,80555713,LM3,Residential Care,P11,Adult Social Care & Health,BROADREACH HOUSE,08/02/2016,795.00
Bath and North East Somerset Council,80555713,LM3,Residential Care,P11,Adult Social Care & Health,BROADREACH HOUSE,08/02/2016,795.00
Bath and North East Somerset Council,80555713,LM3,Residential Care,P11,Adult Social Care & Health,BROADREACH HOUSE,08/02/2016,795.00
Bath and North East Somerset Council,80555713,LM3,Residential Care,P11,Adult Social Care & Health,BROADREACH HOUSE,08/02/2016,992.86
Bath and North East Somerset Council,80555713,LM3,Residential Care,P11,Adult Social Care & Health,BROADREACH HOUSE,08/02/2016,1390.00
Bath and North East Somerset Council,80555713,LM3,Residential Care,P11,Adult Social Care & Health,BROADREACH HOUSE,08/02/2016,1390.00
Bath and North East Somerset Council,80555713,LM3,Residential Care,P11,Adult Social Care & Health,BROADREACH HOUSE,08/02/2016,1390.00
Bath and North East Somerset Council,80556018,LM6,Nursing Care,P11,Adult Social Care & Health,BROOKDALE HEALTHCARE LTD,08/02/2016,3234.00
Bath and North East Somerset Council,80556018,LM6,Nursing Care,P11,Adult Social Care & Health,BROOKDALE HEALTHCARE LTD,08/02/2016,3234.00
Bath and North East Somerset Council,80555639,LM3,Residential Care,P11,Adult Social Care & Health,BROUGHTON LODGE CARE HOME,08/02/2016,447.00
Bath and North East Somerset Council,80555639,LM3,Residential Care,P11,Adult Social Care & Health,BROUGHTON LODGE CARE HOME,08/02/2016,447.00
Bath and North East Somerset Council,80555689,LM6,Nursing Care,P11,Adult Social Care & Health,BRUNEL CARE HOME,08/02/2016,904.00
Bath and North East Somerset Council,80555689,LM6,Nursing Care,P11,Adult Social Care & Health,BRUNEL CARE HOME,08/02/2016,904.00
Bath and North East Somerset Council,80555689,LM6,Nursing Care,P11,Adult Social Care & Health,BRUNEL CARE HOME,08/02/2016,904.00
Bath and North East Somerset Council,80555689,LM6,Nursing Care,P11,Adult Social Care & Health,BRUNEL CARE HOME,08/02/2016,904.00
Bath and North East Somerset Council,80555689,LM6,Nursing Care,P11,Adult Social Care & Health,BRUNEL CARE HOME,08/02/2016,909.00
Bath and North East Somerset Council,80555689,LM6,Nursing Care,P11,Adult Social Care & Health,BRUNEL CARE HOME,08/02/2016,909.00
Bath and North East Somerset Council,80555573,LM6,Nursing Care,P11,Adult Social Care & Health,BUPA CARE SERVICES,08/02/2016,570.00
Bath and North East Somerset Council,80555573,LM6,Nursing Care,P11,Adult Social Care & Health,BUPA CARE SERVICES,08/02/2016,570.00
Bath and North East Somerset Council,80555584,LM6,Nursing Care,P11,Adult Social Care & Health,BUPA CARE SERVICES BACS RECEIPTS,08/02/2016,592.00
Bath and North East Somerset Council,80555584,LM6,Nursing Care,P11,Adult Social Care & Health,BUPA CARE SERVICES BACS RECEIPTS,08/02/2016,592.00
Bath and North East Somerset Council,80556078,LM6,Nursing Care,P11,Adult Social Care & Health,BYBROOK HOUSE,08/02/2016,112.00
Bath and North East Somerset Council,80556078,LM6,Nursing Care,P11,Adult Social Care & Health,BYBROOK HOUSE,08/02/2016,112.00
Bath and North East Somerset Council,80556078,LM6,Nursing Care,P11,Adult Social Care & Health,BYBROOK HOUSE,08/02/2016,112.00
Bath and North East Somerset Council,80556078,LM6,Nursing Care,P11,Adult Social Care & Health,BYBROOK HOUSE,08/02/2016,112.00
Bath and North East Somerset Council,80556078,LM6,Nursing Care,P11,Adult Social Care & Health,BYBROOK HOUSE,08/02/2016,112.00
Bath and North East Somerset Council,80556078,LM6,Nursing Care,P11,Adult Social Care & Health,BYBROOK HOUSE,08/02/2016,112.00
Bath and North East Somerset Council,80556078,LM6,Nursing Care,P11,Adult Social Care & Health,BYBROOK HOUSE,08/02/2016,112.00
Bath and North East Somerset Council,80556078,LM6,Nursing Care,P11,Adult Social Care & Health,BYBROOK HOUSE,08/02/2016,112.00
Bath and North East Somerset Council,80556078,LM6,Nursing Care,P11,Adult Social Care & Health,BYBROOK HOUSE,08/02/2016,112.00
Bath and North East Somerset Council,80556078,LM6,Nursing Care,P11,Adult Social Care & Health,BYBROOK HOUSE,08/02/2016,112.00
Bath and North East Somerset Council,80556007,LM6,Nursing Care,P11,Adult Social Care & Health,BYBROOK HOUSE,08/02/2016,300.00
Bath and North East Somerset Council,80556007,LM6,Nursing Care,P11,Adult Social Care & Health,BYBROOK HOUSE,08/02/2016,500.00
Bath and North East Somerset Council,80555716,LM6,Nursing Care,P11,Adult Social Care & Health,BYBROOK HOUSE,08/02/2016,640.00
Bath and North East Somerset Council,80555716,LM6,Nursing Care,P11,Adult Social Care & Health,BYBROOK HOUSE,08/02/2016,640.00
Bath and North East Somerset Council,80555716,LM6,Nursing Care,P11,Adult Social Care & Health,BYBROOK HOUSE,08/02/2016,757.50
Bath and North East Somerset Council,80555716,LM6,Nursing Care,P11,Adult Social Care & Health,BYBROOK HOUSE,08/02/2016,757.50
Bath and North East Somerset Council,80556007,LM6,Nursing Care,P11,Adult Social Care & Health,BYBROOK HOUSE,08/02/2016,985.94
Bath and North East Somerset Council,80556007,LM6,Nursing Care,P11,Adult Social Care & Health,BYBROOK HOUSE,08/02/2016,985.94
Bath and North East Somerset Council,80556047,LM6,Nursing Care,P11,Adult Social Care & Health,CAMBIAN HEALTHCARE LTD,08/02/2016,2320.05
Bath and North East Somerset Council,80556047,LM6,Nursing Care,P11,Adult Social Care & Health,CAMBIAN HEALTHCARE LTD,08/02/2016,2320.05
Bath and North East Somerset Council,80556047,LM6,Nursing Care,P11,Adult Social Care & Health,CAMBIAN HEALTHCARE LTD,08/02/2016,2369.50
Bath and North East Somerset Council,80556047,LM6,Nursing Care,P11,Adult Social Care & Health,CAMBIAN HEALTHCARE LTD,08/02/2016,2369.50
Bath and North East Somerset Council,80555642,LM3,Residential Care,P11,Adult Social Care & Health,CAMPHILL DEVON COMMUNITY LTD,08/02/2016,849.92
Bath and North East Somerset Council,80555642,LM3,Residential Care,P11,Adult Social Care & Health,CAMPHILL DEVON COMMUNITY LTD,08/02/2016,849.92
Bath and North East Somerset Council,80556070,LM6,Nursing Care,P11,Adult Social Care & Health,CARE FIRST CARE HOMES LTD,08/02/2016,112.00
Bath and North East Somerset Council,80556070,LM6,Nursing Care,P11,Adult Social Care & Health,CARE FIRST CARE HOMES LTD,08/02/2016,112.00
Bath and North East Somerset Council,80556070,LM6,Nursing Care,P11,Adult Social Care & Health,CARE FIRST CARE HOMES LTD,08/02/2016,112.00
Bath and North East Somerset Council,80556070,LM6,Nursing Care,P11,Adult Social Care & Health,CARE FIRST CARE HOMES LTD,08/02/2016,112.00
Bath and North East Somerset Council,80556070,LM6,Nursing Care,P11,Adult Social Care & Health,CARE FIRST CARE HOMES LTD,08/02/2016,112.00
Bath and North East Somerset Council,80556070,LM6,Nursing Care,P11,Adult Social Care & Health,CARE FIRST CARE HOMES LTD,08/02/2016,112.00
Bath and North East Somerset Council,80556070,LM6,Nursing Care,P11,Adult Social Care & Health,CARE FIRST CARE HOMES LTD,08/02/2016,112.00
Bath and North East Somerset Council,80556070,LM6,Nursing Care,P11,Adult Social Care & Health,CARE FIRST CARE HOMES LTD,08/02/2016,112.00
Bath and North East Somerset Council,80556070,LM6,Nursing Care,P11,Adult Social Care & Health,CARE FIRST CARE HOMES LTD,08/02/2016,112.00
Bath and North East Somerset Council,80556070,LM6,Nursing Care,P11,Adult Social Care & Health,CARE FIRST CARE HOMES LTD,08/02/2016,112.00
Bath and North East Somerset Council,80556070,LM6,Nursing Care,P11,Adult Social Care & Health,CARE FIRST CARE HOMES LTD,08/02/2016,112.00
Bath and North East Somerset Council,80556070,LM6,Nursing Care,P11,Adult Social Care & Health,CARE FIRST CARE HOMES LTD,08/02/2016,112.00
Bath and North East Somerset Council,80556070,LM6,Nursing Care,P11,Adult Social Care & Health,CARE FIRST CARE HOMES LTD,08/02/2016,112.00
Bath and North East Somerset Council,80556070,LM6,Nursing Care,P11,Adult Social Care & Health,CARE FIRST CARE HOMES LTD,08/02/2016,112.00
Bath and North East Somerset Council,80555640,LM6,Nursing Care,P11,Adult Social Care & Health,CARE FIRST CARE HOMES LTD,08/02/2016,570.00
Bath and North East Somerset Council,80555640,LM6,Nursing Care,P11,Adult Social Care & Health,CARE FIRST CARE HOMES LTD,08/02/2016,570.00
Bath and North East Somerset Council,80555640,LM6,Nursing Care,P11,Adult Social Care & Health,CARE FIRST CARE HOMES LTD,08/02/2016,570.00
Bath and North East Somerset Council,80555640,LM6,Nursing Care,P11,Adult Social Care & Health,CARE FIRST CARE HOMES LTD,08/02/2016,570.00
Bath and North East Somerset Council,80555640,LM6,Nursing Care,P11,Adult Social Care & Health,CARE FIRST CARE HOMES LTD,08/02/2016,570.00
Bath and North East Somerset Council,80555640,LM6,Nursing Care,P11,Adult Social Care & Health,CARE FIRST CARE HOMES LTD,08/02/2016,570.00
Bath and North East Somerset Council,80555640,LM6,Nursing Care,P11,Adult Social Care & Health,CARE FIRST CARE HOMES LTD,08/02/2016,570.00
